{"text_format":"2","workbook":"xlsx","n_sheets":27,"sheets":["Übersicht Formblätter","S","A1","A2-N2","A3","A4-N4","A5","A6-N6","A7","A8-N8","A9","A10-N10","A P","A P IJFD","A B","N1 R","N1 F","N3","N5","N7","N9","N P","N TN 1","N TN 2","RM","Tabelle3","Hinweise"],"not_rendered":{"charts":0,"images":0,"macros":0,"external_links":0,"defined_names":25,"comments":12,"pivot_tables":0},"unopened":[],"bounds":{"document_bytes":16777216,"sheet_cells":100000,"run_cost":"one","rows_first":2000,"rows_last":500,"rows_between":2000,"halvings":0,"cell_chars":16384,"cell_head_chars":4096},"cells_cut":0,"cells_raw":0,"read":"whole","date_system":"1900"}

{"sheet":"Übersicht Formblätter","index":0,"n_rows":27,"n_cols":2,"rows_kept":27,"cut":false,"hidden":false,"merged":[[0,0,0,1],[1,0,1,1]]}
["Übersicht der Formblätter für die Beantragung von Zuwendungen \nnach den Förderrichtlinien Jugendfreiwilligendienste"]
["Überarbeitung: BAFzA,Ref. 207, Andreas Schilling                                                                                                                                                             Stand: 08.02.2021                                                                                                                                                                                                                                                                                       Stand: 11.02.2020"]
[null,"Versionsnr: 0.01.19"]
[]
["S","Stammblatt"]
["A 1","Gesamtantrag"]
["A 2 / N 2","Antrag und Finanzierungsplan zur Regelförderung des FSJ/FÖJ "]
["A 3 ","Sammelantrag/Stellungnahme zum Antrag zur Regelförderung des FSJ/FÖJ für Zentralstellen- bzw. Länderverfahren"]
["A 4 / N 4","Antrag und Finanzierungsplan zur Förderung des FSJ/FÖJ für Teilnehmende mit besonderem Förderbedarf"]
["A 5","Sammelantrag/Stellungnahme zum Antrag zur Förderung des FSJ/FÖJ für Teilnehmende mit besonderem Förderbedarf"]
["A 6 / N 6","Finanzierungsplan für zentrale Maßnahmen für Qualitätssicherung und -entwicklung (Bundestutorat)"]
["A 7","Antrag auf Förderung des Internationalen Jugendfreiwilligendienstes"]
["A 8 / N 8","Finanzierungsplan zur Förderung des Internationalen Jugendfreiwilligendienstes"]
["A 9","Antrag zur Förderung von Modellvorhaben / für sonstige Einzelprojekte"]
["A 10 / N 10","Finanzierungsplan zur Förderung von Tagungen/Veranstaltungen"]
["A P","Darstellung der Personalausgaben"]
["A B","Arbeitsplatzbeschreibung"]
["N 1 R","Verwendungsnachweis zur Regelförderung des FSJ/FÖJ"]
["N 1 F","Verwendungsnachweis zur Förderung des FSJ/FÖJ für Teilnehmende mit besonderem Förderbedarf"]
["N 3","Sammelverwendungsnachweis/Stellungnahme zum Verwendungsnachweis zur Regelförderung des FSJ/FÖJ für Zentralstellen- bzw. Länderverfahren"]
["N 5","Sammelverwendungsnachweis/Stellungnahme zum Verwendungsnachweis zur Förderung von Teilnehmenden mit besonderem Förderbedarf im FSJ/FÖJ für Zentralstellen- oder Länderverfahren"]
["N 7","Verwendungsnachweis zur Förderung des Internationalen Jugendfreiwilligendienstes"]
["N 9","Verwendungsnachweis zur Förderung von Modellvorhaben / für sonstige Einzelprojekte"]
["N P","Nachweis zu Personalausgaben"]
["N TN 1","Teilnehmendenliste für Förderung nach Nr. II.4.a.(2) & (3) RL-JFD"]
["N TN 2","Teilnehmendenliste für Förderung nach Nr. II.4.b. RL-JFD"]
["RM","Rechtsbehelfsverzicht/Nutzungsrechtseinräumung/Mittelabruf"]

{"sheet":"S","index":1,"n_rows":61,"n_cols":29,"rows_kept":61,"cut":false,"hidden":false,"merged":[[17,19,17,28],[28,20,28,23],[15,10,15,18],[19,23,19,28],[19,13,19,22],[19,0,19,12],[17,0,17,18],[58,0,58,10],[58,13,58,28],[24,20,24,23],[26,20,26,23],[35,20,35,23],[38,20,38,23],[54,4,54,28],[53,1,53,28],[43,1,50,27],[3,10,3,15],[15,0,15,9],[4,0,4,7],[8,1,12,26],[13,0,13,28],[15,19,15,28]]}
["Förderrichtlinien Jugendfreiwilligendienste",{"$nulls":27},"Formblatt S"]
[]
[]
["Stammblatt zum Antrag vom ",{"$nulls":9}," "]
[]
[]
[]
[1,"Antragsteller (Name und Anschrift, Zeilenschaltung durch Alt + Enter, max. 5 Zeilen)"]
[null," "]
[]
[]
[]
[]
[]
["Kurzbezeichnung",{"$nulls":9},"Telefon",{"$nulls":8},"Telefax "]
[" ",{"$nulls":9}," ",{"$nulls":8}," "]
["Kontoinhaber (falls abweichend vom Antragsteller)",{"$nulls":18},"E-Mail-Adresse"]
[" "]
["Geldinstitut",{"$nulls":12},"IBAN",{"$nulls":9},"BIC"]
[" ",{"$nulls":12}," ",{"$nulls":9}," "]
[]
[2,"Erforderliche Unterlagen",{"$nulls":9},"liegt bei",null,null,null,"wird ",{"$nulls":4},"wurde bereits",{"$nulls":4},"Änderungen sind"]
[{"$nulls":15},"nachgereicht",{"$nulls":4},"vorgelegt am",{"$nulls":4},"nicht eingetreten"]
[]
[null,"geltende Satzung/Ordnung",{"$nulls":18}," "]
[]
[null,"Verzeichnis der Vorstandsmitglieder",{"$nulls":18}," "]
[]
[null,"Nachweis der Gemeinnützigkeit"]
[]
[]
[]
[3,"Weitere Unterlagen",{"$nulls":9},"liegt bei",null,null,null,"wird ",{"$nulls":4},"wurde bereits",{"$nulls":4},"Änderungen sind"]
[{"$nulls":15},"nachgereicht",{"$nulls":4},"vorgelegt am",{"$nulls":4},"nicht eingetreten"]
[null,"Nachweis der Eintragung ins "]
[null,"Vereinsregister"]
[]
[null,"Bei Zentralstelle: Verzeichnis "]
[null,"der angeschlossenen Gliederungen"]
[]
[]
[4,"Angaben darüber, wie die ordnungsgemäße Verwendung der Mittel sichergestellt wird"]
[null,"(Verantwortlichkeit, ausreichende Kassen- und Buchführung, Art der Buchführung)"]
[null," "]
{"$rows_empty":9}
[null,"Für folgende Person/en liegt eine Vollmacht zur Abwicklung des Förderverfahrens (einschließlich Mittel-"]
[null,"abruf) vor:",null,null," "]
[]
[]
[]
[" ",{"$nulls":12}," "]
["Ort, Datum",{"$nulls":12},"Unterschrift(en) der nach Satzung / dem Gesellschaftervertrag"]
[{"$nulls":13},"vertretungsberechtigten Person(en), Name in Druckbuchstaben"]

{"sheet":"A1","index":2,"n_rows":69,"n_cols":8,"rows_kept":69,"cut":false,"hidden":false,"merged":[[14,1,17,4],[49,1,51,1],[60,0,60,2],[65,0,65,2],[58,4,58,7],[60,4,60,7],[49,2,51,7]]}
["Förderrichtlinien Jugendfreiwilligendienste",{"$nulls":6},"Formblatt A1"]
["Gesamtantrag auf Förderung nach den Förderrichtlinien Jugendfreiwilligendienste "]
[]
[]
[null,"Zentralstelle/Landesbehörde (Zeilenschaltung durch Alt + Enter)"]
[]
[]
[null,"Bundesamt für Familie und zivilgesellschaftliche Aufgaben"]
[null,"Ref. 207 - Zuwendungen im Bereich Jugendfreiwilligendienste"]
[null,"50964 Köln"]
[]
[]
[]
[1,"Antragsteller (Name und Anschrift, Zeilenschaltung durch Alt + Enter)"]
[null," "]
[]
[]
[]
[]
[]
[2,"Wir beantragen Zuwendungen für"]
[{"$nulls":6},"€"]
[]
["-","das Freiwilliges Soziale Jahr/Freiwilliges Ökologische Jahr nach Nr. II.4.a.(1) u. (2) RL-JFD (Regelförderung)",{"$nulls":4},0]
[]
["-","das Freiwilliges Soziale Jahr/Freiwilliges Ökologische Jahr nach Nr. II.4.a.(3) RL-JFD (Sonderförderung)"]
[]
["-","den Internationalen Jugendfreiwilligendienst nach Nr. II.4.b. RL-JFD"]
[]
["-","ein Modellvorhaben nach Nr. II.4.c. RL-JFD"]
[]
["-","sonstige Einzelprojekte nach Nr. II.4.d. RL-JFD"]
[]
[{"$nulls":4},"Zusammen",null,{"$f":"G24+G26+G28+G30+G32","v":0}]
[]
[]
[null,"Mit der Maßnahme ist noch nicht begonnen worden."]
[]
[null,"Es besteht eine Berechtigung zum Vorsteuerabzug gemäß § 15 UStG."]
[]
[null,"Soweit Anträge von Dritten enthalten sind, wurden diese unter Beachtung der Fördervoraussetzungen geprüft."]
[]
[null,"Die voraussichtlichen zuwendungsfähigen Gesamtausgaben der (einzelnen) Projekte / Maßnahmen übersteigen"]
[null,"die dafür beantragte(n) Zuwendung(en)."]
[]
[]
[3,"Ansprechpartner/In (Name, Telefon, Fax, E-Mail)"]
[]
[null,"für inhaltliche Fragen","für verwaltungsmäßige Fragen"]
[null," "," "]
[]
[]
[]
[]
["Beigefügt ist:"]
[null,null,null,"Die Richtigkeit und Vollständigkeit der in diesem"]
[null,"Formblatt S (Stammblatt)",null,"Gesamtantrag und seinen Anlagen gemachten"]
[null,null,null,"Angaben wird versichert."]
[]
[]
[" "]
["Ort, Datum"]
[]
[]
[]
[]
["Name(n) in Druckbuchstaben und Unterschrift(en) der nach Satzung / dem"]
["Gesellschaftervertrag vertretungsberechtigten Person(en) bzw. der Vertretung der"]
["zuständigen Landesbehörde"]

{"sheet":"A2-N2","index":3,"n_rows":159,"n_cols":8,"rows_kept":159,"cut":false,"hidden":false,"merged":[[138,4,138,7],[118,4,118,7],[119,4,119,7],[120,4,120,7],[121,4,121,7],[122,4,122,7],[123,4,123,7],[156,0,156,1],[156,2,156,3],[156,4,156,7],[146,1,146,5],[124,4,124,7],[126,4,126,7],[129,4,129,7],[130,4,130,7],[132,4,132,7],[131,4,131,7],[128,0,128,1],[128,4,128,7],[140,4,140,7],[139,4,139,7],[136,4,136,7],[137,4,137,7],[113,0,113,1],[113,2,113,7],[102,4,102,7],[103,4,103,7],[106,4,106,7],[107,4,107,7],[108,4,108,7],[109,4,109,7],[110,4,110,7],[111,4,111,7],[112,4,112,7],[83,0,83,2],[84,0,84,2],[86,3,86,5],[87,0,87,1],[87,2,87,3],[83,3,83,7],[32,0,32,1],[77,2,77,3],[77,4,77,7],[18,0,18,1],[47,0,47,1],[77,0,77,1],[27,4,27,7],[28,4,28,7],[29,4,29,7],[30,4,30,7],[26,4,26,7],[25,4,25,7],[20,4,20,7],[21,4,21,7],[22,4,22,7],[49,4,49,7],[5,2,5,3],[8,2,8,3],[6,0,6,7],[1,0,1,2],[4,3,4,5],[2,0,2,2],[5,0,5,1],[15,4,15,7],[18,4,18,7],[10,2,10,4],[13,4,13,7],[19,4,19,7],[99,0,99,1],[99,4,99,7],[100,4,100,7],[101,4,101,7],[15,0,15,1],[31,4,31,7],[35,4,35,7],[32,2,32,7],[36,4,36,7],[37,4,37,7],[38,4,38,7],[88,0,88,7],[90,2,90,3],[92,2,92,4],[95,4,95,7],[96,4,96,7],[39,4,39,7],[41,4,41,7],[43,4,43,7],[40,4,40,7],[42,4,42,7],[116,4,116,7],[117,4,117,7],[50,4,50,7],[51,4,51,7],[45,4,45,7],[48,4,48,7],[47,4,47,7]]}
["Förderrichtlinien Jugendfreiwilligendienste",{"$nulls":6},"Formblatt A 2 / N 2"]
["Antrag und Finanzierungsplan zur Förderung gem. Nr. II.4.a.(1) u. (2) RL-JFD",null,null,null,"Antrag"]
["für Ausgaben der Träger zur pädagogischen Begleitung im FSJ/FÖJ"]
["A2 - Antrag und Finanzierungsplan - Anlage zum Gesamtantrag"]
[]
["Antragsteller (Name)"]
[" "]
[]
["Die Zuwendung soll verwendet werden für:",null,"Freiwilliges Soziales Jahr"]
[]
["betreffender Förderjahrgang:",null,"01.09.2021 - 31.08.2022"]
[]
[]
[null,null,{"$f":"IF(C11=\"01.08.2021 - 31.07.2022\",\"01.08. - 31.12.2021\",(IF(C11=\"01.09.2021 - 31.08.2022\",\"01.09. - 31.12.2021\",)))","v":"01.09. - 31.12.2021"},{"$f":"IF(C11=\"01.08.2021 - 31.07.2022\",\"01.01. - 31.07.2022\",(IF(C11=\"01.09.2021 - 31.08.2022\",\"01.01. - 31.08.2022\")))","v":"01.01. - 31.08.2022"},"insgesamt"]
[{"$nulls":4}," "]
["Anzahl beantragte Teilnehmendenmonate",null,0,0,{"$f":"SUM(C16:D16)","v":0}]
[]
[]
["AUSGABEN",null,{"$f":"C14","v":"01.09. - 31.12.2021"},{"$f":"D14","v":"01.01. - 31.08.2022"},{"$f":"E14","v":"insgesamt"}]
["1","Personalausgaben für päd. Fachkraft                            (zuwendungsfähige Ausgaben)",0,0,{"$f":"C20+D20","v":0}]
["2","Seminarausgaben (zuwendungsfähige Ausgaben)",0,0,{"$f":"C21+D21","v":0}]
["3","Sonstige zuwendungsfähige Ausgaben im Rahmen der päd. Begleitung",0,0,{"$f":"C22+D22","v":0}]
["4","                                                                            sonstige mit dem Projekt in Zusammenhang stehende Ausgaben, die nicht zuwendungsfähig sind",0,0,{"$f":"C23+D23","v":0}]
[]
["EINNAHMEN"]
[5,"Eigen- und Drittmittel ohne öffentliche Mittel",{"$f":"C14","v":"01.09. - 31.12.2021"},{"$f":"D14","v":"01.01. - 31.08.2022"},"insgesamt"]
["5.1","Eigenmittel des Trägers",0,0,{"$f":"C27+D27","v":0}]
["5.1.1","hiervon für zuwendungsfähige Ausgaben",0,0,0]
["5.2","Einsatzstellenumlage/Beteiligung der Einsatzstellen",0,0,0]
["5.2.1","hiervon für zuwendungsfähige Ausgaben",0,0,0]
["5.3","zweckgebundene Mittel von Stiftungen und Spenden, Sonstiges",0,0,0]
["5.3.1","hiervon für zuwendungsfähige Ausgaben",0,0,0]
["%-Anteil der Eigen/-Drittmittel an zuwendungsfähigen Ausgaben",null,{"$f":"(C32+C30+C28+D28+D30+D32)/(C21+D21+C22+D22+D20+C20)","v":{"$error":"#DIV/0!"}}]
[]
[6,"Öffentliche Fördermittel \n(ESF-und Landesmittel, kommunale Mittel)",{"$f":"C14","v":"01.09. - 31.12.2021"},{"$f":"D14","v":"01.01. - 31.08.2022"},"insgesamt"]
["6.1"," ",0,0,{"$f":"C36+D36","v":0}]
["6.1.1","hiervon für zuwendungsfähige Ausgaben",0,0,0]
["6.2",null,null,null,0]
["6.2.1","hiervon für zuwendungsfähige Ausgaben",null,null,0]
["6.3",null,null,null,0]
["6.3.1","hiervon für zuwendungsfähige Ausgaben",null,null,0]
[]
[7,"Zuwendung des Bundes",{"$f":"C14","v":"01.09. - 31.12.2021"},{"$f":"D14","v":"01.01. - 31.08.2022"},"insgesamt"]
[null,"BMFSFJ - Regelförderung",{"$f":"(C20+C21+C22)-(C28+C30+C32+C37+C39+C41)","v":0},{"$f":"(D20+D21+D22)-(D28+D30+D32+D37+D39+D41)","v":0},{"$f":"SUM(C44:D44)","v":0}]
[]
[null,"durchschnittlicher Festbetrag pro Teilnehmendenmonat",null,null,{"$f":"E44/E16","v":{"$error":"#DIV/0!"}}]
[]
["GESAMTSUMMEN",null,{"$f":"C14","v":"01.09. - 31.12.2021"},{"$f":"D14","v":"01.01. - 31.08.2022"},"insgesamt"]
[null,"Gesamtausgaben",{"$f":"SUM(C20:C23)","v":0},{"$f":"SUM(D20:D23)","v":0},{"$f":"SUM(E20:E23)","v":0}]
[null,"hiervon für zuwendungsfähige Ausgaben",{"$f":"SUM(C20:C22)","v":0},{"$f":"SUM(D20:D22)","v":0},{"$f":"C50+D50","v":0}]
[null,"Gesamteinnahmen",{"$f":"C27+C29+C31+C36+C38+C40+C44+C47","v":0},{"$f":"D27+D29+D31+D36+D38+D40+D44+D47","v":0},{"$f":"C51+D51","v":0}]
[null,"hiervon für zuwendungsfähige Ausgaben",{"$f":"C44+C41+C39+C37+C32+C30+C28","v":0},{"$f":"D44+D41+D39+D37+D32+D30+D28","v":0},{"$f":"C52+D52","v":0}]
[]
[]
[]
[]
[null,"Die Ausgaben für die pädagogische Begleitung, einschließlich mindestens 25 Seminartage, übersteigen die beantragte Zuwendung."]
[]
[null,"Es ist nicht ersichtlich, dass während der Projektlaufzeit Einsparungen zustandekommen bzw. weitere Eigen- oder Drittmittel"]
[null,"erzielt werden. "]
[]
[null,"Es können unter Berücksichtigung der eigenen Finanzplanung sowie des Eigeninteresses an der Maßnahme keine weiteren "]
[null,"Eigenmittel und Drittmittel für die zuwendungsfähigen Positionen eingebracht werden."]
[]
[null,"Die Finanzierung der Gesamtmaßnahme ist gesichert. "]
[]
[null,"Das Rundschreiben mit der Darstellung der zuwendungsfähigen Ausgaben für die Regelförderung im FSJ/FÖJ wurde beachtet."]
[]
[null,"Es erfolgt ein Einbehalt für Ausgaben des Bundestutorats pro Teilnehmendenmonat:"]
{"$rows_empty":9}
["Ort, Datum",null,"Name(n) in Druckbuchstaben sowie Unterschrift(en) der nach "]
[null,null,"Satzung / dem Gesellschaftervertrag vertretungsberechtigten Person(en) "]
[]
[]
["Förderrichtlinien Jugendfreiwilligendienste",{"$nulls":6},"Formblatt A 2 / N 2"]
["zahlenmäßiger Nachweis zur Förderung gem. Nr. II.4.a.(1) u. (2) RL-JFD",null,null,"zahlenmäßiger Nachweis"]
["für Ausgaben der Träger zur pädagogischen Begleitung im FSJ/FÖJ"]
["N2 - zahlenmäßiger Nachweis -  Anlage zum Verwendungsnachweis"]
[]
["Zuwendungsempfänger (Name)"]
[]
[]
["Die Zuwendung wurde verwendet  für:",null,"Freiwilliges Soziales Jahr"]
[]
["betreffender Förderjahrgang:",null,"01.09.2021 - 31.08.2022"]
[]
[]
[null,null,{"$f":"IF(C93=\"01.08.2021 - 31.07.2022\",\"01.08. - 31.12.2021\",(IF(C93=\"01.09.2021 - 31.08.2022\",\"01.09. - 31.12.2021\")))","v":"01.09. - 31.12.2021"},{"$f":"IF(C93=\"01.08.2021 - 31.07.2022\",\"01.01. - 31.07.2022\",(IF(C93=\"01.09.2021 - 31.08.2022\",\"01.01. - 31.08.2022\")))","v":"01.01. - 31.08.2022"},"insgesamt"]
["Anzahl durchgeführteTeilnehmendenmonate",null,0,0,{"$f":"C97+D97","v":0}]
[]
[]
["AUSGABEN",null,{"$f":"C96","v":"01.09. - 31.12.2021"},{"$f":"D96","v":"01.01. - 31.08.2022"},{"$f":"E96","v":"insgesamt"}]
["1","Personalausgaben für päd. Fachkraft                            (zuwendungsfähige Ausgaben)",null,null,{"$f":"C101+D101","v":0}]
["2","Seminarausgaben (zuwendungsfähige Ausgaben)",null,null,{"$f":"C102+D102","v":0}]
["3","Sonstige zuwendungsfähige Ausgaben im Rahmen der päd. Begleitung",null,null,{"$f":"C103+D103","v":0}]
["4","sonstige mit dem Projekt in Zusammenhang stehende Ausgaben die nicht zuwendungsfähig sind",null,null,{"$f":"C104+D104","v":0}]
[]
["EINNAHMEN"]
[5,"Eigen- und Drittmittel ohne öffentliche Mittel",{"$f":"C96","v":"01.09. - 31.12.2021"},{"$f":"D96","v":"01.01. - 31.08.2022"},{"$f":"E96","v":"insgesamt"}]
["5.1","Eigenmittel des Trägers",null,null,{"$f":"C108+D108","v":0}]
["5.1.1","hiervon für zuwendungsfähige Ausgaben",null,null,0]
["5.2","Einsatzstellenumlage/Beteiligung der Einsatzstellen",null,null,0]
["5.2.1","hiervon für zuwendungsfähige Ausgaben",null,null,0]
["5.3","zweckgebundene Mittel von Stiftungen und Spenden, Sonstiges",null,null,0]
["5.3.1","hiervon für zuwendungsfähige Ausgaben",null,null,0]
["%-Anteil der Eigen/-Drittmittel an zuwendungsfähigen Ausgaben",null,{"$f":"(C113+C111+C109+D109+D111+D113)/(C102+D102+C103+D103+D101+C101)","v":{"$error":"#DIV/0!"}}]
[]
[6,"Öffentliche Fördermittel (ESF-und Landesmittel, kommunale Mittel)",{"$f":"C96","v":"01.09. - 31.12.2021"},{"$f":"D96","v":"01.01. - 31.08.2022"},{"$f":"E96","v":"insgesamt"}]
["6.1",null,null,null,{"$f":"C117+D117","v":0}]
["6.1.1","hiervon für zuwendungsfähige Ausgaben",null,null,0]
["6.2",null,null,null,0]
["6.2.1","hiervon für zuwendungsfähige Ausgaben",null,null,0]
["6.3",null,null,null,0]
["6.3.1","hiervon für zuwendungsfähige Ausgaben",null,null,0]
[]
[7,"Zuwendung des Bundes",{"$f":"C96","v":"01.09. - 31.12.2021"},{"$f":"D96","v":"01.01. - 31.08.2022"},{"$f":"E116","v":"insgesamt"}]
[null,"BMFSFJ - Regelförderung",null,null,{"$f":"C125+D125","v":0}]
[]
[null,"durchschnittlicher Festbetrag pro Teilnehmendenmonat",null,null,{"$f":"IF(AND(C125>0,D125>=0,C125<>\"\",D125<>\"\"),(C125+D125)/E97,\"entfällt bei ZN\")","v":"entfällt bei ZN"}]
[]
["GESAMTSUMMEN",null,{"$f":"C96","v":"01.09. - 31.12.2021"},{"$f":"D96","v":"01.01. - 31.08.2022"},{"$f":"E124","v":"insgesamt"}]
[null,"Gesamtausgaben",{"$f":"SUM(C101:C104)","v":0},{"$f":"SUM(D101:D104)","v":0},{"$f":"SUM(E101:E104)","v":0}]
[null,"hiervon für zuwendungsfähige Ausgaben",{"$f":"SUM(C101:C103)","v":0},{"$f":"SUM(D101:D103)","v":0},{"$f":"C131+D131","v":0}]
[null,"Gesamteinnahmen",{"$f":"C108+C110+C112+C117+C119+C121+C125+C128","v":0},{"$f":"D108+D110+D112+D117+D119+D121+D125+D128","v":0},{"$f":"C132+D132","v":0}]
[null,"hiervon für zuwendungsfähige Ausgaben",{"$f":"C125+C122+C120+C118+C113+C111+C109","v":0},{"$f":"D125+D122+D120+D118+D113+D111+D109","v":0},{"$f":"C133+D133","v":0}]
[]
[]
[]
[null,null,"Teilnehmendenmonat","durchschn. Festbetrag","Bundeszuwendung"]
[null,"bewilligt",{"$f":"E16","v":0},{"$f":"E46","v":{"$error":"#DIV/0!"}},{"$f":"E44","v":0}]
[null,"durchgeführt/verwendet",{"$f":"E97","v":0},{"$f":"E127","v":"entfällt bei ZN"},{"$f":"E125","v":0}]
[null,"Abweichung",{"$f":"ABS(C139-C138)","v":0},{"$f":"ABS(D139-D138)","v":{"$error":"#VALUE!"}},{"$f":"E138-E139","v":0}]
[null,"%-uale Abweichung",{"$f":"C140/C138","v":{"$error":"#DIV/0!"}},{"$f":"ABS(D140/D138)","v":{"$error":"#VALUE!"}},{"$f":"ABS(E140/E138)","v":{"$error":"#DIV/0!"}}]
[]
[]
[]
[null,"Die Ausgaben für die pädagogische Begleitung, einschließlich mindestens 25 Seminartage, übersteigen die erhaltene Zuwendung."]
[]
[null,"Es wurde ein durchschnittlicher Begleitungsschlüssel von einer pädagogischen Fachkraft auf 40 Freiwillige kontinuierlich eingehalten."]
[null,"Anzahl tatsächlich eingesetzter Fachkräfte :"]
[null,"Anzahl Fachkräfte gem. Betreuungsschlüssel 1:40 :",{"$f":"E97/40/12","v":0}]
[]
[null,"Das Rundschreiben mit der Darstellung der zuwendungsfähigen Ausgaben für die Regelförderung im FSJ/FÖJ wurde beachtet."]
[]
[null,"Es erfolgte ein Einbehalt für Ausgaben des Bundestutorats pro Teilnehmendenmonat:"]
[]
[]
[]
[]
["Ort, Datum",null,"Name(n) in Druckbuchstaben sowie Unterschrift(en) der nach "]
[null,null,"Satzung / dem Gesellschaftervertrag vertretungsberechtigten Person(en) "]

{"sheet":"A3","index":4,"n_rows":49,"n_cols":13,"rows_kept":49,"cut":false,"hidden":false,"merged":[[14,12,15,12],[7,1,7,12],[11,1,11,12],[6,0,6,12],[10,0,10,12],[8,1,8,12],[12,1,12,12],[40,8,40,9],[25,1,25,3],[26,1,26,3],[27,1,27,3],[46,0,46,3],[46,7,46,12],[31,4,31,6],[31,8,31,10],[33,0,33,2],[29,1,29,3],[1,0,1,11],[31,0,32,3],[30,0,30,3],[21,1,21,3],[22,1,22,3],[14,1,15,3],[14,0,15,0],[16,1,16,3],[19,1,19,3],[20,1,20,3],[2,0,2,1],[4,0,4,2],[4,3,4,12],[28,1,28,3],[14,7,15,7],[18,1,18,3],[24,1,24,3],[14,11,15,11],[23,1,23,3],[14,4,14,6],[14,8,14,10],[17,1,17,3]]}
["Förderrichtlinien Jugendfreiwilligendienste",{"$nulls":11},"Formblatt A 3"]
["Sammelantrag zum Antrag zur Regelförderung des FSJ/FÖJ nach Nr. II.4.a.(1) und (2) für Zentralstellen- bzw. Länderverfahren"]
["Jahrgang: ",null,"01.09.2021 - 31.08.2022"]
[]
["Zentralstelle/Landesbehörde"]
[]
["Zentralstellenverfahren (FSJ)"]
[null,"\nNachstehende Träger sind der o.g. Zentralstelle angeschlossen und haben versichert, bei keiner anderen Zentralstelle oder dem Bundesamt für Familie und zivilgesellschaftliche Aufgaben einen Antrag auf Förderung für das FSJ im o.g. Jahrgang gestellt zu haben. Im Nachfolgenden sind die Angaben zur beantragten Förderung ordnungsgemäß eingetragen. Es wird bestätigt, dass die genannten Organisationen Träger im Sinne des JFDG sind und die Gewähr für eine sachgerechte, zweckentsprechende und wirtschaftliche Verwendung der Mittel bieten. "]
[null,"Die Ausgaben für die pädagogische Begleitung, einschließlich mindestens 25 Seminartage und zentraler Maßnahmen für Qualitätssicherung und -entwicklung übersteigen bei jedem nachfolgenden Träger die beantragte Zuwendung."]
[]
["Länderverfahren (FÖJ)"]
[null,"\nNachstehende Träger haben einen Antrag auf Förderung für das FÖJ bei der zuständigen obersten Landesbehörde bzw. von ihr beauftragten Stelle für o.g. Jahrgang vorgelegt. Im Nachfolgenden sind die Angaben zur beantragten Förderung ordnungsgemäß eingetragen. Es wird bestätigt, dass die genannten Organisationen Träger im Sinne des JFDG sind und die Gewähr für eine sachgerechte, zweckentsprechende und wirtschaftliche Verwendung der Mittel bieten. "]
[null,"Die Ausgaben für die pädagogische Begleitung, einschließlich mindestens 25 Seminartage, übersteigen bei jedem nachfolgenden Träger die beantragte Zuwendung."]
[]
[null,"Trägername, Ort",null,null,"beantragteTeilnehmendenmonate",null,null,"beantragter\nmonatlicher Festbetrag","beantragte Zuwendung \nBMFSFJ",null,null,"zuwendungsfähige Gesamtausgaben für päd. Begleitung","Bemerkungen"]
[{"$nulls":4},{"$f":"IF(C3=\"01.08.2021 - 31.07.2022\",\"08-12/2021\",(IF(C3=\"01.09.2021 - 31.08.2022\",\"09-12/2021\")))","v":"09-12/2021"},{"$f":"IF(C3=\"01.08.2021 - 31.07.2022\",\"01-07/2022\",(IF(C3=\"01.09.2021 - 31.08.2022\",\"01-08/2022\")))","v":"01-08/2022"},"insgesamt",null,{"$f":"E16","v":"09-12/2021"},{"$f":"F16","v":"01-08/2022"},"insgesamt"]
[1,{"$nulls":5},{"$f":"E17+F17","v":0},null,null,null,{"$f":"I17+J17","v":0}]
[2,{"$nulls":5},0,null,null,null,0]
[3,{"$nulls":5},0,null,null,null,0]
[4,{"$nulls":5},0,null,null,null,0]
[5,{"$nulls":5},0,null,null,null,0]
[6,{"$nulls":5},0,null,null,null,0]
[7,{"$nulls":5},0,null,null,null,0]
[8,{"$nulls":5},0,null,null,null,0]
[9,{"$nulls":5},0,null,null,null,0]
[10,{"$nulls":5},0,null,null,null,0]
[11,{"$nulls":5},0,null,null,null,0]
[12,{"$nulls":5},0,null,null,null,0]
[13,{"$nulls":5},0,null,null,null,0]
[14,{"$nulls":5},0,null,null,null,0]
["Gesamt:",null,null,null,{"$f":"SUM(E17:E30)","v":0},{"$f":"SUM(F17:F30)","v":0},{"$f":"SUM(G17:G30)","v":0},null,{"$f":"SUM(I17:I30)","v":0},{"$f":"SUM(J17:J30)","v":0},{"$f":"SUM(K17:K30)","v":0},{"$f":"SUM(L17:L30)","v":0}]
["Bundestutorat, Ort",null,null,null,"Einbehalt für Bundestutorat",null,null,null,"Mittel zur Weiterleitung"]
[{"$nulls":4},{"$f":"E16","v":"09-12/2021"},{"$f":"F16","v":"01-08/2022"},"insgesamt",null,{"$f":"I16","v":"09-12/2021"},{"$f":"J16","v":"01-08/2022"},"insgesamt"]
["Einbehalt Bundestutorat/Teilnehmendenmonat",null,null,null,{"$f":"E31*D34","v":0},{"$f":"F31*D34","v":0},{"$f":"G31*D34","v":0},null,{"$f":"I31-E34","v":0},{"$f":"J31-F34","v":0},{"$f":"K31-G34","v":0}]
[]
[null,"eine Förderung der o.a. Träger wird befürwortet"]
[]
["Anlagen",{"$nulls":7},"Die Zentralstelle/die Landesbehörde bestätigt, dass die Anträge einschließlich der"]
[null,"Finanzierungspläne ( A2 ) der einzelnen Träger  für Förderungen gem. Nr. II.4.a.(1) u. (2) RL-JFD",{"$nulls":6},"Finanzierungspläne der in der Stellungnahme aufgeführten Träger geprüft wurden und keine"]
[{"$nulls":8},"Bedenken  gegen eine Bewilligung bestehen."]
[null,"Formblatt A6 bei Ausgaben für zentrale Maßnahmen zur Qualitätsentwicklung und -sicherung"]
[{"$nulls":8},"Die Richtigkeit und Vollständigkeit der in diesem Antrag und seinen Anlagen "]
[null,"Bericht/Erläuterungen der Zentralstelle u.a. zu maßgeblichen Veränderung ",{"$nulls":6},"gemachten Angaben wird versichert."]
[null,"und Trägeranschlüssen/-abweisungen"]
[]
[]
[]
["Ort, Datum",{"$nulls":6},"Name(n) in Druckbuchstaben und Unterschrift(en) der nach Satzung / dem Gesellschaftervertrag"]
[{"$nulls":7},"vertretungsberechtigten Person(en) bzw. durch die Vertretung der zuständigen Landesbehörde"]

{"sheet":"A4-N4","index":5,"n_rows":183,"n_cols":6,"rows_kept":183,"cut":false,"hidden":false,"merged":[[6,0,6,1],[6,2,6,3],[66,2,66,3],[22,0,22,1],[7,0,7,5],[30,0,30,1],[39,0,39,1],[45,0,45,1],[55,0,55,1],[62,0,62,1],[12,2,12,3],[14,0,14,1],[26,0,26,1],[16,2,16,3],[15,0,15,1],[18,4,18,5],[19,4,19,5],[28,4,28,5],[30,4,30,5],[32,4,32,5],[34,4,34,5],[35,4,35,5],[36,4,36,5],[20,4,20,5],[21,4,21,5],[22,4,22,5],[24,4,24,5],[25,4,25,5],[26,4,26,5],[54,4,54,5],[55,4,55,5],[57,4,57,5],[37,4,37,5],[38,4,38,5],[39,4,39,5],[43,4,43,5],[44,4,44,5],[45,4,45,5],[165,4,165,7],[166,4,166,7],[69,4,69,5],[71,4,71,5],[72,4,72,5],[73,4,73,5],[89,2,89,5],[58,4,58,5],[29,4,29,5],[33,4,33,5],[41,4,41,5],[42,4,42,5],[70,4,70,5],[59,4,59,5],[60,4,60,5],[61,4,61,5],[62,4,62,5],[48,4,48,5],[49,4,49,5],[50,4,50,5],[51,4,51,5],[65,4,65,5],[52,4,52,5],[53,4,53,5],[102,2,102,3],[104,0,104,1],[105,0,105,1],[106,2,106,3],[96,0,96,1],[96,2,96,3],[64,4,64,5],[104,4,104,5],[105,4,105,5],[67,1,67,3],[87,0,87,1],[87,2,87,5],[114,4,114,5],[115,4,115,5],[116,0,116,1],[116,4,116,5],[118,4,118,5],[119,4,119,5],[108,4,108,5],[109,4,109,5],[110,4,110,5],[111,4,111,5],[112,0,112,1],[112,4,112,5],[129,0,129,1],[129,4,129,5],[131,4,131,5],[120,0,120,1],[120,4,120,5],[122,4,122,5],[123,4,123,5],[124,4,124,5],[125,4,125,5],[182,2,182,5],[10,3,10,4],[12,0,12,1],[14,4,14,5],[15,4,15,5],[97,0,97,5],[100,3,100,4],[102,0,102,1],[157,1,157,3],[159,4,159,5],[163,4,163,5],[151,4,151,5],[152,0,152,1],[152,4,152,5],[154,4,154,5],[155,4,155,5],[156,2,156,3],[145,0,145,1],[145,4,145,5],[147,4,147,5],[148,4,148,5],[149,4,149,5],[150,4,150,5],[139,4,139,5],[167,4,167,7],[168,4,168,7],[169,4,169,7],[67,4,67,5],[157,4,157,7],[180,0,180,1],[180,2,180,5],[160,4,160,5],[161,4,161,5],[162,4,162,5],[140,4,140,5],[141,4,141,5],[142,4,142,5],[143,4,143,5],[144,4,144,5],[132,4,132,5],[133,4,133,5],[134,4,134,5],[135,0,135,1],[135,4,135,5],[138,4,138,5],[126,4,126,5],[127,4,127,5],[128,4,128,5]]}
["Förderrichtlinien Jugendfreiwilligendienste",{"$nulls":4},"Formblatt A 4 / N 4"]
["Antrag und Finanzierungsplan bzw. zahlenmäßiger Nachweis zur Förderung",null,null,null,"Antrag"]
["gem. Nr. II.4.a.(3) RL-JFD für zusätzliche Ausgaben der Träger zur pädagogischen "]
["Begleitung von Teilnehmenden mit besonderen Förderbedarfen im FSJ/FÖJ"]
["A4 - Antrag und Finanzierungsplan - Anlage zum Gesamtantrag"]
[]
["Antragsteller (Name):"]
[]
[]
["Die Zuwendung soll verwendet werden für Teilnehmende mit besonderen Förderbedarfen für die Wahrnehmung"]
["von zusätzlichen Angeboten über die reguläre pädagogische Betreuung hinaus im:",null,null,"Freiwilligen Sozialen Jahr"]
[]
["betreffender Förderjahrgang:",null,"01.09.2021 - 31.08.2022"]
[]
[null,null,{"$f":"IF(C13=\"01.08.2021 - 31.07.2022\",\"01.08. - 31.12.2021\",(IF(C13=\"01.09.2021 - 31.08.2022\",\"01.09. - 31.12.2021\")))","v":"01.09. - 31.12.2021"},{"$f":"IF(C13=\"01.08.2021 - 31.07.2022\",\"01.01. - 31.07.2022\",(IF(C13=\"01.09.2021 - 31.08.2022\",\"01.01. - 31.08.2022\")))","v":"01.01. - 31.08.2022"},{"$f":"E19","v":"insgesamt"}]
["Anzahl beantragte Teilnehmendenmonate",null,0,0,{"$f":"SUM(C16:D16)","v":0}]
[]
["AUSGABEN (zusätzlich zum regulären Angebot der päd. Begleitung)",null,null,null," "]
[1,"Personalausgaben ",{"$f":"C15","v":"01.09. - 31.12.2021"},{"$f":"D15","v":"01.01. - 31.08.2022"},"insgesamt"]
["1.1","Leitung (nicht zuwendungsfähig)",null,null,{"$f":"SUM(C20:D20)","v":0}]
["1.2","Päd. Fachkräfte",null,null,{"$f":"SUM(C21:D21)","v":0}]
["1.3","Verwaltung (nicht zuwendungsfähig)",null,null,{"$f":"SUM(C22:D22)","v":0}]
["Summe",null,{"$f":"SUM(C20:C22)","v":0},{"$f":"SUM(D20:D22)","v":0},{"$f":"SUM(C23:D23)","v":0}]
[]
[2,"Teilnehmendenausgaben (nicht zuwendungsfähig)",{"$f":"C19","v":"01.09. - 31.12.2021"},{"$f":"D19","v":"01.01. - 31.08.2022"},"insgesamt"]
["2.1","teilnehmendenbezogene Leistungen (u.a. Taschengeld, Verpflegung)",null,null,{"$f":"SUM(C26:D26)","v":0}]
["Summe",null,{"$f":"SUM(C26:C26)","v":0},{"$f":"SUM(D26:D26)","v":0},{"$f":"SUM(C27:D27)","v":0}]
[]
[3,"Seminarausgaben für besondere Förderbedarfe",{"$f":"C19","v":"01.09. - 31.12.2021"},{"$f":"D19","v":"01.01. - 31.08.2022"},"insgesamt"]
["3.1","Ausgaben für Seminare (Unterkunft, Fahrkosten, Verpflegung, etc.)",null,null,{"$f":"SUM(C30:D30)","v":0}]
["Summe",null,{"$f":"SUM(C30:C30)","v":0},{"$f":"SUM(D30:D30)","v":0},{"$f":"SUM(C31:D31)","v":0}]
[]
[4,"Sachausgaben für besondere Förderbedarfe",{"$f":"C19","v":"01.09. - 31.12.2021"},{"$f":"D19","v":"01.01. - 31.08.2022"},"insgesamt"]
["4.1","Sachausgaben",null,null,{"$f":"SUM(C34:D34)","v":0}]
["4.2","Reisekosten",null,null,{"$f":"SUM(C35:D35)","v":0}]
["4.3","Ausgaben für Veranstaltungen/Fortbildungen",null,null,0]
["4.4","Ausgaben für Projekte der Teilnehmenden",null,null,0]
["4.5","Honorare ",null,null,0]
["4.6",null,null,null,0]
["Summe",null,{"$f":"SUM(C34:C39)","v":0},{"$f":"SUM(D34:D39)","v":0},0]
[]
[5,"Sonstige Ausgaben die außerhalb der päd. Begleitung anfallen (nicht zuwendungsfähig)",{"$f":"C19","v":"01.09. - 31.12.2021"},{"$f":"D19","v":"01.01. - 31.08.2022"},"insgesamt"]
["5.1","Sachausgaben Leitungs- und Verwaltungspersonal",null,null,{"$f":"SUM(C43:D43)","v":0}]
["5.2","Öffentlichkeitsarbeit",null,null,{"$f":"SUM(C44:D44)","v":0}]
["5.3",null,null,null,{"$f":"SUM(C45:D45)","v":0}]
["Summe",null,{"$f":"SUM(C43:C45)","v":0},{"$f":"SUM(D43:D45)","v":0},{"$f":"SUM(C46:D46)","v":0}]
[]
["EINNAHMEN"]
[6,"Eigen- und Drittmittel ohne öffentliche Mittel",{"$f":"C19","v":"01.09. - 31.12.2021"},{"$f":"D19","v":"01.01. - 31.08.2022"},"insgesamt"]
["6.1","Eigenmittel des Trägers",null,null,{"$f":"SUM(C50:D50)","v":0}]
["6.1.1","hiervon für zuwendungsfähige Ausgaben",null,null,{"$f":"SUM(C51:D51)","v":0}]
["6.2","Einsatzstellenumlage/Beteiligung der Einsatzstellen",null,null,0]
["6.2.1","hiervon für zuwendungsfähige Ausgaben",null,null,0]
["6.3","zweckgebundene Mittel von Stiftungen und Spenden, Sonstiges",null,null,0]
["6.3.1","hiervon für zuwendungsfähige Ausgaben",null,null,0]
["Summe",null,{"$f":"C50+C52+C54","v":0},{"$f":"D50+D52+D54","v":0},0]
[]
[7,"Öffentliche Fördermittel \n(ESF-und Landesmittel, kommunale Mittel)",{"$f":"C19","v":"01.09. - 31.12.2021"},{"$f":"D19","v":"01.01. - 31.08.2022"},"insgesamt"]
["7.1",null,null,null,{"$f":"SUM(C59:D59)","v":0}]
["7.1.1","hiervon für zuwendungsfähige Ausgaben",null,null,{"$f":"SUM(C60:D60)","v":0}]
["7.2",null,null,null,{"$f":"SUM(C61:D61)","v":0}]
["7.2.1","hiervon für zuwendungsfähige Ausgaben",null,null,{"$f":"SUM(C62:D62)","v":0}]
["Summe",null,{"$f":"C61+C59","v":0},{"$f":"D61+D59","v":0},{"$f":"SUM(C63:D63)","v":0}]
[]
[8,"Zuwendung des Bundes",{"$f":"C19","v":"01.09. - 31.12.2021"},{"$f":"D19","v":"01.01. - 31.08.2022"},"insgesamt"]
[null,"BMFSFJ - besonderer Förderbedarf",{"$f":"(C21+C30+C34+C35+C36+C37+C38+C39)-(C51+C53+C55+C60+C62)","v":0},{"$f":"(D21+D30+D34+D35+D36+D37+D38+D39)-(D51+D53+D55+D60+D62)","v":0},{"$f":"SUM(C66:D66)","v":0}]
[]
[null,"durchschnittlicher Festbetrag pro Teilnehmendenmonat",null,null,{"$f":"E66/E16","v":{"$error":"#DIV/0!"}}]
[]
["GESAMTSUMMEN",null,{"$f":"C19","v":"01.09. - 31.12.2021"},{"$f":"D19","v":"01.01. - 31.08.2022"},"insgesamt"]
[null,"Gesamtausgaben für besondere Förderbedarfe",{"$f":"C46+C40+C31+C27+C23","v":0},{"$f":"D46+D40+D31+D27+D23","v":0},{"$f":"SUM(C71:D71)","v":0}]
[null,"hiervon für zuwendungsfähige Ausgaben",{"$f":"C40+C31+C21","v":0},{"$f":"D40+D31+D21","v":0},{"$f":"SUM(C72:D72)","v":0}]
[null,"Gesamteinnahmen für besondere Förderbedarfe",{"$f":"C56+C63+C66","v":0},{"$f":"D56+D63+D66","v":0},{"$f":"SUM(C73:D73)","v":0}]
[null,"hiervon für zuwendungsfähige Ausgaben",{"$f":"C66+C62+C60+C55+C53+C51","v":0},{"$f":"D66+D62+D60+D55+D53+D51","v":0},{"$f":"SUM(C74:D74)","v":0}]
[]
[null,"Die dargestellten Ausgaben entstehen zusätzlich zur regulären pädagogischen Begleitung im FSJ/FÖJ. Eine doppelte Abrechnung"]
[null,"von Ausgaben über die Regelförderung des FSJ/FÖJ (Nr. II.4.a.(2) RL-JFD) sowie über die mit diesem Antrag dargestellte"]
[null,"Förderung ist nicht statthaft."]
[null,"Es ist nicht ersichtlich, dass während der Projektlaufzeit Einsparungen zustandekommen bzw. weitere Eigen- oder Drittmittel"]
[null,"erzielt werden. "]
[]
[null,"Es können unter Berücksichtigung der eigenen Finanzplanung sowie des Eigeninteresses an der Maßnahme keine weiteren "]
[null,"Eigenmittel und Drittmittel für die zuwendungsfähigen Positionen eingebracht werden."]
[null,"Die Teilnehmenden, für die die  Förderung beantragt worden ist, erfüllen die im Katalog vorgegebenen Kriterien der Notwendigkeit des"]
[null,"besonderen Förderbedarfes. "]
[]
[null,"Die Finanzierung der Gesamtmaßnahme ist gesichert. "]
[]
["Ort, Datum",null,"Name(n) in Druckbuchstaben sowie Unterschrift(en) der nach "]
[null,null,"Satzung / dem Gesellschaftervertrag vertretungsberechtigten Person(en) "]
["Förderrichtlinien Jugendfreiwilligendienste",{"$nulls":4},"Formblatt A 4 / N 4"]
["Antrag und Finanzierungsplan bzw. zahlenmäßiger Nachweis zur Förderung",{"$nulls":4},"zahlenmäßiger Nachweis"]
["gem. Nr.II.4.a.(3) RL-JFD für zusätzliche Ausgaben der Träger zur pädagogischen "]
["Begleitung von Teilnehmenden mit besonderen Förderbedarfen im FSJ/FÖJ"]
["N4 - zahlenmäßiger Nachweis -  Anlage zum Verwendungsnachweis"]
[]
["Antragsteller (Name):"]
[]
[]
["Die Zuwendung wurde verwendet für Teilnehmende mit besonderen Förderbedarfen für die Wahrnehmung "]
["von zusätzlichen Angeboten über die reguläre pädagogische Begleitung hinaus im:",null,null,"Freiwilligen Sozialen Jahr"]
[]
["betreffender Förderjahrgang:",null,"01.09.2021 - 31.08.2022"]
[]
[null,null,{"$f":"IF(C103=\"01.08.2021 - 31.07.2022\",\"01.08. - 31.12.2021\",(IF(C103=\"01.09.2021 - 31.08.2022\",\"01.09. - 31.12.2021\")))","v":"01.09. - 31.12.2021"},{"$f":"IF(C103=\"01.08.2021 - 31.07.2022\",\"01.01. - 31.07.2022\",(IF(C103=\"01.09.2021 - 31.08.2022\",\"01.01. - 31.08.2022\")))","v":"01.01. - 31.08.2022"},{"$f":"E109","v":"insgesamt"}]
["Anzahl durchgeführte Teilnehmendenmonate",null,0,0,{"$f":"SUM(C106:D106)","v":0}]
[]
["AUSGABEN (zusätzlich zum regulären Angebot der päd. Begleitung)",null,null,null," "]
[1,"Personalausgaben ",{"$f":"C105","v":"01.09. - 31.12.2021"},{"$f":"D105","v":"01.01. - 31.08.2022"},"insgesamt"]
["1.1","Leitung (nicht zuwendungsfähig)",null,null,{"$f":"SUM(C110:D110)","v":0}]
["1.2","Päd. Fachkräfte",null,null,{"$f":"SUM(C111:D111)","v":0}]
["1.3","Verwaltung (nicht zuwendungsfähig)",null,null,{"$f":"SUM(C112:D112)","v":0}]
["Summe",null,{"$f":"SUM(C110:C112)","v":0},{"$f":"SUM(D110:D112)","v":0},{"$f":"SUM(C113:D113)","v":0}]
[]
[2,"Teilnehmendenausgaben (nicht zuwendungsfähig)",{"$f":"C109","v":"01.09. - 31.12.2021"},{"$f":"D109","v":"01.01. - 31.08.2022"},"insgesamt"]
["2.1","teilnehmendenbezogene Leistungen (u.a. Taschengeld, Verpflegung)",null,null,{"$f":"SUM(C116:D116)","v":0}]
["Summe",null,{"$f":"SUM(C116:C116)","v":0},{"$f":"SUM(D116:D116)","v":0},{"$f":"SUM(C117:D117)","v":0}]
[]
[3,"Seminarausgaben für besondere Förderbedarfe",{"$f":"C109","v":"01.09. - 31.12.2021"},{"$f":"D109","v":"01.01. - 31.08.2022"},"insgesamt"]
["3.1","Ausgaben für Seminare (Unterkunft, Fahrkosten, Verpflegung, etc.)",null,null,{"$f":"SUM(C120:D120)","v":0}]
["Summe",null,{"$f":"SUM(C120:C120)","v":0},{"$f":"SUM(D120:D120)","v":0},{"$f":"SUM(C121:D121)","v":0}]
[]
[4,"Sachausgaben für besondere Förderbedarfe",{"$f":"C109","v":"01.09. - 31.12.2021"},{"$f":"D109","v":"01.01. - 31.08.2022"},"insgesamt"]
["4.1","Sachausgaben",null,null,{"$f":"SUM(C124:D124)","v":0}]
["4.2","Reisekosten",null,null,{"$f":"SUM(C125:D125)","v":0}]
["4.3","Ausgaben für Veranstaltungen/Fortbildungen",null,null,0]
["4.4","Ausgaben für Projekte der Teilnehmenden",null,null,0]
["4.5","Honorare ",null,null,0]
["4.6",null,null,null,0]
["Summe",null,{"$f":"SUM(C124:C129)","v":0},{"$f":"SUM(D124:D129)","v":0},0]
[]
[5,"Sonstige Ausgaben die außerhalb der päd. Begleitung anfallen (nicht zuwendungsfähig)",{"$f":"C109","v":"01.09. - 31.12.2021"},{"$f":"D109","v":"01.01. - 31.08.2022"},"insgesamt"]
["5.1","Sachausgaben Leitungs- und Verwaltungspersonal",null,null,{"$f":"SUM(C133:D133)","v":0}]
["5.2","Öffentlichkeitsarbeit",null,null,{"$f":"SUM(C134:D134)","v":0}]
["5.3",null,null,null,{"$f":"SUM(C135:D135)","v":0}]
["Summe",null,{"$f":"SUM(C133:C135)","v":0},{"$f":"SUM(D133:D135)","v":0},{"$f":"SUM(C136:D136)","v":0}]
[]
["EINNAHMEN"]
[6,"Eigen- und Drittmittel ohne öffentliche Mittel",{"$f":"C109","v":"01.09. - 31.12.2021"},{"$f":"D109","v":"01.01. - 31.08.2022"},"insgesamt"]
["6.1","Eigenmittel des Trägers",null,null,{"$f":"SUM(C140:D140)","v":0}]
["6.1.1","hiervon für zuwendungsfähige Ausgaben",null,null,{"$f":"SUM(C141:D141)","v":0}]
["6.2","Einsatzstellenumlage/Beteiligung der Einsatzstellen",null,null,0]
["6.2.1","hiervon für zuwendungsfähige Ausgaben",null,null,0]
["6.3","zweckgebundene Mittel von Stiftungen und Spenden, Sonstiges",null,null,0]
["6.3.1","hiervon für zuwendungsfähige Ausgaben",null,null,0]
["Summe",null,{"$f":"C140+C142+C144","v":0},{"$f":"D140+D142+D144","v":0},0]
[]
[7,"Öffentliche Fördermittel \n(ESF-und Landesmittel, kommunale Mittel)",{"$f":"C109","v":"01.09. - 31.12.2021"},{"$f":"D109","v":"01.01. - 31.08.2022"},"insgesamt"]
["7.1",null,null,null,{"$f":"SUM(C149:D149)","v":0}]
["7.1.1","hiervon für zuwendungsfähige Ausgaben",null,null,{"$f":"SUM(C150:D150)","v":0}]
["7.2",null,null,null,{"$f":"SUM(C151:D151)","v":0}]
["7.2.1","hiervon für zuwendungsfähige Ausgaben",null,null,{"$f":"SUM(C152:D152)","v":0}]
["Summe",null,{"$f":"C151+C149","v":0},{"$f":"D151+D149","v":0},{"$f":"SUM(C153:D153)","v":0}]
[]
[8,"Zuwendung des Bundes",{"$f":"C109","v":"01.09. - 31.12.2021"},{"$f":"D109","v":"01.01. - 31.08.2022"},"insgesamt"]
[null,"BMFSFJ - besonderer Förderbedarf",{"$f":"(C111+C120+C124+C125+C126+C127+C128+C129)-(C141+C143+C145+C150+C152)","v":0},{"$f":"(D111+D120+D124+D125+D126+D127+D128+D129)-(D141+D143+D145+D150+D152)","v":0},{"$f":"SUM(C156:D156)","v":0}]
[]
[null,"durchschnittlicher Festbetrag pro Teilnehmendenmonat",null,null,{"$f":"IF(AND(C156>0,D156>=0,C156<>\"\",D156<>\"\"),(C156+D156)/E106,\"entfällt bei ZN\")","v":"entfällt bei ZN"}]
[]
["GESAMTSUMMEN",null,{"$f":"C109","v":"01.09. - 31.12.2021"},{"$f":"D109","v":"01.01. - 31.08.2022"},"insgesamt"]
[null,"Gesamtausgaben für besondere Förderbedarfe",{"$f":"C136+C130+C121+C117+C113","v":0},{"$f":"D136+D130+D121+D117+D113","v":0},{"$f":"SUM(C161:D161)","v":0}]
[null,"hiervon für zuwendungsfähige Ausgaben",{"$f":"C130+C121+C111","v":0},{"$f":"D130+D121+D111","v":0},{"$f":"SUM(C162:D162)","v":0}]
[null,"Gesamteinnahmen für besondere Förderbedarfe",{"$f":"C146+C153+C156","v":0},{"$f":"D146+D153+D156","v":0},{"$f":"SUM(C163:D163)","v":0}]
[null,"hiervon für zuwendungsfähige Ausgaben",{"$f":"C156+C152+C150+C145+C143+C141","v":0},{"$f":"D156+D152+D150+D145+D143+D141","v":0},{"$f":"SUM(C164:D164)","v":0}]
[]
[null,null,"Teilnehmendenmonat","durchschn. Festbetrag","Bundeszuwendung"]
[null,"bewilligt",{"$f":"E45","v":0},{"$f":"E75","v":0},{"$f":"E154","v":0}]
[null,"durchgeführt/verwendet",{"$f":"E126","v":0},{"$f":"E156","v":0},{"$f":"E154","v":0}]
[null,"Abweichung",{"$f":"ABS(C168-C167)","v":0},{"$f":"ABS(D168-D167)","v":0},{"$f":"E168-E167","v":0}]
[null,"%-uale Abweichung",{"$f":"ABS(C169/C167)","v":{"$error":"#DIV/0!"}},{"$f":"ABS(D169/D167)","v":{"$error":"#DIV/0!"}},{"$f":"E169/E167","v":{"$error":"#DIV/0!"}}]
[]
[]
[]
[]
[null,"Die Teilnehmenden, für die die  Förderung verwendet worden ist, erfüllten die im Katalog vorgegebenen Kriterien der Notwendigkeit des"]
[null,"besonderen Förderbedarfes. "]
[]
[]
[]
[]
[]
["Ort, Datum",null,"Name(n) in Druckbuchstaben sowie Unterschrift(en) der nach "]
[null,null,"Satzung / dem Gesellschaftervertrag vertretungsberechtigten Person(en) "]

{"sheet":"A5","index":6,"n_rows":45,"n_cols":14,"rows_kept":45,"cut":false,"hidden":false,"merged":[[21,1,21,3],[12,4,12,6],[12,13,13,13],[16,1,16,3],[12,8,12,10],[42,0,42,3],[42,7,42,13],[27,1,27,3],[24,1,24,3],[28,0,28,3],[25,1,25,3],[26,1,26,3],[22,1,22,3],[23,1,23,3],[15,1,15,3],[18,1,18,3],[19,1,19,3],[7,1,7,13],[20,1,20,3],[1,0,1,11],[12,11,13,11],[17,1,17,3],[2,0,2,1],[2,2,2,4],[12,0,13,0],[12,1,13,3],[6,0,6,13],[9,0,9,13],[14,1,14,3],[10,1,10,13],[4,0,4,1],[4,2,4,8],[12,7,13,7]]}
["Förderrichtlinien Jugendfreiwilligendienste",{"$nulls":12},"Formblatt A 5"]
["Sammelantrag/Stellungnahme zum Antrag zur Förderung von Teilnehmenden mit besonderen Förderbedarf im FSJ/FÖJ nach Nr. II.4.a.(3) RL-JFD für Zentralstellen- oder Länderverfahren"]
["Jahrgang:",null,"01.09.2021 - 31.08.2022"]
[]
["Zentralstelle/Landesbehörde"]
[]
["Zentralstellenverfahren (FSJ)"]
[null,"Nachstehende Träger sind der o.g. Zentralstelle angeschlossen und haben versichert, bei keiner anderen Zentralstelle oder dem Bundesamt für Familie und zivilgesellschaftliche \nAufgaben einen Antrag auf Förderung für Teilnehmende am FSJ mit besonderen Förderbedarfen im o.g. Jahrgang gestellt zu haben. Im Nachfolgenden sind alle Angaben zur beantragten Förderung eingetragen. Es wird bestätigt, dass die genannten Organisationen Träger im Sinne des JFDG sind und die Gewähr für eine sachgerechte, zweckentsprechende und wirtschaftliche Verwendung der Mittel bieten. "]
[]
["Länderverfahren (FÖJ)"]
[null,"Nachstehende Träger haben einen Antrag auf Förderung für Teilnehmende am FÖJ mit besonderen Förderbedarfen bei der zuständigen obersten Landesbehörde für o.g. Jahrgang vorgelegt. Im Nachfolgenden sind alle Angaben zur beantragten Förderung eingetragen. Es wird bestätigt, dass die genannten Organisationen Träger im Sinne des JFDG sind und die Gewähr für eine sachgerechte, zweckentsprechende und wirtschaftliche Verwendung der Mittel bieten. "]
[]
[null,"Trägername, Ort",null,null,"beantragte\nTeilnehmendenmonate",null,null,"beantragter\nmonatlicher Fehlbedarf","beantragte Zuwendung \nBMFSFJ",null,null,"zuwendungsfähige Gesamtausgaben für zusätzliche päd. Begleitung",null,"Bemerkungen"]
[{"$nulls":4},{"$f":"IF(C3=\"01.08.2021 - 31.07.2022\",\"08-12/2021\",(IF(C3=\"01.09.2021 - 31.08.2022\",\"09-12/2021\")))","v":"09-12/2021"},{"$f":"IF(C3=\"01.08.2021 - 31.07.2022\",\"01-07/2022\",(IF(C3=\"01.09.2021 - 31.08.2022\",\"01-08/2022\")))","v":"01-08/2022"},"insgesamt",null,{"$f":"E14","v":"09-12/2021"},{"$f":"F14","v":"01-08/2022"},"insgesamt"]
[1,{"$nulls":5},{"$f":"E15+F15","v":0},null,{"$f":"E15*H15","v":0},{"$f":"F15*H15","v":0},{"$f":"SUM(I15:J15)","v":0}]
[2,{"$nulls":5},0,null,{"$f":"E16*H16","v":0},{"$f":"F16*H16","v":0},{"$f":"SUM(I16:J16)","v":0}]
[3,{"$nulls":5},0,null,0,0,0]
[4,{"$nulls":5},0,null,0,0,0]
[5,{"$nulls":5},0,null,0,0,0]
[6,{"$nulls":5},0,null,0,0,0]
[7,{"$nulls":5},0,null,0,0,0]
[8,{"$nulls":5},0,null,0,0,0]
[9,{"$nulls":5},0,null,0,0,0]
[10,{"$nulls":5},0,null,0,0,0]
[11,{"$nulls":5},0,null,0,0,0]
[12,{"$nulls":5},0,null,0,0,0]
[13,{"$nulls":5},0,null,0,0,0]
[14,{"$nulls":5},0,null,0,0,0]
["Gesamt:",null,null,null,{"$f":"SUM(E15:E28)","v":0},0,0,null,0,0,{"$f":"SUM(K15:K28)","v":0},0]
[]
[]
[null,"eine Förderung der o.a. Träger wird befürwortet"]
[]
["Anlagen: ",{"$nulls":6},"Die Zentralstelle / die Landesbehörde bestätigt, dass die  Anträge der in der Stellungnahme"]
[null,"Finanzierungspläne ( A4 ) der einzelnen Träger für Förderungen gem. Nr. II.4.a.(3) RL-JFD",{"$nulls":5},"aufgeführten Träger geprüft wurden, keine Bedenken gegen eine Bewilligung bestehen."]
[]
[null,"Darlegung der besonderen Maßnahmen der einzelnen Träger",{"$nulls":5},"Die Richtigkeit und Vollständigkeit der in diesem Antrag und seinen Anlagen "]
[{"$nulls":7},"gemachten Angaben wird versichert."]
[]
[]
[]
[]
[]
["Ort, Datum",{"$nulls":6},"Name(n) in Druckbuchstaben und Unterschrift(en) der nach Satzung / dem Gesellschaftervertrag"]
[{"$nulls":7},"vertretungsberechtigten Person(en) bzw. durch die Vertretung der zuständigen Landesbehörde"]

{"sheet":"A6-N6","index":7,"n_rows":59,"n_cols":6,"rows_kept":59,"cut":false,"hidden":false,"merged":[[53,4,54,4],[55,4,56,4],[7,0,7,3],[56,0,56,1],[56,2,56,3],[1,0,1,3],[6,0,6,3],[2,0,2,3],[51,0,51,1],[55,0,55,1],[38,0,38,1],[45,0,45,1],[43,0,43,1],[10,0,10,1],[9,2,9,3],[19,0,19,1],[25,0,25,1],[32,0,32,1]]}
["Förderrichtlinien Jugendfreiwilligendienste",{"$nulls":4},"Formblatt A 6 / N 6"]
["Finanzierungsplan zur Förderung gem. Nr. II.4.a.(1) u. (2) RL-JFD"]
["für Ausgaben des Bundestutorats "]
["Anlage zum Gesamtantrag bzw. zum Verwendungsnachweis ",null,null,null,"Antrag"]
[{"$nulls":4},"Verwendungsnachweis"]
[]
["Bundestutorat (Name, Ort): "]
[]
[]
["betreffender Förderjahrgang:",null,"01.09.2021 - 31.08.2022"]
["Anzahl beantragten/bewilligten Teilnehmendenmonaten: "]
["Anzahl angeschlossene Träger:"]
[]
["AUSGABEN"]
[1,"Personalausgaben",{"$f":"IF(C10=\"01.08.2021 - 31.07.2022\",\"01.08. - 31.12.2021\",(IF(C10=\"01.09.2021 - 31.08.2022\",\"01.09. - 31.12.2021\")))","v":"01.09. - 31.12.2021"},{"$f":"IF(C10=\"01.08.2021 - 31.07.2022\",\"01.01. - 31.07.2022\",(IF(C10=\"01.09.2021 - 31.08.2022\",\"01.01. - 31.08.2022\")))","v":"01.01. - 31.08.2022"}]
["1.1","Bundestutor/in",null,null,"Stellenumfang:"]
["1.2","Assistenzkraft",null,null,"Stellenumfang:"]
["1.3","Verwaltungskraft (nicht zuwendungsfähig)"]
["1.4"]
["Summe",null,{"$f":"SUM(C16:C19)","v":0},{"$f":"SUM(D16:D19)","v":0}]
[]
["2","Sachausgaben für Bundestutorat",{"$f":"C15","v":"01.09. - 31.12.2021"},{"$f":"D15","v":"01.01. - 31.08.2022"}]
["2.1","Sachausgaben"]
["2.2","Ausgaben für Reisen für zuwendungsfähige Tätigkeiten"]
["2.3"]
["Summe",null,{"$f":"SUM(C23:C25)","v":0},{"$f":"SUM(D23:D25)","v":0}]
[]
[3,"Allgemeine Ausgaben",{"$f":"C15","v":"01.09. - 31.12.2021"},{"$f":"D15","v":"01.01. - 31.08.2022"}]
["3.1","Veranstaltungen mit Bezug zur päd. Begleitung"]
["3.2","allg. Öffentlichkeitsarbeit (nicht zuwendungsfähig)"]
["3.3","sonstige Ausgaben (bitte erläutern)"]
["3.4"]
["Summe",null,{"$f":"SUM(C29:C32)","v":0},{"$f":"SUM(D29:D32)","v":0}]
[]
[4,"Dienstleistungen Dritter (bitte erläutern)",{"$f":"C15","v":"01.09. - 31.12.2021"},{"$f":"D15","v":"01.01. - 31.08.2022"}]
["4.1","Auftrag/Vertrag"]
["4.2","Honorare "]
["4.3"]
["Summe",null,{"$f":"SUM(C36:C38)","v":0},{"$f":"SUM(D36:D38)","v":0}]
[]
["Gesamtsumme Ausgaben",null,{"$f":"C39+C33+C26+C20","v":0},{"$f":"D39+D33+D26+D20","v":0}]
[]
["EINNAHMEN"]
[null,null,{"$f":"C15","v":"01.09. - 31.12.2021"},{"$f":"D15","v":"01.01. - 31.08.2022"}]
[5,"Eigenmittel"]
["Summe","Summe",{"$f":"SUM(C45:C45)","v":0},{"$f":"SUM(D45:D45)","v":0}]
[]
[6,"Drittmittel",{"$f":"C44","v":"01.09. - 31.12.2021"},{"$f":"D44","v":"01.01. - 31.08.2022"}]
["6.1","Trägerumlage"]
["6.2","öffentliche Förderung (nicht Bund)"]
["6.3","sonstige Einnahmen"]
["Summe",null,{"$f":"SUM(C49:C51)","v":0},{"$f":"SUM(D49:D51)","v":0}]
[]
[7,"Bundesförderung",{"$f":"C48","v":"01.09. - 31.12.2021"},{"$f":"D48","v":"01.01. - 31.08.2022"}]
["7.1","Einbehalt aus der Zuwendung BMFSFJ"]
["Summe",null,{"$f":"C55","v":0},{"$f":"D55","v":0}]
["Anteil pro Teilnehmendenmonat ",null,{"$f":"(C56+D56)/C11","v":{"$error":"#DIV/0!"}}]
[]
["Gesamtsumme Einnahmen",null,{"$f":"C56+C52+C46","v":0},{"$f":"D56+D52+D46","v":0}]

{"sheet":"A7","index":8,"n_rows":66,"n_cols":12,"rows_kept":66,"cut":false,"hidden":true,"merged":[[56,0,59,11],[16,1,16,6],[18,1,18,2],[63,0,63,4],[39,1,39,11],[34,1,34,5],[30,4,30,5],[55,0,55,11],[63,6,63,11],[27,1,27,2],[2,3,2,4],[30,1,30,3],[7,1,9,5],[13,3,13,5],[18,4,18,6],[20,6,20,7],[22,1,22,5],[22,6,22,7],[24,1,24,3],[24,4,24,5],[27,4,27,5],[28,4,28,5],[29,4,29,5],[26,1,26,4],[28,1,28,2],[29,1,29,2]]}
["Förderrichtlinien Jugendfreiwilligendienste ",{"$nulls":10},"Formblatt A 7"]
["Antrag zur Förderung des Internationalen Jugendfreiwilligendienstes gem. Nr. II.4.b. RL-JFD"]
["Anlage zum Gesamtantrag  vom "]
[]
[{"$nulls":9}," "]
[]
[" 1.","Antragsteller (Kurzbezeichnung)",{"$nulls":5},"Trägernummer: "]
[]
[]
[]
[]
[]
[" 2.","Die beantragte Zuwendung soll verwendet werden für den Internationalen Jugendfreiwilligendienst nach Nr. II.4.b. RL-JFD"]
[null,"für den Jahrgang",null,"2020/2021"]
[]
[]
["3.","Diesem Antrag liegt folgende Planung zugrunde:"]
[]
[null,"Maßnahmenzeitraum: "]
[]
[null,{"$f":"IF(D14=\"2017/2018\",\"Anzahl der geplanten Dienstantritte vom 01.06.2017 bis 31.05.2018:\",(IF(D14=\"2015/2016\",\"Anzahl der geplanten Dienstantritte vom 01.06.2015 bis 31.05.2016:\",(IF(D14=\"2016/2017\",\"Anzahl der geplanten Dienstantritte vom 01.06.2016 bis 31.05.2017:\")))))","v":false}]
[]
[null,"Anzahl der geplanten Teilnehmenendemonate im o.g. Jahrgang:"]
[]
[null,"beantragter Festbetrag",null,null,{"$f":"#REF!","v":{"$error":"#REF!"}}]
[]
[null,"Aufteilung der beantragten Fördermittel auf"]
[null,{"$f":"IF(D14=\"2016/2017\",\"Haushaltsjahr 2016\",IF(D14=\"2015/2016\",\"Haushaltsjahr 2015\",IF(D14=\"2017/2018\",\"Haushaltsjahr 2017\",\"\")))","v":""},null,null,{"$f":"#REF!","v":{"$error":"#REF!"}}]
[null,{"$f":"IF(D14=\"2016/2017\",\"Haushaltsjahr 2017\",IF(D14=\"2015/2016\",\"Haushaltsjahr 2016\",IF(D14=\"2017/2018\",\"Haushaltsjahr 2018\",\"\")))","v":""},null,null,{"$f":"#REF!","v":{"$error":"#REF!"}}]
[null,{"$f":"IF(D14=\"2016/2017\",\"Haushaltsjahr 2018\",IF(D14=\"2015/2016\",\"Haushaltsjahr 2017\",IF(D14=\"2017/2018\",\"Haushaltsjahr 2019\",\"\")))","v":""},null,null,{"$f":"#REF!","v":{"$error":"#REF!"}}]
[null,"Beantragte Gesamtzuwendung:",null,null,{"$f":"SUM(E28:F30)","v":{"$error":"#REF!"}}]
[]
[]
["4.","Wir sind folgender zentralen Stelle für Qualitätsmaßnahmen im IJFD angeschlossen: "]
[]
[]
[]
["Erklärungen: "]
[]
[null,"Die zuwendungsfähigen Ausgaben für die pädagogische Begleitung, das Taschengeld, die Versicherungen, die Reisekosten sowie Unterkunft und Verpflegung übersteigen die dafür beantragte Zuwendung. "]
[]
[null,"Es ist nicht ersichtlich, dass während der Projektlaufzeit Einsparungen zustandekommen bzw. mit nicht bestimmbaren späteren Finanzierungs-"]
[null,"beiträgen Dritter zu rechnen ist."]
[]
[null,"Es können unter Berücksichtigung der eigenen Finanzplanung sowie des Eigeninteresses an der Maßnahme keine weiteren Eigenmittel"]
[null,"und Drittmittel für die zuwendungsfähigen Positionen eingebracht werden."]
[]
[null,"Die Finanzierung der Gesamtmaßnahme ist gesichert. "]
[]
[null,"Das Rundschreiben mit der Darstellung der zuwendungsfähigen Positionen für die Förderung des IJFD wurde beachtet."]
[]
["Beigefügt ist:"]
[]
[null,"Finanzierungsplan Formblatt A 8"]
[]
["Bemerkungen:"]
{"$rows_empty":8}
["Ort, Datum",{"$nulls":5},"Name(n) in Druckbuchstaben sowie Unterschrift(en) der nach "]
[{"$nulls":6},"Satzung / dem Gesellschaftervertrag vertretungsberechtigten Person(en) "]

{"sheet":"A8-N8","index":9,"n_rows":79,"n_cols":8,"rows_kept":79,"cut":false,"hidden":true,"merged":[[68,0,68,1],[60,0,60,1],[55,1,55,4],[53,2,53,4],[67,0,67,1],[65,2,65,4],[65,0,65,1],[64,2,64,4],[64,0,64,1],[52,0,52,1],[62,1,62,4],[29,0,29,1],[40,0,40,1],[36,2,36,4],[37,0,37,1],[53,0,53,1],[34,0,34,1],[38,0,38,1],[31,1,31,4],[36,0,36,1],[43,1,43,4],[37,2,37,4],[21,1,21,4],[17,1,17,4],[23,0,23,1],[25,1,25,4],[4,0,4,1],[5,0,5,1],[11,1,11,4],[15,0,15,1],[9,2,9,4]]}
["Förderrichtlinien Jugendfreiwilligendienste ",{"$nulls":6},"Formblatt A 8 / N 8"]
["Finanzierungsplan zur Förderung des Internationalen Jugendfreiwilligendienstes"]
["Anlage zum Antrag A7 bzw. Verwendungsnachweis N 7",{"$nulls":6},"Antrag"]
[{"$nulls":7},"Zwischennachweis"]
["Träger-Nummer",{"$nulls":6},"Verwendungsnachweis"]
["Jahrgang: ",null,"2017/2018"]
[null,"bei Verwendungsnachweis Angabe des Nachweiszeitraum: "]
[null,"Teilnehmendenmonate: "]
[]
[null,null,"Aufteilung nach Haushaltsjahren"]
["AUSGABEN",null,{"$f":"IF(C6=\"2017/2018\",\"2017\",(IF(C6=\"2014/2015\",\"2014\",(IF(C6=\"2015/2016\",\"2015\",(IF(C6=\"2016/2017\",\"2016\")))))))","v":"2017"},{"$f":"IF(C6=\"2017/2018\",\"2018\",(IF(C6=\"2014/2015\",\"2015\",(IF(C6=\"2015/2016\",\"2016\",(IF(C6=\"2016/2017\",\"2017\")))))))","v":"2018"},{"$f":"IF(C6=\"2017/2018\",\"2019\",(IF(C6=\"2014/2015\",\"2016\",(IF(C6=\"2015/2016\",\"2017\",(IF(C6=\"2016/2017\",\"2018\")))))))","v":"2019"}]
[1,"Personalausgaben (zuwendungsfähig)"]
["1.1","pädagogisches Fachpersonal"]
["1.2","Honorarkräfte, geringfügig Beschäftigte"]
["1.3","Honorare im Zusammenhang päd. Begl. außerhalb der Seminare (z. B. für Mentoren)"]
["Summe",null,{"$f":"SUM(C13:C15)","v":0},{"$f":"SUM(D13:D15)","v":0},{"$f":"SUM(E13:E15)","v":0}]
[]
[2,"Teilnehmendenausgaben (zuwendungsfähig)"]
["2.1","teilnehmendenbezogene Leistungen"]
[null,"Summe",{"$f":"SUM(C19:C19)","v":0},{"$f":"SUM(D19:D19)","v":0},{"$f":"SUM(E19:E19)","v":0}]
[]
[3,"Seminarausgaben (zuwendungsfähig)"]
["3.1","Ausgaben für Seminare (Unterkunft, Fahrkosten, Verpflegung, etc.)"]
["Summe",null,{"$f":"SUM(C23:C23)","v":0},{"$f":"SUM(D23:D23)","v":0},{"$f":"SUM(E23:E23)","v":0}]
[]
[4,"Sachausgaben (zuwendungsfähig)"]
["4.1","Sachausgaben für päd. Begleitung (inkl. Reiseausgaben, Veranstaltungen/Fortbildung)"]
["4.2","Umlage zentrale Stelle für Qualitätsmanagement"]
["4.3","Sonstige zuwendungsfähige Ausgaben: (beschreiben)"]
["Summe",null,{"$f":"SUM(C27:C29)","v":0},{"$f":"SUM(D27:D29)","v":0},{"$f":"SUM(E27:E29)","v":0}]
[]
[5,"sonstige Ausgaben, die nicht im Rahmen der päd. Begleitung anfallen (nicht zuwendungsfähig)"]
["5.1","sonstige Personalausgaben"]
["5.2","Sonstiges: (beschreiben)"]
["Summe",null,{"$f":"SUM(C33:C34)","v":0},{"$f":"SUM(D33:D34)","v":0},{"$f":"SUM(E33:E34)","v":0}]
[]
["Träger-Nummer: ",null,{"$f":"C5","v":0}]
["Jahrgang: ",null,{"$f":"C6","v":"2017/2018"}]
["Gesamtsumme Ausgaben",null,{"$f":"C16+C20+C24+C30+C35","v":0},{"$f":"D16+D20+D24+D30+D35","v":0},{"$f":"E16+E20+E24+E30+E35","v":0}]
[]
["hiervon für Zuwendungszwecke",null,{"$f":"C16+C20+C24+C30","v":0},{"$f":"D16+D20+D24+D30","v":0},{"$f":"E16+E20+E24+E30","v":0}]
[]
["EINNAHMEN"]
[6,"Eigen- und Drittmittel ohne öffentliche Mittel"]
["6.1","Eigenmittel des Trägers"]
["6.1.1","hiervon für zuwendungsfähige Ausgaben"]
["6.2","Einsatzstellenumlage/Beteiligung der Einsatzstellen"]
["6.2.1","hiervon für zuwendungsfähige Ausgaben"]
["6.3","Eigenleistung der Freiwilligen/Förderkreise"]
["6.3.1","hiervon für zuwendungsfähige Ausgaben"]
["6.4","zweckgebundene Mittel von Stiftungen und Spenden, Sonstiges"]
["6.4.1","hiervon für zuwendungsfähige Ausgaben"]
["Summe",null,{"$f":"SUM(C45,C47,C49,C51)","v":0},{"$f":"SUM(D45,D47,D49,D51)","v":0},{"$f":"SUM(E45,E47,E49,E51)","v":0}]
["%-Anteil der Eigen-/Drittmittel an zuwendungsfähigen Ausgaben",null,{"$f":"SUM(C46:E46,C48:E48,C50:E50,C52:E52)/SUM(C41:E41)","v":{"$error":"#DIV/0!"}}]
[]
[7,"Öffentliche Mittel (ESF-und Landes-Mittel, kommunale Mittel)"]
["7.1"]
["7.1.1","hiervon für zuwendungsfähige Ausgaben"]
["7.2"]
["7.2.1","hiervon für zuwendungsfähige Ausgaben"]
["Summe",null,{"$f":"C57+C59","v":0},{"$f":"D57+D59","v":0},{"$f":"E57+E59","v":0}]
[]
[8,"Zuwendung"]
["8.1","BMFSFJ",0,0,0]
["Zuwendung insgesamt",null,{"$f":"C64+D64+E64","v":0}]
["durchschnittlicher mtl. Festbetrag pro Teilnehmendenmonat",null,{"$f":"IF(AND(C64>0,D64>0,E64>=0,C64<>\"\",D64<>\"\",E64<>\"\"),(C64+D64+E64)/C8,\"entfällt\")","v":"entfällt"}]
[]
["Gesamtsumme Einnahmen",null,{"$f":"C53+C61+C64","v":0},{"$f":"D53+D61+D64","v":0},{"$f":"E53+E61+E64","v":0}]
["hiervon für zuwendungsfähige Ausgaben",null,{"$f":"C64+C60+C58+C52+C50+C48+C46","v":0},{"$f":"D64+D60+D58+D52+D50+D48+D46","v":0},{"$f":"E64+E60+E58+E52+E50+E48+E46","v":0}]
[]
[]
[]
[]
["Datum und Unterschrift"]
[null," "]
[null," "]
[null," "]
[null," "]
[null," "]

{"sheet":"A9","index":10,"n_rows":60,"n_cols":12,"rows_kept":60,"cut":false,"hidden":false,"merged":[[57,0,57,3],[52,2,52,11],[22,2,25,8],[6,2,10,8],[28,2,30,8],[36,2,36,8],[33,2,33,5],[50,2,50,11]]}
["Förderrichtlinien Jugendfreiwilligendienste",{"$nulls":10},"Formblatt  A 9"]
["Antrag auf Förderung eines Modellvorhabens (Nr. II.4.c. RL-JFD) oder einer "]
["sonstigen Einzelmaßnahme (Nr. II.4.d. RL-JFD)"]
[]
[]
[" 1.",null,"Antragsteller (Kurzbezeichnung)"]
{"$rows_empty":7}
[" 2.",null,"Die beantragte Zuwendung soll verwendet werden für ein / eine"]
[]
[null,null,"Modellvorhaben nach Nr. II.4.c. RL-JFD",{"$nulls":5},"sonstige Einzelmaßnahme nach Nr.  II.4.d. RL-JFD"]
[]
[null,null,"als …"]
[]
[null,null,"Maßnahme des Antragstellers."]
[]
[null,null,"als Maßnahme des folgenden Letztempfängers (Name, Anschrift): "]
[]
[]
[]
[]
[]
[" 3.",null,"Kurzbezeichnung der Maßnahme"]
[]
[]
[]
[]
["4.",null,"Beantragte Zuwendung für die Durchführung der Maßnahme"]
[]
[]
["5.",null,"Laufzeit der Maßnahme"]
[]
[]
[]
[]
[]
["Beigefügt sind:"]
[]
[null,null,"Beschreibung der Maßnahme inkl. Meilensteine, (messbare) Zielsetzung und Angabe der Wirkung der Maßnahme"]
[]
[null,null,"Finanzierungsplan (ggf. A10)"]
[]
[null,null,"Bei einem Modellvorhaben:"]
[null,null,"Erläuterungen zu den Vorgaben von Nr. II.4.c.(3) RL-JFD"]
{"$rows_empty":9}
["Ort, Datum",{"$nulls":5},"Name(n) in Druckbuchstaben sowie Unterschrift(en) der nach "]
[{"$nulls":6},"Satzung / dem Gesellschaftervertrag vertretungsberechtigten Person(en) "]

{"sheet":"A10-N10","index":11,"n_rows":44,"n_cols":15,"rows_kept":44,"cut":false,"hidden":false,"merged":[[41,0,41,5],[41,7,41,13],[21,2,21,7],[1,0,1,7],[7,0,10,7],[7,8,10,13],[22,2,22,7],[17,2,17,7],[18,2,18,7],[19,2,19,7],[20,2,20,7]]}
["Förderrichtlinie Jugendfreiwilligendienste",{"$nulls":13},"Formblatt A 10 / N 10"]
["Finanzierungsplan für Tagungen/Veranstaltungen",{"$nulls":12},"Antrag"]
["Anlage zum Antrag A 9 bzw. Verwendungsnachweis N 9",{"$nulls":12},"Verwendungsnachweis"]
[]
[]
[]
[" Antragsteller (Name und Anschrift)",{"$nulls":7},"Kurzbezeichnung der Maßnahme"]
[]
[]
[]
[]
[]
["Zahl der Teilnehmerinnen / Teilnehmer:"]
["Veranstaltungs-/Tagungszeitraum:"]
[]
["I",null,"Ausgaben"]
["1",null,"Unterkunft und Verpflegung"]
["2",null,"Ausgaben für Verpflegung in sinngemäßer\nAnwendung von BRKG\n"]
["3",null,"Honorare für Referentinnen und Referenten (einschl. MWSt.) "]
["3.1",null,"Honorare für Moderatorinnen und Moderatoren (einschl. MWSt.) "]
["3.2",null,"Personalausgaben für Vor- und Nachbereitung"]
["4.1",null,"Ausgaben für Fahrten der Teilnehmer/innen "]
["4.2",null,"Ausgaben für Fahrten der Referentinnen/Referenten"]
["5.1",null,"Geschäftsbedarf / Verbrauchsmaterialien"]
["5.2",null,"Technik- und Organisationskosten"]
["5.3",null,"Medien"]
["5.4",null,"Dokumentation"]
["5.5",null,"Sonstige Ausgaben (einzeln aufführen)"]
[]
[{"$nulls":8},"Gesamtausgaben",{"$nulls":4},{"$f":"SUM(N16:N28)","v":0}]
["II",null,"Finanzierung"]
["6.1",null,"Teilnehmendenbeiträge"]
["6.2",null,"Eigenmittel des Trägers"]
["6.3",null,"Sonstige Einnahmen (z.B. Spenden)"]
["6.4",null,"Öffentliche Zuschüsse"]
["6.5",null,"Zuwendung des BMFSFJ"]
[]
[{"$nulls":8},"Gesamteinnahmen",{"$nulls":4},{"$f":"SUM(N32:N36)","v":0}]
[]
[]
[]
[]
["Ort, Datum",{"$nulls":6},"Unterschrift(en) der nach Satzung / dem Gesellschaftervertrag "]
[{"$nulls":7},"vertretungsberechtigten Person(en)"]

{"sheet":"A P","index":12,"n_rows":59,"n_cols":13,"rows_kept":59,"cut":false,"hidden":false,"merged":[[14,12,16,12],[28,5,28,8],[28,11,28,12],[14,6,16,6],[14,5,16,5],[14,11,16,11],[14,10,16,10],[14,7,16,7],[6,1,10,5],[38,6,38,11],[39,6,39,11],[14,8,16,8],[14,9,16,9],[22,1,22,3],[17,1,17,3],[18,1,18,3],[20,1,20,3],[38,1,38,3],[11,9,11,10],[12,9,12,10],[19,1,19,3],[21,1,21,3],[25,1,25,3],[24,1,24,3],[23,1,23,3],[40,6,40,11],[51,1,51,4],[52,1,52,4],[39,1,39,3],[40,1,40,3],[50,1,50,4]]}
["Förderrichtlinien Jugendfreiwilligendienste",{"$nulls":11},"Formblatt A P"]
["Darstellung von Personalausgaben bei Maßnahmen nach der RL-JFD (FSJ/FÖJ)"]
[]
[]
[]
[1,"Antragsteller (Name und Anschrift)"]
[]
[]
[]
[]
[]
[{"$nulls":9},"Personalgemeinkosten in %"]
[{"$nulls":9},"Sachkostenpauschale"]
[2,"Stellenübersicht"]
["Lfd.","Name und Vorname",null,null,"Funktions-","TVöD-Entgeltgrup-pe/Entwick-lungsstufe","Arbeitszeit anteilig Pro- jekt in % bez. auf 100 %","Dauer der Tätigkeit in Monaten im Projekt","AN-Brutto anteilig Projekt ","Sozialvers. Abgaben AG-Anteil anteilig Projekt","Personalgemein- kosten bez. AN-Brutto anteilig Projekt ","Sachkosten-pauschale anteilig Projekt ","zuwendungsfähige Personalausgaben"]
["Nr.","der Mitarbeiterin / des Mitarbeiters",null,null,"bezeichnung"]
[null,"(ggf. Anstellungsträger)"]
["1",{"$nulls":9},{"$f":"I18*($L$12/100)","v":0},{"$f":"$L$13*(G18/100*H18/12)","v":0},{"$f":"I18+J18+K18+L18","v":0}]
["2",{"$nulls":9},0,0,0]
["3",{"$nulls":9},0,0,0]
["4",{"$nulls":9},0,0,0]
["5",{"$nulls":9},0,0,0]
["6",{"$nulls":9},0,0,0]
["7",{"$nulls":9},0,0,0]
["8",{"$nulls":9},0,0,0]
["9",{"$nulls":9},0,0,0]
[]
[]
[]
[]
["Sofern die beantragten Stellen von der Bewilligungsbehörde bereits genehmigt wurden: "]
[]
[null,null,null,"Änderungen gegenüber dem Vorjahr/letzten Antrag sind nicht eingetreten."]
[]
[null,null,null,"Änderungen sind eingetreten und werden wie folgt begründet:"]
[]
[null,"Name",null,null,"Eingruppierung",null,"Begründung"]
[{"$nulls":4},"bisher","neu"]
[null," "]
[]
[]
[]
[]
[3,"Sonstige öffentliche Mittel (einschließlich EU-Mittel)"]
[]
[null,null,"Für denselben Zweck wurden keine weiteren öffentlichen Mittel beantragt."]
[]
[null,null,"Für denselben Zweck wurden weitere öffentliche Mittel (einschließlich EU-Mittel) beantragt:"]
[]
[null,"Zuwendungsgeber/in",{"$nulls":4},"für lfd. Nr. "]
[]
[]
[]
[]
[]
[]
["Anlagen: "]
[]
[null,null,"Arbeitsplatzbeschreibung: Formblatt A B"]

{"sheet":"A P IJFD","index":13,"n_rows":35,"n_cols":13,"rows_kept":35,"cut":false,"hidden":true,"merged":[[20,0,22,0],[28,1,28,2],[20,4,22,4],[27,1,27,2],[23,4,25,4],[26,4,28,4],[25,1,25,2],[23,0,25,0],[26,0,28,0],[23,1,23,2],[24,1,24,2],[20,1,22,3],[32,0,34,0],[34,1,34,2],[32,4,34,4],[33,1,33,2],[29,0,31,0],[23,5,25,5],[7,11,7,12],[8,11,8,12],[20,11,22,11],[20,12,22,12],[13,8,13,10],[20,10,22,10],[20,9,22,9],[7,6,7,7],[20,5,22,5],[20,6,22,6],[8,6,8,7],[9,6,9,7],[13,1,14,6],[20,7,21,8],[17,1,17,3],[32,5,34,5],[30,1,30,2],[32,1,32,2],[29,4,31,4],[26,5,28,5],[29,5,31,5],[31,1,31,2],[26,1,26,2],[29,1,29,2]]}
["Förderrichtlinien Jugendfreiwilligendienste",{"$nulls":11},"Formblatt A P IJFD"]
["Darstellung von zuwendungsfähigen Personalausgaben beim Internationalen Jugendfreiwilligendienst"]
[{"$nulls":11},"Blatt Nr."]
[null,null,"Antrag"]
[null,null,"Zwischennachweis",{"$nulls":8},"Stand vom"]
[null,null,"Verwendungsnachweis"]
[]
[null,"zum Antrag/ZN/VN vom ",{"$nulls":9},"Bitte pro pädagogische/n Mitarbeiter/-in, für deren/dessen "]
[null,"bezogen auf die Förderperiode",{"$nulls":9},"Personalausgaben die Zuwendung beantragt ist, "]
[null,"für den Zeitraum",{"$nulls":9},"einen Vordruck ausfüllen. "]
[]
[]
[null,"Antragsteller (Name)",{"$nulls":6},"Name und Vorname der/des pädagogischen Mitarbeiterin/Mitarbeiters"]
[]
[]
[]
[null,"Träger-Nr. im IJFD: ",{"$nulls":6},"TVöD-Entgeltgruppe u. Entwicklungsstufe"]
[]
[]
[]
["HHj."," Zeitraum der Tätigkeit in Monaten im Förderjahrgang pro HHj.",null,null,"Gesamt-arbeits-\nzeit in %","Gesamt-arbeits-zeit für IJFD in %","Arbeitszeit für IJFD anteilig für HHj. pro\nFörderperiode in %","zuwendungsfähige Personalausgaben im Maßnahmezeitraum für HHj. pro Förderperiode",null,"Personalgemein-\nkosten für HHj. pro Förderperiode","Sachkosten bezogen \nauf den IJFD für HHj. pro Förderperiode","Summe","Bemerkungen \n(bitte ggf. ein gesondertes Blatt verwenden)"]
[]
[{"$nulls":7}," Arbeitnehmer-Brutto","Arbeitgeberanteil zur SV"]
["2016","2014/15",null,"tt.mm. - tt.mm.",{"$nulls":7},{"$f":"H24+I24+J24+K24","v":0}]
[null,"2015/16",{"$nulls":9},0]
[null,"2016/17",{"$nulls":9},0]
[{"$f":"A24+1","v":2017},"2015/16",{"$nulls":9},0]
[null,"2016/17",{"$nulls":9},0]
[null,"2017/18",{"$nulls":9},0]
[{"$f":"A24+2","v":2018},"2016/17",{"$nulls":9},0]
[null,"2017/18",{"$nulls":9},0]
[null,"2018/19",{"$nulls":9},0]
[{"$f":"A24+3","v":2019},"2017/18",{"$nulls":9},0]
[null,"2018/19",{"$nulls":9},0]
[null,"2019/20",{"$nulls":9},0]

{"sheet":"A B","index":14,"n_rows":103,"n_cols":10,"rows_kept":103,"cut":false,"hidden":false,"merged":[[45,0,48,9],[52,0,55,9],[41,8,41,9],[85,2,85,7],[85,8,85,9],[79,2,79,7],[75,0,78,1],[59,0,62,9],[79,0,82,1],[78,8,78,9],[78,2,78,7],[75,8,75,9],[75,2,75,7],[70,2,70,6],[73,0,74,1],[43,8,43,9],[72,8,72,9],[65,2,66,9],[65,0,66,1],[67,0,68,1],[67,2,68,9],[87,0,90,1],[79,8,79,9],[90,2,90,7],[84,2,84,7],[86,8,86,9],[83,2,83,7],[88,8,88,9],[89,8,89,9],[83,0,86,1],[88,2,88,7],[87,2,87,7],[86,2,86,7],[83,8,83,9],[84,8,84,9],[80,8,80,9],[81,2,81,7],[42,1,42,7],[42,8,42,9],[31,3,31,6],[21,0,21,6],[22,0,23,6],[38,1,38,7],[39,1,39,7],[40,1,40,7],[41,1,41,7],[33,0,33,9],[34,0,34,9],[35,0,36,0],[35,1,36,7],[35,8,36,9],[40,8,40,9],[6,3,6,9],[38,8,38,9],[39,8,39,9],[37,1,37,7],[37,8,37,9],[11,0,13,8],[16,0,18,8],[26,0,28,8],[21,8,21,9],[22,8,23,9],[22,7,23,7],[73,2,74,7],[73,8,74,9],[90,8,90,9],[87,8,87,9],[77,8,77,9],[77,2,77,7],[76,2,76,7],[89,2,89,7],[80,2,80,7],[76,8,76,9],[82,2,82,7],[82,8,82,9],[81,8,81,9],[100,0,100,1],[100,4,100,9],[93,8,93,9],[94,8,94,9],[94,2,94,7],[91,0,94,1],[91,8,91,9],[91,2,91,7],[92,2,92,7],[93,2,93,7],[92,8,92,9]]}
["Förderrichtlinien Jugendfreiwilligendienste ",{"$nulls":8},"Formblatt A B"]
["Arbeitsplatz-/Tätigkeitsbeschreibung"]
["Anlage zum Formblatt A P"]
[]
["Darstellung für eine Personalstelle im Projekt: "]
[null,"IJFD",null,"für einen neuen Arbeitsplatz"]
[null,"FSJ ",null,"für die Änderung eines bereits genehmigten Arbeitsplatzes"]
[null,"FÖJ"]
[null,"Einzelmaßnahme"]
[]
["Antragstellerin/-steller (Kurzbezeichnung)"]
[]
[]
[]
[" "]
["Stellenbezeichnung"]
[]
[]
[]
[]
["Stellenbesetzung"]
["Name",{"$nulls":6},"Geburtsdatum","Entgeltgruppe/Erfahrungsstufe"]
[]
[]
[]
["Anstellungsträgerin/-träger, falls nicht selbst Antragstellerin/-steller"]
[]
[]
[]
[]
[]
["1. Tätigkeiten, beschrieben nach dem Stand vom"]
[]
["1.1 Art und Umfang der am Arbeitsplatz auszuübenden Tätigkeiten."]
["Die Tätigkeiten sind – nach sachlichen Gruppen unter Berücksichtigung des Grades der Mitwirkung an einer Aufgabe – zu ordnen. Sie sind konkret zu beschreiben und entsprechend dem Anteil an der Arbeitszeit prozentual anzugeben. Nur gelegentlich vorkommende Tätigkeiten sollten nicht angegeben werden."]
["lfd. \nNr. ","Tätigkeit, projektbezogen",{"$nulls":6},"Anteil der Arbeitszeit in v. H."]
{"$rows_empty":8}
["1.2 Die Wahrnehmung der Aufgaben erfordert insbesondere folgende Fähigkeiten und Kenntnisse:"]
[]
[]
[]
[]
[]
["2. Befugnisse der Arbeitsplatzinhaberin/des Arbeitsplatzinhabers"]
["(z. B. selbstständige Entscheidungen, einschl. geschäftsordnungsgemäße Vertretung einer/eines Vorgesetzten):"]
[]
[]
[]
[]
[]
["3. Der Arbeitsplatzinhaberin/Dem Arbeitsplatzinhaber sind unmittelbar folgende Personen unterstellt"]
["(Anzahl und Stellengruppen, Fach­ oder Dienstaufsicht):"]
[]
[]
[]
[]
[]
["4.  Die Arbeitsplatzinhaberin/Der Arbeitsplatzinhaber ist folgender Person unmittelbar unterstellt:"]
["Fachaufsicht:"]
[]
["Dienstaufsicht: "]
[]
[]
["5. Die genannten Tätigkeiten sollen ab",{"$nulls":6},"    wahrgenommen werden."]
[]
["6. Tarifliche Bewertung "]
["Zu lfd. Nr. (von 1.1)",null,"Tätigkeitsmerkmal\nErfüllte Anforderungen",{"$nulls":5},"Bemerkungen"]
{"$rows_empty":27}
["Ort, Datum",null,null,null,"Unterschrift(en) der nach Satzung / dem Gesellschaftervertrag "]
[{"$nulls":4},"vertretungsberechtigten Person(en)"]

{"sheet":"N1 R","index":15,"n_rows":78,"n_cols":13,"rows_kept":78,"cut":false,"hidden":false,"merged":[[74,6,74,13],[38,3,39,3],[46,2,46,4],[45,2,45,4],[8,1,8,6],[21,4,21,5],[21,10,21,13],[52,7,53,13],[45,8,45,11],[31,6,31,7],[46,8,46,11],[46,5,46,6],[37,12,37,13],[38,12,39,13],[46,12,46,13],[45,5,45,6],[20,10,20,13],[31,8,31,9],[0,12,0,13],[6,7,6,9],[26,3,26,5],[13,1,16,7],[5,1,5,9],[27,3,27,5],[21,1,21,3],[21,7,21,9],[20,4,20,5],[24,5,24,7],[20,7,20,9],[33,6,33,7],[35,6,35,7],[38,8,39,8],[38,4,39,4],[38,5,39,5]]}
["Förderrichtlinien Jugendfreiwilligendienste ",{"$nulls":11},"Formblatt N 1 R"]
["Verwendungsnachweis für die Regelförderung FSJ/FÖJ nach Nr. II.4.a.(1) u. (2) RL-JFD"]
[]
[]
[null,"Zentralstelle / Landesbehörde"]
[]
[]
[null,"Bundesamt für Familie und zivilgesellschaftliche Aufgaben"]
[null,"Ref. 207 - Zuwendungen im Bereich Jugendfreiwilligendienste"]
[null,"50964 Köln"]
[{"$nulls":9}," "]
[]
[1,"Zuwendungsempfänger / Zuweisungsempfänger"]
[]
[]
[]
[]
[]
[]
[2,"Insgesamt wurden mit "]
[null,"Bescheid/Zuweisungsschreiben vom",null,null,"Aktenzeichen",null,null,"bewilligt",null,null,"davon ausgezahlt"]
[{"$nulls":4},"FKZ:",null,null,0,null,null,0]
[]
[]
[3,"Die Zuwendung / Zuweisung wurde verwendet für das",null,null,null,"Freiwillige Soziale Jahr"]
[]
[null,"für den Förderjahrgang",null,"01.09.2021 - 31.08.2022"]
[null,"für den Abrechnungszeitraum"]
[]
[]
["Nur durch Träger des FSJ/FÖJ und nicht durch die Zentralstelle/Landesbehörde auszufüllen:"]
[4,"Die ausgezahlte Zuwendung / Zuweisung im Umfang von ",{"$nulls":4},{"$f":"K22","v":0},null,"teilt sich auf: "]
[]
[null,{"$f":"IF(D27=\"01.09.2021 - 31.08.2022\",\"den Zeitraum vom 01.09. - 31.12.2021\",(IF(D27=\"01.08.2021 - 31.07.2022\",\"den Zeitraum vom 01.08. - 31.12.2021\",)))","v":"den Zeitraum vom 01.09. - 31.12.2021"},null,null,null,"i.H.v.",0]
[]
[null,{"$f":"IF(D27=\"01.09.2021 - 31.08.2022\",\"den Zeitraum vom 01.01. - 31.08.2022\",(IF(D27=\"01.08.2021 - 31.07.2022\",\"den Zeitraum vom 01.01. - 31.07.2022\")))","v":"den Zeitraum vom 01.01. - 31.08.2022"},null,null,null,"i.H.v.",0]
[]
[null,"Insgesamt ergibt sich : ",{"$nulls":10},"in Anspruch genommen"]
[null,"durchgeführte",null,0,"x",0,"durchschnittlicher",null,"=",null,null,null,{"$f":"D39*F39","v":0}]
[null,"Teilnehmendenmonate N2",{"$nulls":4},"monatl. Festbetrag N2"]
[]
[]
[5,"Der ausgezahlte Betrag wurde wie ",null,null,null,"   Der nicht verwendete Betrag wurde unter Angabe"]
["     folgt in Anspruch genommen:",{"$nulls":4},"   des Kassenzeichens an die Bundeskasse überwiesen:"]
[]
[null,null,"  im Umfang von ",null,null,"nicht verwendete Mittel",null,"Zinsen ","insgesamt ",null,null,null,"überwiesen am:"]
[null,"   Voll",0,null,null,0,null,0,0]
[]
[]
[6,"Ansprechpartner/In (Name, Telefon, Fax, E-Mail)"]
[]
[null,"für inhaltliche Fragen",{"$nulls":5},"für verwaltungsmäßige Fragen"]
[]
[]
[]
[]
[]
["Beigefügt sind: ",{"$nulls":5},"Soweit die Angaben auf Grundlage von Verwendungsnachweisen von"]
[{"$nulls":6},"Letztempfängern beruhen, wurden diese unter Beachtung der"]
[null,"Sachbericht",{"$nulls":4},"Fördervoraussetzungen geprüft. Die Fördermittel sind im Sinne"]
[{"$nulls":6},"der Förderrichtlinien Jugendfreiwilligendienste verwendet worden. "]
[null,"Finanzierungsplan N2"]
[{"$nulls":6},"Die Ausgaben für die pädagogische Begleitung,  einschließlich der mindestens "]
[null,"Teilnehmendenliste",{"$nulls":4},"25 Seminartage sowie bundeszentraler Aufgaben übersteigen die gewährte"]
[{"$nulls":6},"Zuwendung."]
[null,"Sonstiges:"]
[{"$nulls":6},"Die Richtigkeit und Vollständigkeit der in diesem Verwendungsnachweis"]
[{"$nulls":6},"und seinen Anlagen gemachten Angaben wird versichert."]
{"$rows_empty":7}
["Ort, Datum",{"$nulls":5},"Name(n) in Druckbuchstaben und Unterschrift(en) der nach Satzung / dem"]
[{"$nulls":6},"Gesellschaftervertrag vertretungsberechtigten Person(en) bzw. durch die"]
[{"$nulls":6},"zuständige Vertretung der Landesbehörde"]

{"sheet":"N1 F","index":16,"n_rows":78,"n_cols":13,"rows_kept":78,"cut":false,"hidden":false,"merged":[[74,0,74,3],[74,5,74,12],[54,7,55,13],[69,1,69,3],[70,1,70,3],[49,2,49,4],[68,1,68,3],[54,1,55,5],[28,3,28,5],[29,3,29,5],[40,5,41,5],[47,5,47,6],[48,2,48,4],[48,5,48,6],[0,12,0,13],[5,1,5,9],[6,7,6,9],[8,1,8,6],[13,1,16,7],[19,11,19,13],[20,8,20,10],[26,2,26,5],[48,12,48,13],[47,12,47,13],[40,6,41,6],[40,7,40,8],[40,12,41,13],[40,10,41,10],[47,2,47,4],[33,7,33,9],[35,7,35,9],[37,7,37,9],[40,3,41,4],[47,7,47,8],[47,9,47,11],[21,8,21,10],[21,1,21,4],[21,11,21,13],[20,11,20,13],[21,5,21,7]]}
["Förderrichtlinien Jugendfreiwilligendienste ",{"$nulls":11},"Formblatt N 1 F"]
["Verwendungsnachweis zur Förderung von zusätzlichen Ausgaben der Träger zur"]
["pädagogischen Begleitung von Teilnehmenden mit besonderen Förderbedarfen im FSJ/FÖJ nach Nr.II.4.a.(3) RL-JFD"]
[]
[null,"Zentralstelle / Landesbehörde"]
[]
[]
[null,"Bundesamt für Familie und zivilgesellschaftliche Aufgaben"]
[null,"Ref. 207 - Zuwendungen im Bereich Jugendfreiwilligendienste"]
[null,"50964 Köln"]
[{"$nulls":9}," "]
[]
[1,"Zuwendungsempfänger / Zuweisungsempfänger"]
[]
[]
[]
[]
[]
[]
[2,"Insgesamt wurden mit "]
[null,"Bescheid/Zuweisungsschreiben vom",null,null,null,"Aktenzeichen",null,null,"bewilligt",null,null,"davon ausgezahlt"]
[{"$nulls":5},"FKZ:",null,null,0,null,null,0]
[]
[]
[3,"Die Zuwendung / Zuweisung wurde verwendet für Teilnehmende mit besonderen Förderbedarfen,"]
[null,"die zusätzliche Angebote über die reguläre pädagogische Betreuung hinaus erhalten haben, "]
[null,"für das","Freiwillige Ökologische Jahr"]
[]
[null,"für den Förderjahrgang",null,"01.09.2021 - 31.08.2022"]
[null,"für den Abrechnungszeitraum",null," "]
[]
[]
["Nur durch Träger des FSJ/FÖJ und nicht durch die Zentralstelle/Landesbehörde auszufüllen:"]
[4,"Die verwendete Zuwendung / Zuweisung im Umfang von ",{"$nulls":5},0,null,null,"teilt sich auf: "]
[]
[null,{"$f":"IF(D29=\"01.09.2021 - 31.08.2022\",\"den Zeitraum vom 01.09. - 31.12.2021\",(IF(D29=\"01.08.2021 - 31.07.2022\",\"den Zeitraum vom 01.08. - 31.12.2021\")))","v":"den Zeitraum vom 01.09. - 31.12.2021"},{"$nulls":4},"i.H.v.",0]
[]
[null,{"$f":"IF(D29=\"01.09.2021 - 31.08.2022\",\"den Zeitraum vom 01.01. - 31.08.2022\",(IF(D29=\"01.08.2021 - 31.07.2022\",\"den Zeitraum vom 01.01. - 31.07.2022\")))","v":"den Zeitraum vom 01.01. - 31.08.2022"},{"$nulls":4},"i.H.v.",0]
[]
[null,"Insgesamt ergibt sich :",{"$nulls":10},"in Anspruch genommen"]
[null,"durchgeführte ",null,0,null,"x",0,"durchschnittlicher",null,null,"=",null,{"$f":"D41*G41","v":0}]
[null,"Teilnehmendenmonate N4",{"$nulls":5},"monatl. Fehlbedarf N4"]
[]
[]
[5,"Der ausgezahlte Betrag wurde wie ",null,null,null,"   Der nicht verwendete Betrag wurde unter Angabe"]
["     folgt in Anspruch genommen:",{"$nulls":4},"   des Kassenzeichens an die Bundeskasse überwiesen:"]
[]
[null,null,"im Umfang von ",null,null,"nicht verwendete Mittel ",null,"Zinsen",null,"insgesamt",null,null,"überwiesen am:"]
[null,"   Voll",0,null,null,0,null,null,0,null,0]
[]
[]
[6,"Ansprechpartner/In (Name, Telefon, Fax, E-Mail)"]
[]
[null,"für inhaltliche Fragen",{"$nulls":5},"für verwaltungsmäßige Fragen"]
[]
[]
[]
[]
[]
["Beigefügt sind:",{"$nulls":4},"Soweit die Angaben auf Grundlage von Verwendungsnachweisen von Letztempfängern"]
[{"$nulls":5},"beruhen, wurden diese unter Beachtung der Fördervoraussetzungen geprüft. Die Fördermittel"]
[null,"Sachbericht",null,null,null,"sind im Sinne der Förderrichtlinien Jugendfreiwilligendienste verwendet worden. "]
[]
[null,"Finanzierungsplan N4",null,null,null,"Die Ausgaben für pädagogische Maßnahmen über das reguläre Angebot hinaus"]
[{"$nulls":5},"übersteigen die gewährte Zuwendung."]
[null,"Teilnehmendenliste"]
[{"$nulls":5},"Die Richtigkeit und Vollständigkeit der in diesem Verwendungsnachweis"]
[null,"Sonstiges:",null,null,null,"und seinen Anlagen gemachten Angaben wird versichert."]
{"$rows_empty":7}
["Ort, Datum",{"$nulls":4},"Name(n) in Druckbuchstaben und Unterschrift(en) der nach Satzung / dem"]
[{"$nulls":5},"Gesellschaftervertrag vertretungsberechtigten Person(en) bzw. durch die"]
[{"$nulls":5},"zuständige Vertretung der Landesbehörde"]

{"sheet":"N3","index":17,"n_rows":48,"n_cols":16,"rows_kept":48,"cut":false,"hidden":false,"merged":[[45,0,45,4],[45,9,45,15],[27,12,27,13],[28,12,28,13],[31,0,31,2],[37,9,37,10],[16,1,16,3],[29,4,29,6],[29,13,29,14],[26,1,26,3],[27,1,27,3],[29,0,30,3],[20,1,20,3],[24,1,24,3],[25,1,25,3],[21,1,21,3],[26,12,26,13],[18,12,18,13],[19,12,19,13],[20,12,20,13],[29,8,29,10],[21,12,21,13],[15,1,15,3],[1,0,1,12],[28,0,28,3],[6,0,6,15],[4,3,4,15],[12,0,13,0],[12,1,13,3],[17,1,17,3],[22,1,22,3],[23,1,23,3],[12,15,13,15],[18,1,18,3],[19,1,19,3],[2,9,2,10],[2,0,2,1],[4,0,4,2],[14,1,14,3],[10,1,10,15],[9,0,9,15],[7,1,7,15],[12,8,12,10],[12,4,12,6],[12,14,13,14],[12,7,13,7],[22,12,22,13],[23,12,23,13],[24,12,24,13],[25,12,25,13],[12,11,13,11],[12,12,13,13],[14,12,14,13],[15,12,15,13],[16,12,16,13],[17,12,17,13]]}
["Förderrichtlinien Jugendfreiwilligendienste",{"$nulls":14},"Formblatt N 3"]
["Sammelverwendungsnachweis/Stellungnahme zur Regelförderung des FSJ/FÖJ nach Nr. II.4.a.(1) und (2) im Zentralstellen- bzw. Länderverfahren"]
["Jahrgang: ",null,"01.09.2021 - 31.08.2022",{"$nulls":5},"Nachweiszeitraum: ",{"$f":"C3","v":"01.09.2021 - 31.08.2022"}]
[]
["Zentralstelle/Landesbehörde:"]
[]
["Zentralstellenverfahren (FSJ)"]
[null,"Nachstehenden Trägern wurden auf der Grundlage von privatrechtlichen Weiterleitungsverträgen Zuwendungen des Bundes zur Durchführung eines FSJ weitergeleitet. Die Verwendungsnachweise liegen vor und wurden durch die Zentralstelle geprüft. Im Nachfolgenden sind alle Angaben zur erfolgten Förderung eingetragen. Es wird bestätigt, dass die geltend gemachten Ausgaben der genannten Träger sachgerecht, zweckentsprechend und wirtschaftlich erfolgten. "]
[]
["Länderverfahren (FÖJ)"]
[null,"Nachstehenden Trägern wurden Zuwendungen des Bundes zur Durchführung eines FÖJ gewährt. Die Verwendungsnachweise liegen vor und wurden durch die zuständige Landesstelle geprüft. Im Nachfolgenden sind alle Angaben zur erfolgten Förderung eingetragen. Es wird bestätigt, dass die geltend gemachten Ausgaben der genannten Träger sachgerecht, zweckentsprechend und wirtschaftlich erfolgten."]
[]
[null,"Trägername, Ort",null,null,"durchgeführte Teilnehmendenmonate",null,null,"durchschnittlicher monatlicher Festbetrag N2","in Anspruch genommene Zuwendung",null,null,"zuwendungsfähige Gesamtausgaben für päd. Begleitung","Bemerkungen"]
[{"$nulls":4},{"$f":"IF(C3=\"01.08.2021 - 31.07.2022\",\"08-12/2021\",(IF(C3=\"01.09.2021 - 31.08.2022\",\"09-12/2021\")))","v":"09-12/2021"},{"$f":"IF(C3=\"01.08.2021 - 31.07.2022\",\"01-07/2022\",(IF(C3=\"01.09.2021 - 31.08.2022\",\"01-08/2022\")))","v":"01-08/2022"},"insgesamt",null,{"$f":"E14","v":"09-12/2021"},{"$f":"F14","v":"01-08/2022"},"insgesamt"]
[1,{"$nulls":5},{"$f":"SUM(E15:F15)","v":0},null,null,null,{"$f":"SUM(I15:J15)","v":0}]
[2,{"$nulls":5},{"$f":"SUM(E16:F16)","v":0},null,null,null,{"$f":"SUM(I16:J16)","v":0}]
[3,{"$nulls":5},0,null,null,null,0]
[4,{"$nulls":5},0,null,null,null,0]
[5,{"$nulls":5},0,null,null,null,0]
[6,{"$nulls":5},0,null,null,null,0]
[7,{"$nulls":5},0,null,null,null,0]
[8,{"$nulls":5},0,null,null,null,0]
[9,{"$nulls":5},0,null,null,null,0]
[10,{"$nulls":5},0,null,null,null,0]
[11,{"$nulls":5},0,null,null,null,0]
[12,{"$nulls":5},0,null,null,null,0]
[13,{"$nulls":5},0,null,null,null,0]
[14,{"$nulls":5},0,null,null,null,0]
["Gesamt:",null,null,null,{"$f":"SUM(E15:E28)","v":0},{"$f":"SUM(F15:F28)","v":0},0,null,{"$f":"SUM(I15:I28)","v":0},{"$f":"SUM(J15:J28)","v":0},{"$f":"SUM(K15:K28)","v":0},{"$f":"SUM(L15:L28)","v":0}]
["Bundestutorat, Ort",null,null,null,"in Anspruch genommener Einbehalt für Bundestutorat",null,null,null,"weitergeleitete Mittel"]
[{"$nulls":4},{"$f":"E14","v":"09-12/2021"},{"$f":"F14","v":"01-08/2022"},"insgesamt",null,{"$f":"I14","v":"09-12/2021"},{"$f":"J14","v":"01-08/2022"},"insgesamt"]
["Einbehalt Bundestutorat/Teilnehmendenmonat",null,null,0,{"$nulls":4},{"$f":"I29-E32","v":0},{"$f":"J29-F32","v":0},{"$f":"K29-G32","v":0}]
["Anlagen"]
[null,"Formblätter N2- Zahlenmäßige Nachweise der einzelnen Träger"]
[{"$nulls":9},"Die Zentralstelle / das Land bestätigt, dass die Verwendungsnachweise "]
[null,"Formblätter N TN1-Teilnehmendenlisten der einzelnen Träger ",{"$nulls":7},"der in der Stellungnahme aufgeführten Träger geprüft und die "]
[{"$nulls":9},"Fördermittel in den Jugendfreiwilligendiensten ordnungsgemäß abgerechnet wurden. "]
[null,"Formblatt N6 Verwendungsnachweis Einbehalt für das Bundestutorat"]
[{"$nulls":9},"Die Richtigkeit und Vollständigkeit der in diesem Antrag und seinen Anlagen "]
[null,"Belegliste Einnahmen/Ausgaben Bundestutorat",{"$nulls":7},"gemachten Angaben wird versichert."]
[]
[null,"Sachbericht als Zusammenfassung der Träger-Sachberichte"]
[]
[null,"Sachbericht des Bundestutorats"]
[]
[]
["Ort, Datum",{"$nulls":8},"Name(n) in Druckbuchstaben und Unterschrift(en) der nach Satzung / dem Gesellschaftervertrag"]
[{"$nulls":9},"vertretungsberechtigten Person(en) bzw. durch die Vertretung des zuständigen Landesministeriums"]

{"sheet":"N5","index":18,"n_rows":36,"n_cols":13,"rows_kept":36,"cut":false,"hidden":false,"merged":[[17,1,17,3],[18,1,18,3],[14,1,14,3],[21,1,21,3],[22,1,22,3],[15,1,15,3],[16,1,16,3],[34,0,34,4],[34,7,34,12],[24,0,24,3],[19,1,19,3],[20,1,20,3],[23,1,23,3],[9,0,9,12],[10,1,10,12],[12,0,13,0],[12,1,13,3],[12,7,13,7],[12,8,12,9],[12,12,13,12],[12,11,13,11],[12,4,12,6],[12,10,13,10],[6,0,6,12],[7,1,7,12],[2,7,2,8],[1,0,1,9],[2,0,2,1],[4,0,4,2],[4,3,4,12]]}
["Förderrichtlinien Jugendfreiwilligendienste",{"$nulls":11},"Formblatt N 5"]
["Sammelverwendungsnachweis/Stellungnahme zur Förderung von Teilnehmenden mit besonderen Förderbedarf im FSJ/FÖJ nach Nr. II.4.a.(3) RL-JFD für Zentralstellen- oder Länderverfahren"]
["Jahrgang: ",null,"01.09.2021 - 31.08.2022",null,null,null,"Nachweiszeitraum:",{"$f":"C3","v":"01.09.2021 - 31.08.2022"}]
[]
["Zentralstelle/Landesministerium:"]
[]
["Zentralstellenverfahren (FSJ)"]
[null,"Nachstehenden Trägern wurden auf der Grundlage von privatrechtlichen Weiterleitungsverträgen Zuwendungen des Bundes zur Durchführung einer zusätzlichen pädagogischen Begleitung für Teilnehmende am FSJ mit besonderem Förderbedarf weitergeleitet. Die Verwendungsnachweise liegen vor und wurden durch die Zentralstelle geprüft. Im Nachfolgenden sind alle Angaben zur erfolgten Förderung eingetragen. Es wird bestätigt, dass die geltend gemachten Ausgaben der genannten Träger sachgerecht, zweckentsprechend und wirtschaftlich erfolgten. "]
[]
["Länderverfahren (FÖJ)"]
[null,"Nachstehenden Trägern wurden Zuwendungen des Bundes zur Durchführung einer zusätzlichen pädagogischen Begleitung für Teilnehmende am FÖJ mit besonderem Förderbedarf gewährt. Die Verwendungsnachweise liegen vor und wurden durch die zuständige Landesstelle geprüft. Im Nachfolgenden sind alle Angaben zur erfolgten Förderung eingetragen. Es wird bestätigt, dass die geltend gemachten Ausgaben der genannten Träger sachgerecht, zweckentsprechend und wirtschaftlich erfolgten."]
[]
[null,"Trägername, Ort",null,null," durchgeführte Teilnehmendenmonate",null,null,"durchschnittlicher monatlicher Fehlbedarf N4","in Anspruch genommene Zuwendung",null,"Gesamtsumme der in Anspruch genommenen  Zuwendung","zuwendungsfähige Gesamtausgaben für päd. Begleitung","Bemerkungen"]
[{"$nulls":4},{"$f":"IF(C3=\"01.08.2021 - 31.07.2022\",\"08-12/2021\",(IF(C3=\"01.09.2021 - 31.08.2022\",\"09-12/2021\")))","v":"09-12/2021"},{"$f":"IF(C3=\"01.08.2021 - 31.07.2022\",\"01-07/2022\",(IF(C3=\"01.09.2021 - 31.08.2022\",\"01-08/2022\")))","v":"01-08/2022"},"insgesamt",null,{"$f":"E14","v":"09-12/2021"},{"$f":"F14","v":"01-08/2022"}]
[1,{"$nulls":5},{"$f":"SUM(E15:F15)","v":0},null,null,null,{"$f":"I15+J15","v":0}]
[2,{"$nulls":5},{"$f":"SUM(E16:F16)","v":0},null,null,null,{"$f":"I16+J16","v":0}]
[3,{"$nulls":5},0,null,null,null,0]
[4,{"$nulls":5},0,null,null,null,0]
[5,{"$nulls":5},0,null,null,null,0]
[6,{"$nulls":5},0,null,null,null,0]
[7,{"$nulls":5},0,null,null,null,0]
[8,{"$nulls":5},0,null,null,null,0]
[9,{"$nulls":5},0,null,null,null,0]
[10,{"$nulls":5},0,null,null,null,0]
["Gesamt:",null,null,null,{"$f":"SUM(E15:E24)","v":0},{"$f":"SUM(F15:F24)","v":0},0,null,{"$f":"SUM(I15:I24)","v":0},{"$f":"SUM(J15:J24)","v":0},{"$f":"SUM(K15:K24)","v":0},{"$f":"SUM(L15:L24)","v":0}]
[]
["Anlagen"]
[null,"zahlenmäßiger Nachweis der einzelnen Träger N4"]
[]
[null,"Teilnehmendenlisten der Träger TNL-F"]
[]
[null,"Trägersachberichte zu den jeweiligen Projekten"]
[]
[]
[]
["Ort, Datum"]

{"sheet":"N7","index":19,"n_rows":72,"n_cols":12,"rows_kept":72,"cut":false,"hidden":true,"merged":[[28,2,28,4],[16,5,16,6],[29,8,29,10],[25,8,25,11],[28,5,28,6],[28,8,28,10],[17,10,17,11],[29,5,29,6],[29,2,29,4],[2,3,2,5],[17,7,17,8],[21,2,21,4],[16,8,16,10],[5,0,5,5],[10,1,12,4],[17,1,17,2],[3,9,3,11],[4,9,4,11],[17,4,17,5],[69,0,69,3],[69,5,69,11],[55,1,55,11],[53,1,53,11],[47,1,48,4],[47,6,48,11],[30,8,30,10],[30,2,30,4],[41,1,41,5],[34,3,34,4],[35,3,35,4],[36,3,36,4],[37,3,37,4],[30,5,30,6]]}
["Förderrichtlinie Jugendfreiwilligendienste",{"$nulls":10},"Formblatt N 7"]
["Verwendungsnachweis zur Förderung des Internationalen Jugendfreiwilligendienstes nach Nr. II.4.b. RL-JFD"]
["für den Nachweiszeitraum "]
[{"$nulls":9},"Zwischennachweis"]
["Bundesamt für Familie und zivilgesellschaftliche Aufgaben",{"$nulls":8},"Verwendungsnachweis"]
["Ref. 207 - Internationaler Jugendfreiwilligendienst"]
["50964 Köln"]
[{"$nulls":9}," "]
[]
[" 1.","Zuwendungsempfänger (Kurzbezeichnung)"]
[{"$nulls":6},"Trägernummer: "]
[]
[]
[]
[]
[" 2.","Bewilligt mit Bescheid vom ",null,null,"Aktenzeichen",null,null,"Bewilligungsbetrag ",null,null,"Auszahlungsbetrag"]
["  ","(TT.MM.JJJJ)"]
[]
[]
[]
[" 3.","Die Zuwendung wurde verwendet für  den Internationalen Jugendfreiwilligendienst. "]
[null,"im Jahrgang: ","2020/2021"]
[]
[]
["4.","Der ausgezahlte Betrag wurde wie ",null,null,null,"   Der nicht verwendete Betrag wurde unter Angabe"]
[null,"folgt in Anspruch genommen:",null,null,null,"   des Kassenzeichens"]
[{"$nulls":5},"   an die Bundeskasse überwiesen: "]
[]
[null,null,"teilweise in Höhe von",null,null,"nicht verwendete Mittel",null,"Zinsen €","Insgesamt €",null,null,"überwiesen am:"]
[null,"Voll",{"$nulls":6},{"$f":"F30+H30","v":0}]
[{"$nulls":8},{"$f":"F31+H31","v":0}]
[]
["5.","Die verwendete Zuwendung teilt sich folgendermaßen auf:"]
[]
[null,"Haushaltsjahr: ",{"$f":"IF(C22=\"2016/2017\",\"2016\",IF(C22=\"2015/2016\",\"2015\",IF(C22=\"2017/2018\",\"2017\",IF(C22=\"2018/2019\",\"2018\",IF(C22=\"2019/2020\",\"2019\")))))","v":false},{"$f":"'A8-N8'!C64","v":0}]
[null,"Haushaltsjahr: ",{"$f":"IF(C22=\"2016/2017\",\"2017\",IF(C22=\"2015/2016\",\"2016\",IF(C22=\"2017/2018\",\"2018\",IF(C22=\"2018/2019\",\"2019\",IF(C22=\"2019/2020\",\"2020\")))))","v":false},{"$f":"'A8-N8'!D64","v":0}]
[null,"Haushaltsjahr: ",{"$f":"IF(C22=\"2016/2017\",\"2018\",IF(C22=\"2015/2016\",\"2017\",IF(C22=\"2017/2018\",\"2019\",IF(C22=\"2018/2019\",\"2020\",IF(C22=\"2019/2020\",\"2021\")))))","v":false},{"$f":"'A8-N8'!E64","v":0}]
[null,"Gesamt:",null,{"$f":"D35+D36+D37","v":0}]
[]
[null," Teilnehmenden-monate",{"$f":"'A8-N8'!C8","v":0},"X",null,"(Festbetrag gemäß Zuwendungsbescheid)"]
[]
[null,{"$f":"IF(C22=\"2016/2017\",\"Dienstantritte im Zeitraum 01.06.2016 bis 31.05.2017:\",IF(C22=\"2015/2016\",\"Dienstantritte im Zeitraum 01.06.2015 bis 31.05.2016:\",IF(C22=\"2017/2018\",\"Dienstantritte im Zeitraum 01.06.2017 bis 31.05.2018:\",IF(C22=\"2018/2019\",\"Dienstantritte im Zeitraum 01.06.2018 bis 31.05.2019:\",IF(C22=\"2019/2020\",\"Dienstantritte im Zeitraum 01.06.2019 bis 31.05.2020:\")))))","v":false}]
[]
[]
["6.","Ansprechpartner/In (Name, Telefon, Fax, E-Mail-Adresse)"]
[]
[null,"für inhaltliche Fragen",{"$nulls":4},"für Abrechnungsfragen"]
[]
[]
[]
[]
["Erklärungen: "]
[]
[null,"Die tatsächlichen Ausgaben für die pädagogische Begleitung, das Taschengeld, die Versicherungen, die Reisekostsen sowie Unterkunft und Verpflegung übersteigen die gewährte Zuwendung."]
[]
[null,"Die Richtlinie zur Umsetzung des \"Internationalen Jugendfreiwilligendienste\" vom 20.12.2010 in der Fassung vom 17.04.2014 einschließlich der Absolvierung angemessener Seminartage wurde beachtet. "]
[]
[null,"Das Rundschreiben mit der Darstellung der zuwendungsfähigen Positionen für die Förderung des IJFD wurde beachtet."]
[]
[null,"Die Richtigkeit und Vollständigkeit der in diesem Verwendungsnachweis und seinen Anlagen gemachten Angaben wird versichert."]
[]
["Beigefügt sind:"]
[]
[null,"Teilnehmendenliste",{"$nulls":4},"Sachbericht"]
[]
[null,"Finanzierungsplan Formblatt N 8",{"$nulls":4},"Belegliste"]
[]
[]
[]
[]
["Ort, Datum",{"$nulls":4},"Name(n) in Druckbuchstaben und Unterschrift(en) der nach Satzung / "]
[{"$nulls":5},"dem Gesellschaftervertrag vertretungsberechtigten Person(en)"]

{"sheet":"N9","index":20,"n_rows":65,"n_cols":10,"rows_kept":65,"cut":false,"hidden":false,"merged":[[62,0,62,3],[42,1,44,5],[42,6,44,9],[35,1,35,3],[35,4,35,5],[35,6,35,7],[35,8,35,9],[36,6,36,7],[36,8,36,9],[62,5,62,9],[2,3,2,5],[33,6,33,7],[33,8,33,9],[34,6,34,7],[34,8,34,9],[20,1,23,7],[13,1,16,7],[7,1,7,6]]}
["Förderrichtlinien Jugendfreiwilligendienste ",{"$nulls":8},"Formblatt N 9"]
["Verwendungsnachweis für zur Förderung von Modellvorhaben / für sonstige Einzelmaßnahmen"]
["für den Nachweiszeitraum "]
[]
[]
[null,"Bundesamt für Familie und zivilgesellschaftliche"]
[null,"Aufgaben"]
[null,"Ref. 207 - Internationaler Jugendfreiwilligendienst"]
[null,"50964 Köln"]
[]
[]
[]
[1,"Zuwendungsempfänger (Name, Anschrift)"]
[]
[]
[]
[]
[]
[]
[2,"Kurzbezeichnung der Maßnahme"]
[]
[]
[]
[]
[]
[]
[3,"Die Zuwendung wurde bewilligt für"]
[]
[null,null,"ein Modellvorhaben nach Nr. II.4.c. RL-JFD"]
[]
[null,null,"eine sonstige Einelmaßnahme nach Nr. II.4.d. RL-JFD "]
[]
[]
[4,"Insgesamt wurden bewilligt",null,null,"   Aktenzeichen",null,"bewilligt",null,"Auszahlungsbetrag €"]
[null,"mit Bescheid vom ",{"$nulls":4},"in Euro"]
[]
[]
[]
[]
[5,"Ansprechpartner/In (Name, Telefon, Fax, E-Mail)"]
[]
[null,"für inhaltliche Fragen",{"$nulls":4},"für verwaltungsmäßige Fragen"]
[]
[]
[]
[]
[]
["Beigefügt sind: "]
[{"$nulls":5},"Soweit Verwendungsnachweise von Letztempfängern enthalten sind,"]
[{"$nulls":5},"wurden diese unter Beachtung der Fördervoraussetzungen geprüft."]
[null,"Sachbericht"]
[{"$nulls":5},"Die Fördermittel sind im Sinne der Förderrichtlinien Jugendfreiwilligendienste"]
[{"$nulls":5},"verwendet worden. Die Belege zu den einzelnen geförderten Projekten werden nicht"]
[null,"Finanzierungsplan (ggf. N10)",null,null,null,"beigefügt, jedoch für eine evtl. Nachprüfung mindestens 5 Jahre aufbewahrt."]
[]
[{"$nulls":5},"Die Richtigkeit und Vollständigkeit der in diesem Gesamtverwendungsnachweis"]
[{"$nulls":5},"und seinen Anlagen gemachten Angaben wird versichert."]
[]
[]
[]
[]
[]
[]
["Ort, Datum ",{"$nulls":4},"Name(n) in Druckbuchstaben und Unterschrift(en) der nach Satzung / dem"]
[{"$nulls":5},"Gesellschaftervertrag vertretungsberechtigten Person(en) "]

{"sheet":"N P","index":21,"n_rows":64,"n_cols":14,"rows_kept":64,"cut":false,"hidden":false,"merged":[[39,3,41,6],[53,8,53,11],[39,9,41,13],[39,1,41,2],[52,2,52,7],[53,2,53,7],[39,7,41,7],[39,8,41,8],[61,7,61,13],[54,2,54,7],[54,8,54,11],[52,12,52,13],[52,8,52,11],[53,12,53,13],[54,12,54,13],[61,0,61,4],[33,3,35,6],[5,1,8,8],[33,9,35,13],[36,9,38,13],[13,12,13,13],[13,1,13,4],[30,7,31,13],[13,8,13,11],[19,6,19,8],[13,5,13,7],[36,1,38,2],[36,3,38,6],[33,7,35,7],[36,7,38,7],[33,8,35,8],[36,8,38,8]]}
["Förderrichtlinien Jugendfreiwilligendienste ",{"$nulls":12},"Formblatt N P"]
["Anlage zum Verwendungsnachweis bei Förderung von Personalausgaben "]
[]
[]
[1,"Zuwendungsempfänger (Name und Anschrift)"]
[]
[]
[]
[]
[]
[2,"Die verwendeten Mittel wurden bewilligt"]
[]
["     für","mit Bescheid vom",null,null,null,"Aktenzeichen",null,null,"für Personalausgaben €",null,null,null,"Davon verwendet €"]
[]
[null,"Der verwendete Gesamtbetrag gliedert sich wie folgt auf:"]
[]
[null,"Für Personal des Antragstellers:"]
[]
[null,"Anzahl der Personen",{"$nulls":4},"Gesamtausgaben in €"]
[]
[]
[]
[null,"Änderungen hinsichtlich der Stellenbewertungen und Stellenbesetzungen (einschl. Bewährungsaufstieg)"]
[null,"sind gegenüber der Bewilligung"]
[]
[null,null,"nicht eingetreten"]
[]
[null,null,"sind eingetreten und werden wie folgt begründet"]
[]
[]
[null,"Lfd.Nr.",null,"Name",null,null,null,"Änderungen der Vergütungsgruppe bzw. Anteil der Arbeitszeit im Rahmen der\n zuwendungsfähigen Aufgaben"]
[null,"in A P"]
[{"$nulls":7},"bisher","neu","Begründung"]
{"$rows_empty":10}
[3,"Sonstige öffentliche Mittel (einschließlich Europa-Mittel)"]
[]
[null,null,"Für denselben Zweck wurden"]
[null,null,"keine weiteren öffentlichen Mittel verwendet."]
[]
[null,null,"Für denselben Zweck wurden"]
[null,null,"folgende weitere öffentliche Mittel verwendet."]
[{"$nulls":12},"für lfd. Nr."]
[null,null,"Zuwendungsgeber/in",{"$nulls":6},"in €",null,null,"im Formblatt A P"]
[]
[]
[]
[]
[]
[{"$nulls":7},"Es wird bestätigt, dass die im Formblatt A P genannten"]
[{"$nulls":7},"Personalstellen wie dort vorgesehen besetzt gewesen sind."]
[]
[]
[]
["Ort, Datum",{"$nulls":6},"Unterschrift(en) der nach Satzung / dem Gesellschaftervertrag"]
[{"$nulls":7},"vertretungsberechtigten Person(en)"]

{"sheet":"N TN 1","index":22,"n_rows":2015,"n_cols":11,"rows_kept":2015,"cut":false,"hidden":false,"merged":[[9,0,9,10],[10,1,11,1],[10,8,11,8],[10,2,11,2],[10,10,11,10],[10,3,11,3],[10,4,11,4],[10,5,11,5],[10,6,10,7],[10,0,11,0],[10,9,11,9],[0,9,0,10],[7,2,7,10],[0,0,0,4],[1,0,1,10],[5,2,5,10],[6,2,6,10]]}
["Förderrichtlinie Jugendfreiwilligendienste",{"$nulls":8},"Formblatt N TN 1"]
["Teilnehmendenliste für die Förderung des Freiwilligen Sozialen Jahres/Freiwilligen Ökologischen Jahres \nnach Nr. II.4.a. RL-JFD"]
["Anlage zum Verwendungsnachweis"]
[]
[]
[null,"Träger"]
[null,"Förderzeitraum:","01.09.2021 - 31.08.2022"]
[null,"Summe TNM bez. auf den Förderzeitraum",{"$f":"SUM(I13:I2015)","v":0}]
[]
["Daten zum/zur Freiwilligen"]
["lfd. \nNr. ","Name, Vorname","Geburtsdatum\n(TT.MM.JJJJ)","Alter zum Zeitpunkt des Dienstende","Dienstbeginn (TT.MM.JJJJ)","Dienstende (TT.MM.JJJJ)","bezogen auf Dienstbeginn - Dienstende\nvorgesehenen",null,"Anzahl TN-Monate bezogen auf den Förderzeitraum","bei Teilzeit bitte Stundenzahl pro Woche angeben","Bemerkungen"]
[{"$nulls":6},"Anzahl TN-Monate ","Anzahl \nSeminartage"]
[1,null,null,{"$f":"DATEDIF(C13,F13,\"Y\")","v":0},null,null,{"$f":"(YEAR(F13)-YEAR(E13))*12+MONTH(F13)-MONTH(E13)+1","v":1},null,{"$f":"IF(AND(E13<=DATEVALUE(MID($C$7,1,10)),F13>=DATEVALUE(MID($C$7,14,10))), (YEAR(DATEVALUE(MID($C$7,14,10)))-YEAR(DATEVALUE(MID($C$7,1,10))))*12+(MONTH(DATEVALUE(MID($C$7,14,10)))-MONTH(DATEVALUE(MID($C$7,1,10))))+1,IF(AND(E13<=DATEVALUE(MID($C$7,1,10)),F13<DATEVALUE(MID($C$7,14,10)),F13>=DATEVALUE(MID($C$7,1,10))),(YEAR(F13)-YEAR(DATEVALUE(MID($C$7,1,10))))*12+(MONTH(F13)-MONTH(DATEVALUE(MID($C$7,1,10))))+1,IF(AND(E13>DATEVALUE(MID($C$7,1,10)),F13>=DATEVALUE(MID($C$7,14,10)),E13<=DATEVALUE(MID($C$7,14,10))),(YEAR(DATEVALUE(MID($C$7,14,10)))-YEAR(E13))*12+(MONTH(DATEVALUE(MID($C$7,14,10)))-MONTH(E13))+1,IF(AND(E13>DATEVALUE(MID($C$7,1,10)),F13<DATEVALUE(MID($C$7,14,10))),(YEAR(F13)-YEAR(E13))*12+(MONTH(F13)-MONTH(E13))+1,0))))","v":0}]
[2,null,null,{"$f":"DATEDIF(C14,F14,\"Y\")","v":0},null,null,1,null,0]
[3,null,null,0,null,null,{"$f":"(YEAR(F15)-YEAR(E15))*12+MONTH(F15)-MONTH(E15)+1","v":1},null,0]
[4,null,null,0,null,null,1,null,0]
[5,null,null,0,null,null,1,null,0]
[6,null,null,0,null,null,1,null,0]
[7,null,null,0,null,null,1,null,0]
[8,null,null,0,null,null,1,null,0]
[9,null,null,0,null,null,1,null,0]
[10,null,null,0,null,null,1,null,0]
[11,null,null,0,null,null,1,null,0]
[12,null,null,0,null,null,1,null,0]
[13,null,null,0,null,null,1,null,0]
[14,null,null,0,null,null,1,null,0]
[15,null,null,0,null,null,1,null,0]
[16,null,null,0,null,null,1,null,0]
[17,null,null,0,null,null,1,null,0]
[18,null,null,0,null,null,1,null,0]
[19,null,null,0,null,null,1,null,0]
[20,null,null,0,null,null,1,null,0]
[21,null,null,0,null,null,1,null,0]
[22,null,null,0,null,null,1,null,0]
[23,null,null,0,null,null,1,null,0]
[24,null,null,0,null,null,1,null,0]
[25,null,null,0,null,null,1,null,0]
[26,null,null,0,null,null,1,null,0]
[27,null,null,0,null,null,1,null,0]
[28,null,null,0,null,null,1,null,0]
[29,null,null,0,null,null,1,null,0]
[30,null,null,0,null,null,1,null,0]
[31,null,null,0,null,null,1,null,0]
[32,null,null,0,null,null,1,null,0]
[33,null,null,0,null,null,1,null,0]
[34,null,null,0,null,null,1,null,0]
[35,null,null,0,null,null,1,null,0]
[36,null,null,0,null,null,1,null,0]
[37,null,null,0,null,null,1,null,0]
[38,null,null,0,null,null,1,null,0]
[39,null,null,0,null,null,1,null,0]
[40,null,null,0,null,null,1,null,0]
[41,null,null,0,null,null,1,null,0]
[42,null,null,0,null,null,1,null,0]
[43,null,null,0,null,null,1,null,0]
[44,null,null,0,null,null,1,null,0]
[45,null,null,0,null,null,1,null,0]
[46,null,null,0,null,null,1,null,0]
[47,null,null,0,null,null,1,null,0]
[48,null,null,0,null,null,1,null,0]
[49,null,null,0,null,null,1,null,0]
[50,null,null,0,null,null,1,null,0]
[51,null,null,0,null,null,1,null,0]
[52,null,null,0,null,null,1,null,0]
[53,null,null,0,null,null,1,null,0]
[54,null,null,0,null,null,1,null,0]
[55,null,null,0,null,null,1,null,0]
[56,null,null,0,null,null,1,null,0]
[57,null,null,0,null,null,1,null,0]
[58,null,null,0,null,null,1,null,0]
[59,null,null,0,null,null,1,null,0]
[60,null,null,0,null,null,1,null,0]
[61,null,null,0,null,null,1,null,0]
[62,null,null,0,null,null,1,null,0]
[63,null,null,0,null,null,1,null,0]
[64,null,null,0,null,null,1,null,0]
[65,null,null,0,null,null,{"$f":"(YEAR(F77)-YEAR(E77))*12+MONTH(F77)-MONTH(E77)+1","v":1},null,0]
[66,null,null,{"$f":"DATEDIF(C78,F78,\"Y\")","v":0},null,null,1,null,{"$f":"IF(AND(E78<=DATEVALUE(MID($C$7,1,10)),F78>=DATEVALUE(MID($C$7,14,10))), (YEAR(DATEVALUE(MID($C$7,14,10)))-YEAR(DATEVALUE(MID($C$7,1,10))))*12+(MONTH(DATEVALUE(MID($C$7,14,10)))-MONTH(DATEVALUE(MID($C$7,1,10))))+1,IF(AND(E78<=DATEVALUE(MID($C$7,1,10)),F78<DATEVALUE(MID($C$7,14,10)),F78>=DATEVALUE(MID($C$7,1,10))),(YEAR(F78)-YEAR(DATEVALUE(MID($C$7,1,10))))*12+(MONTH(F78)-MONTH(DATEVALUE(MID($C$7,1,10))))+1,IF(AND(E78>DATEVALUE(MID($C$7,1,10)),F78>=DATEVALUE(MID($C$7,14,10)),E78<=DATEVALUE(MID($C$7,14,10))),(YEAR(DATEVALUE(MID($C$7,14,10)))-YEAR(E78))*12+(MONTH(DATEVALUE(MID($C$7,14,10)))-MONTH(E78))+1,IF(AND(E78>DATEVALUE(MID($C$7,1,10)),F78<DATEVALUE(MID($C$7,14,10))),(YEAR(F78)-YEAR(E78))*12+(MONTH(F78)-MONTH(E78))+1,0))))","v":0}]
[67,null,null,0,null,null,1,null,0]
[68,null,null,0,null,null,1,null,0]
[69,null,null,0,null,null,1,null,0]
[70,null,null,0,null,null,1,null,0]
[71,null,null,0,null,null,1,null,0]
[72,null,null,0,null,null,1,null,0]
[73,null,null,0,null,null,1,null,0]
[74,null,null,0,null,null,1,null,0]
[75,null,null,0,null,null,1,null,0]
[76,null,null,0,null,null,1,null,0]
[77,null,null,0,null,null,1,null,0]
[78,null,null,0,null,null,1,null,0]
[79,null,null,0,null,null,1,null,0]
[80,null,null,0,null,null,1,null,0]
[81,null,null,0,null,null,1,null,0]
[82,null,null,0,null,null,1,null,0]
[83,null,null,0,null,null,1,null,0]
[84,null,null,0,null,null,1,null,0]
[85,null,null,0,null,null,1,null,0]
[86,null,null,0,null,null,1,null,0]
[87,null,null,0,null,null,1,null,0]
[88,null,null,0,null,null,1,null,0]
[89,null,null,0,null,null,1,null,0]
[90,null,null,0,null,null,1,null,0]
[91,null,null,0,null,null,1,null,0]
[92,null,null,0,null,null,1,null,0]
[93,null,null,0,null,null,1,null,0]
[94,null,null,0,null,null,1,null,0]
[95,null,null,0,null,null,1,null,0]
[96,null,null,0,null,null,1,null,0]
[97,null,null,0,null,null,1,null,0]
[98,null,null,0,null,null,1,null,0]
[99,null,null,0,null,null,1,null,0]
[100,null,null,0,null,null,1,null,0]
[101,null,null,0,null,null,1,null,0]
[102,null,null,0,null,null,1,null,0]
[103,null,null,0,null,null,1,null,0]
[104,null,null,0,null,null,1,null,0]
[105,null,null,0,null,null,1,null,0]
[106,null,null,0,null,null,1,null,0]
[107,null,null,0,null,null,1,null,0]
[108,null,null,0,null,null,1,null,0]
[109,null,null,0,null,null,1,null,0]
[110,null,null,0,null,null,1,null,0]
[111,null,null,0,null,null,1,null,0]
[112,null,null,0,null,null,1,null,0]
[113,null,null,0,null,null,1,null,0]
[114,null,null,0,null,null,1,null,0]
[115,null,null,0,null,null,1,null,0]
[116,null,null,0,null,null,1,null,0]
[117,null,null,0,null,null,1,null,0]
[118,null,null,0,null,null,1,null,0]
[119,null,null,0,null,null,1,null,0]
[120,null,null,0,null,null,1,null,0]
[121,null,null,0,null,null,1,null,0]
[122,null,null,0,null,null,1,null,0]
[123,null,null,0,null,null,1,null,0]
[124,null,null,0,null,null,1,null,0]
[125,null,null,0,null,null,1,null,0]
[126,null,null,0,null,null,1,null,0]
[127,null,null,0,null,null,1,null,0]
[128,null,null,0,null,null,1,null,0]
[129,null,null,0,null,null,{"$f":"(YEAR(F141)-YEAR(E141))*12+MONTH(F141)-MONTH(E141)+1","v":1},null,0]
[130,null,null,{"$f":"DATEDIF(C142,F142,\"Y\")","v":0},null,null,1,null,{"$f":"IF(AND(E142<=DATEVALUE(MID($C$7,1,10)),F142>=DATEVALUE(MID($C$7,14,10))), (YEAR(DATEVALUE(MID($C$7,14,10)))-YEAR(DATEVALUE(MID($C$7,1,10))))*12+(MONTH(DATEVALUE(MID($C$7,14,10)))-MONTH(DATEVALUE(MID($C$7,1,10))))+1,IF(AND(E142<=DATEVALUE(MID($C$7,1,10)),F142<DATEVALUE(MID($C$7,14,10)),F142>=DATEVALUE(MID($C$7,1,10))),(YEAR(F142)-YEAR(DATEVALUE(MID($C$7,1,10))))*12+(MONTH(F142)-MONTH(DATEVALUE(MID($C$7,1,10))))+1,IF(AND(E142>DATEVALUE(MID($C$7,1,10)),F142>=DATEVALUE(MID($C$7,14,10)),E142<=DATEVALUE(MID($C$7,14,10))),(YEAR(DATEVALUE(MID($C$7,14,10)))-YEAR(E142))*12+(MONTH(DATEVALUE(MID($C$7,14,10)))-MONTH(E142))+1,IF(AND(E142>DATEVALUE(MID($C$7,1,10)),F142<DATEVALUE(MID($C$7,14,10))),(YEAR(F142)-YEAR(E142))*12+(MONTH(F142)-MONTH(E142))+1,0))))","v":0}]
[131,null,null,0,null,null,1,null,0]
[132,null,null,0,null,null,1,null,0]
[133,null,null,0,null,null,1,null,0]
[134,null,null,0,null,null,1,null,0]
[135,null,null,0,null,null,1,null,0]
[136,null,null,0,null,null,1,null,0]
[137,null,null,0,null,null,1,null,0]
[138,null,null,0,null,null,1,null,0]
[139,null,null,0,null,null,1,null,0]
[140,null,null,0,null,null,1,null,0]
[141,null,null,0,null,null,1,null,0]
[142,null,null,0,null,null,1,null,0]
[143,null,null,0,null,null,1,null,0]
[144,null,null,0,null,null,1,null,0]
[145,null,null,0,null,null,1,null,0]
[146,null,null,0,null,null,1,null,0]
[147,null,null,0,null,null,1,null,0]
[148,null,null,0,null,null,1,null,0]
[149,null,null,0,null,null,1,null,0]
[150,null,null,0,null,null,1,null,0]
[151,null,null,0,null,null,1,null,0]
[152,null,null,0,null,null,1,null,0]
[153,null,null,0,null,null,1,null,0]
[154,null,null,0,null,null,1,null,0]
[155,null,null,0,null,null,1,null,0]
[156,null,null,0,null,null,1,null,0]
[157,null,null,0,null,null,1,null,0]
[158,null,null,0,null,null,1,null,0]
[159,null,null,0,null,null,1,null,0]
[160,null,null,0,null,null,1,null,0]
[161,null,null,0,null,null,1,null,0]
[162,null,null,0,null,null,1,null,0]
[163,null,null,0,null,null,1,null,0]
[164,null,null,0,null,null,1,null,0]
[165,null,null,0,null,null,1,null,0]
[166,null,null,0,null,null,1,null,0]
[167,null,null,0,null,null,1,null,0]
[168,null,null,0,null,null,1,null,0]
[169,null,null,0,null,null,1,null,0]
[170,null,null,0,null,null,1,null,0]
[171,null,null,0,null,null,1,null,0]
[172,null,null,0,null,null,1,null,0]
[173,null,null,0,null,null,1,null,0]
[174,null,null,0,null,null,1,null,0]
[175,null,null,0,null,null,1,null,0]
[176,null,null,0,null,null,1,null,0]
[177,null,null,0,null,null,1,null,0]
[178,null,null,0,null,null,1,null,0]
[179,null,null,0,null,null,1,null,0]
[180,null,null,0,null,null,1,null,0]
[181,null,null,0,null,null,1,null,0]
[182,null,null,0,null,null,1,null,0]
[183,null,null,0,null,null,1,null,0]
[184,null,null,0,null,null,1,null,0]
[185,null,null,0,null,null,1,null,0]
[186,null,null,0,null,null,1,null,0]
[187,null,null,0,null,null,1,null,0]
[188,null,null,0,null,null,1,null,0]
[189,null,null,0,null,null,1,null,0]
[190,null,null,0,null,null,1,null,0]
[191,null,null,0,null,null,1,null,0]
[192,null,null,0,null,null,1,null,0]
[193,null,null,0,null,null,{"$f":"(YEAR(F205)-YEAR(E205))*12+MONTH(F205)-MONTH(E205)+1","v":1},null,0]
[194,null,null,{"$f":"DATEDIF(C206,F206,\"Y\")","v":0},null,null,1,null,{"$f":"IF(AND(E206<=DATEVALUE(MID($C$7,1,10)),F206>=DATEVALUE(MID($C$7,14,10))), (YEAR(DATEVALUE(MID($C$7,14,10)))-YEAR(DATEVALUE(MID($C$7,1,10))))*12+(MONTH(DATEVALUE(MID($C$7,14,10)))-MONTH(DATEVALUE(MID($C$7,1,10))))+1,IF(AND(E206<=DATEVALUE(MID($C$7,1,10)),F206<DATEVALUE(MID($C$7,14,10)),F206>=DATEVALUE(MID($C$7,1,10))),(YEAR(F206)-YEAR(DATEVALUE(MID($C$7,1,10))))*12+(MONTH(F206)-MONTH(DATEVALUE(MID($C$7,1,10))))+1,IF(AND(E206>DATEVALUE(MID($C$7,1,10)),F206>=DATEVALUE(MID($C$7,14,10)),E206<=DATEVALUE(MID($C$7,14,10))),(YEAR(DATEVALUE(MID($C$7,14,10)))-YEAR(E206))*12+(MONTH(DATEVALUE(MID($C$7,14,10)))-MONTH(E206))+1,IF(AND(E206>DATEVALUE(MID($C$7,1,10)),F206<DATEVALUE(MID($C$7,14,10))),(YEAR(F206)-YEAR(E206))*12+(MONTH(F206)-MONTH(E206))+1,0))))","v":0}]
[195,null,null,0,null,null,1,null,0]
[196,null,null,0,null,null,1,null,0]
[197,null,null,0,null,null,1,null,0]
[198,null,null,0,null,null,1,null,0]
[199,null,null,0,null,null,1,null,0]
[200,null,null,0,null,null,1,null,0]
[201,null,null,0,null,null,1,null,0]
[202,null,null,0,null,null,1,null,0]
[203,null,null,0,null,null,1,null,0]
[204,null,null,0,null,null,1,null,0]
[205,null,null,0,null,null,1,null,0]
[206,null,null,0,null,null,1,null,0]
[207,null,null,0,null,null,1,null,0]
[208,null,null,0,null,null,1,null,0]
[209,null,null,0,null,null,1,null,0]
[210,null,null,0,null,null,1,null,0]
[211,null,null,0,null,null,1,null,0]
[212,null,null,0,null,null,1,null,0]
[213,null,null,0,null,null,1,null,0]
[214,null,null,0,null,null,1,null,0]
[215,null,null,0,null,null,1,null,0]
[216,null,null,0,null,null,1,null,0]
[217,null,null,0,null,null,1,null,0]
[218,null,null,0,null,null,1,null,0]
[219,null,null,0,null,null,1,null,0]
[220,null,null,0,null,null,1,null,0]
[221,null,null,0,null,null,1,null,0]
[222,null,null,0,null,null,1,null,0]
[223,null,null,0,null,null,1,null,0]
[224,null,null,0,null,null,1,null,0]
[225,null,null,0,null,null,1,null,0]
[226,null,null,0,null,null,1,null,0]
[227,null,null,0,null,null,1,null,0]
[228,null,null,0,null,null,1,null,0]
[229,null,null,0,null,null,1,null,0]
[230,null,null,0,null,null,1,null,0]
[231,null,null,0,null,null,1,null,0]
[232,null,null,0,null,null,1,null,0]
[233,null,null,0,null,null,1,null,0]
[234,null,null,0,null,null,1,null,0]
[235,null,null,0,null,null,1,null,0]
[236,null,null,0,null,null,1,null,0]
[237,null,null,0,null,null,1,null,0]
[238,null,null,0,null,null,1,null,0]
[239,null,null,0,null,null,1,null,0]
[240,null,null,0,null,null,1,null,0]
[241,null,null,0,null,null,1,null,0]
[242,null,null,0,null,null,1,null,0]
[243,null,null,0,null,null,1,null,0]
[244,null,null,0,null,null,1,null,0]
[245,null,null,0,null,null,1,null,0]
[246,null,null,0,null,null,1,null,0]
[247,null,null,0,null,null,1,null,0]
[248,null,null,0,null,null,1,null,0]
[249,null,null,0,null,null,1,null,0]
[250,null,null,0,null,null,1,null,0]
[251,null,null,0,null,null,1,null,0]
[252,null,null,0,null,null,1,null,0]
[253,null,null,0,null,null,1,null,0]
[254,null,null,0,null,null,1,null,0]
[255,null,null,0,null,null,1,null,0]
[256,null,null,0,null,null,1,null,0]
[257,null,null,0,null,null,{"$f":"(YEAR(F269)-YEAR(E269))*12+MONTH(F269)-MONTH(E269)+1","v":1},null,0]
[258,null,null,{"$f":"DATEDIF(C270,F270,\"Y\")","v":0},null,null,1,null,{"$f":"IF(AND(E270<=DATEVALUE(MID($C$7,1,10)),F270>=DATEVALUE(MID($C$7,14,10))), (YEAR(DATEVALUE(MID($C$7,14,10)))-YEAR(DATEVALUE(MID($C$7,1,10))))*12+(MONTH(DATEVALUE(MID($C$7,14,10)))-MONTH(DATEVALUE(MID($C$7,1,10))))+1,IF(AND(E270<=DATEVALUE(MID($C$7,1,10)),F270<DATEVALUE(MID($C$7,14,10)),F270>=DATEVALUE(MID($C$7,1,10))),(YEAR(F270)-YEAR(DATEVALUE(MID($C$7,1,10))))*12+(MONTH(F270)-MONTH(DATEVALUE(MID($C$7,1,10))))+1,IF(AND(E270>DATEVALUE(MID($C$7,1,10)),F270>=DATEVALUE(MID($C$7,14,10)),E270<=DATEVALUE(MID($C$7,14,10))),(YEAR(DATEVALUE(MID($C$7,14,10)))-YEAR(E270))*12+(MONTH(DATEVALUE(MID($C$7,14,10)))-MONTH(E270))+1,IF(AND(E270>DATEVALUE(MID($C$7,1,10)),F270<DATEVALUE(MID($C$7,14,10))),(YEAR(F270)-YEAR(E270))*12+(MONTH(F270)-MONTH(E270))+1,0))))","v":0}]
[259,null,null,0,null,null,1,null,0]
[260,null,null,0,null,null,1,null,0]
[261,null,null,0,null,null,1,null,0]
[262,null,null,0,null,null,1,null,0]
[263,null,null,0,null,null,1,null,0]
[264,null,null,0,null,null,1,null,0]
[265,null,null,0,null,null,1,null,0]
[266,null,null,0,null,null,1,null,0]
[267,null,null,0,null,null,1,null,0]
[268,null,null,0,null,null,1,null,0]
[269,null,null,0,null,null,1,null,0]
[270,null,null,0,null,null,1,null,0]
[271,null,null,0,null,null,1,null,0]
[272,null,null,0,null,null,1,null,0]
[273,null,null,0,null,null,1,null,0]
[274,null,null,0,null,null,1,null,0]
[275,null,null,0,null,null,1,null,0]
[276,null,null,0,null,null,1,null,0]
[277,null,null,0,null,null,1,null,0]
[278,null,null,0,null,null,1,null,0]
[279,null,null,0,null,null,1,null,0]
[280,null,null,0,null,null,1,null,0]
[281,null,null,0,null,null,1,null,0]
[282,null,null,0,null,null,1,null,0]
[283,null,null,0,null,null,1,null,0]
[284,null,null,0,null,null,1,null,0]
[285,null,null,0,null,null,1,null,0]
[286,null,null,0,null,null,1,null,0]
[287,null,null,0,null,null,1,null,0]
[288,null,null,0,null,null,1,null,0]
[289,null,null,0,null,null,1,null,0]
[290,null,null,0,null,null,1,null,0]
[291,null,null,0,null,null,1,null,0]
[292,null,null,0,null,null,1,null,0]
[293,null,null,0,null,null,1,null,0]
[294,null,null,0,null,null,1,null,0]
[295,null,null,0,null,null,1,null,0]
[296,null,null,0,null,null,1,null,0]
[297,null,null,0,null,null,1,null,0]
[298,null,null,0,null,null,1,null,0]
[299,null,null,0,null,null,1,null,0]
[300,null,null,0,null,null,1,null,0]
[301,null,null,0,null,null,1,null,0]
[302,null,null,0,null,null,1,null,0]
[303,null,null,0,null,null,1,null,0]
[304,null,null,0,null,null,1,null,0]
[305,null,null,0,null,null,1,null,0]
[306,null,null,0,null,null,1,null,0]
[307,null,null,0,null,null,1,null,0]
[308,null,null,0,null,null,1,null,0]
[309,null,null,0,null,null,1,null,0]
[310,null,null,0,null,null,1,null,0]
[311,null,null,0,null,null,1,null,0]
[312,null,null,0,null,null,1,null,0]
[313,null,null,0,null,null,1,null,0]
[314,null,null,0,null,null,1,null,0]
[315,null,null,0,null,null,1,null,0]
[316,null,null,0,null,null,1,null,0]
[317,null,null,0,null,null,1,null,0]
[318,null,null,0,null,null,1,null,0]
[319,null,null,0,null,null,1,null,0]
[320,null,null,0,null,null,1,null,0]
[321,null,null,0,null,null,{"$f":"(YEAR(F333)-YEAR(E333))*12+MONTH(F333)-MONTH(E333)+1","v":1},null,0]
[322,null,null,{"$f":"DATEDIF(C334,F334,\"Y\")","v":0},null,null,1,null,{"$f":"IF(AND(E334<=DATEVALUE(MID($C$7,1,10)),F334>=DATEVALUE(MID($C$7,14,10))), (YEAR(DATEVALUE(MID($C$7,14,10)))-YEAR(DATEVALUE(MID($C$7,1,10))))*12+(MONTH(DATEVALUE(MID($C$7,14,10)))-MONTH(DATEVALUE(MID($C$7,1,10))))+1,IF(AND(E334<=DATEVALUE(MID($C$7,1,10)),F334<DATEVALUE(MID($C$7,14,10)),F334>=DATEVALUE(MID($C$7,1,10))),(YEAR(F334)-YEAR(DATEVALUE(MID($C$7,1,10))))*12+(MONTH(F334)-MONTH(DATEVALUE(MID($C$7,1,10))))+1,IF(AND(E334>DATEVALUE(MID($C$7,1,10)),F334>=DATEVALUE(MID($C$7,14,10)),E334<=DATEVALUE(MID($C$7,14,10))),(YEAR(DATEVALUE(MID($C$7,14,10)))-YEAR(E334))*12+(MONTH(DATEVALUE(MID($C$7,14,10)))-MONTH(E334))+1,IF(AND(E334>DATEVALUE(MID($C$7,1,10)),F334<DATEVALUE(MID($C$7,14,10))),(YEAR(F334)-YEAR(E334))*12+(MONTH(F334)-MONTH(E334))+1,0))))","v":0}]
[323,null,null,0,null,null,1,null,0]
[324,null,null,0,null,null,1,null,0]
[325,null,null,0,null,null,1,null,0]
[326,null,null,0,null,null,1,null,0]
[327,null,null,0,null,null,1,null,0]
[328,null,null,0,null,null,1,null,0]
[329,null,null,0,null,null,1,null,0]
[330,null,null,0,null,null,1,null,0]
[331,null,null,0,null,null,1,null,0]
[332,null,null,0,null,null,1,null,0]
[333,null,null,0,null,null,1,null,0]
[334,null,null,0,null,null,1,null,0]
[335,null,null,0,null,null,1,null,0]
[336,null,null,0,null,null,1,null,0]
[337,null,null,0,null,null,1,null,0]
[338,null,null,0,null,null,1,null,0]
[339,null,null,0,null,null,1,null,0]
[340,null,null,0,null,null,1,null,0]
[341,null,null,0,null,null,1,null,0]
[342,null,null,0,null,null,1,null,0]
[343,null,null,0,null,null,1,null,0]
[344,null,null,0,null,null,1,null,0]
[345,null,null,0,null,null,1,null,0]
[346,null,null,0,null,null,1,null,0]
[347,null,null,0,null,null,1,null,0]
[348,null,null,0,null,null,1,null,0]
[349,null,null,0,null,null,1,null,0]
[350,null,null,0,null,null,1,null,0]
[351,null,null,0,null,null,1,null,0]
[352,null,null,0,null,null,1,null,0]
[353,null,null,0,null,null,1,null,0]
[354,null,null,0,null,null,1,null,0]
[355,null,null,0,null,null,1,null,0]
[356,null,null,0,null,null,1,null,0]
[357,null,null,0,null,null,1,null,0]
[358,null,null,0,null,null,1,null,0]
[359,null,null,0,null,null,1,null,0]
[360,null,null,0,null,null,1,null,0]
[361,null,null,0,null,null,1,null,0]
[362,null,null,0,null,null,1,null,0]
[363,null,null,0,null,null,1,null,0]
[364,null,null,0,null,null,1,null,0]
[365,null,null,0,null,null,1,null,0]
[366,null,null,0,null,null,1,null,0]
[367,null,null,0,null,null,1,null,0]
[368,null,null,0,null,null,1,null,0]
[369,null,null,0,null,null,1,null,0]
[370,null,null,0,null,null,1,null,0]
[371,null,null,0,null,null,1,null,0]
[372,null,null,0,null,null,1,null,0]
[373,null,null,0,null,null,1,null,0]
[374,null,null,0,null,null,1,null,0]
[375,null,null,0,null,null,1,null,0]
[376,null,null,0,null,null,1,null,0]
[377,null,null,0,null,null,1,null,0]
[378,null,null,0,null,null,1,null,0]
[379,null,null,0,null,null,1,null,0]
[380,null,null,0,null,null,1,null,0]
[381,null,null,0,null,null,1,null,0]
[382,null,null,0,null,null,1,null,0]
[383,null,null,0,null,null,1,null,0]
[384,null,null,0,null,null,1,null,0]
[385,null,null,0,null,null,{"$f":"(YEAR(F397)-YEAR(E397))*12+MONTH(F397)-MONTH(E397)+1","v":1},null,0]
[386,null,null,{"$f":"DATEDIF(C398,F398,\"Y\")","v":0},null,null,1,null,{"$f":"IF(AND(E398<=DATEVALUE(MID($C$7,1,10)),F398>=DATEVALUE(MID($C$7,14,10))), (YEAR(DATEVALUE(MID($C$7,14,10)))-YEAR(DATEVALUE(MID($C$7,1,10))))*12+(MONTH(DATEVALUE(MID($C$7,14,10)))-MONTH(DATEVALUE(MID($C$7,1,10))))+1,IF(AND(E398<=DATEVALUE(MID($C$7,1,10)),F398<DATEVALUE(MID($C$7,14,10)),F398>=DATEVALUE(MID($C$7,1,10))),(YEAR(F398)-YEAR(DATEVALUE(MID($C$7,1,10))))*12+(MONTH(F398)-MONTH(DATEVALUE(MID($C$7,1,10))))+1,IF(AND(E398>DATEVALUE(MID($C$7,1,10)),F398>=DATEVALUE(MID($C$7,14,10)),E398<=DATEVALUE(MID($C$7,14,10))),(YEAR(DATEVALUE(MID($C$7,14,10)))-YEAR(E398))*12+(MONTH(DATEVALUE(MID($C$7,14,10)))-MONTH(E398))+1,IF(AND(E398>DATEVALUE(MID($C$7,1,10)),F398<DATEVALUE(MID($C$7,14,10))),(YEAR(F398)-YEAR(E398))*12+(MONTH(F398)-MONTH(E398))+1,0))))","v":0}]
[387,null,null,0,null,null,1,null,0]
[388,null,null,0,null,null,1,null,0]
[389,null,null,0,null,null,1,null,0]
[390,null,null,0,null,null,1,null,0]
[391,null,null,0,null,null,1,null,0]
[392,null,null,0,null,null,1,null,0]
[393,null,null,0,null,null,1,null,0]
[394,null,null,0,null,null,1,null,0]
[395,null,null,0,null,null,1,null,0]
[396,null,null,0,null,null,1,null,0]
[397,null,null,0,null,null,1,null,0]
[398,null,null,0,null,null,1,null,0]
[399,null,null,0,null,null,1,null,0]
[400,null,null,0,null,null,1,null,0]
[401,null,null,0,null,null,1,null,0]
[402,null,null,0,null,null,1,null,0]
[403,null,null,0,null,null,1,null,0]
[404,null,null,0,null,null,1,null,0]
[405,null,null,0,null,null,1,null,0]
[406,null,null,0,null,null,1,null,0]
[407,null,null,0,null,null,1,null,0]
[408,null,null,0,null,null,1,null,0]
[409,null,null,0,null,null,1,null,0]
[410,null,null,0,null,null,1,null,0]
[411,null,null,0,null,null,1,null,0]
[412,null,null,0,null,null,1,null,0]
[413,null,null,0,null,null,1,null,0]
[414,null,null,0,null,null,1,null,0]
[415,null,null,0,null,null,1,null,0]
[416,null,null,0,null,null,1,null,0]
[417,null,null,0,null,null,1,null,0]
[418,null,null,0,null,null,1,null,0]
[419,null,null,0,null,null,1,null,0]
[420,null,null,0,null,null,1,null,0]
[421,null,null,0,null,null,1,null,0]
[422,null,null,0,null,null,1,null,0]
[423,null,null,0,null,null,1,null,0]
[424,null,null,0,null,null,1,null,0]
[425,null,null,0,null,null,1,null,0]
[426,null,null,0,null,null,1,null,0]
[427,null,null,0,null,null,1,null,0]
[428,null,null,0,null,null,1,null,0]
[429,null,null,0,null,null,1,null,0]
[430,null,null,0,null,null,1,null,0]
[431,null,null,0,null,null,1,null,0]
[432,null,null,0,null,null,1,null,0]
[433,null,null,0,null,null,1,null,0]
[434,null,null,0,null,null,1,null,0]
[435,null,null,0,null,null,1,null,0]
[436,null,null,0,null,null,1,null,0]
[437,null,null,0,null,null,1,null,0]
[438,null,null,0,null,null,1,null,0]
[439,null,null,0,null,null,1,null,0]
[440,null,null,0,null,null,1,null,0]
[441,null,null,0,null,null,1,null,0]
[442,null,null,0,null,null,1,null,0]
[443,null,null,0,null,null,1,null,0]
[444,null,null,0,null,null,1,null,0]
[445,null,null,0,null,null,1,null,0]
[446,null,null,0,null,null,1,null,0]
[447,null,null,0,null,null,1,null,0]
[448,null,null,0,null,null,1,null,0]
[449,null,null,0,null,null,{"$f":"(YEAR(F461)-YEAR(E461))*12+MONTH(F461)-MONTH(E461)+1","v":1},null,0]
[450,null,null,{"$f":"DATEDIF(C462,F462,\"Y\")","v":0},null,null,1,null,{"$f":"IF(AND(E462<=DATEVALUE(MID($C$7,1,10)),F462>=DATEVALUE(MID($C$7,14,10))), (YEAR(DATEVALUE(MID($C$7,14,10)))-YEAR(DATEVALUE(MID($C$7,1,10))))*12+(MONTH(DATEVALUE(MID($C$7,14,10)))-MONTH(DATEVALUE(MID($C$7,1,10))))+1,IF(AND(E462<=DATEVALUE(MID($C$7,1,10)),F462<DATEVALUE(MID($C$7,14,10)),F462>=DATEVALUE(MID($C$7,1,10))),(YEAR(F462)-YEAR(DATEVALUE(MID($C$7,1,10))))*12+(MONTH(F462)-MONTH(DATEVALUE(MID($C$7,1,10))))+1,IF(AND(E462>DATEVALUE(MID($C$7,1,10)),F462>=DATEVALUE(MID($C$7,14,10)),E462<=DATEVALUE(MID($C$7,14,10))),(YEAR(DATEVALUE(MID($C$7,14,10)))-YEAR(E462))*12+(MONTH(DATEVALUE(MID($C$7,14,10)))-MONTH(E462))+1,IF(AND(E462>DATEVALUE(MID($C$7,1,10)),F462<DATEVALUE(MID($C$7,14,10))),(YEAR(F462)-YEAR(E462))*12+(MONTH(F462)-MONTH(E462))+1,0))))","v":0}]
[451,null,null,0,null,null,1,null,0]
[452,null,null,0,null,null,1,null,0]
[453,null,null,0,null,null,1,null,0]
[454,null,null,0,null,null,1,null,0]
[455,null,null,0,null,null,1,null,0]
[456,null,null,0,null,null,1,null,0]
[457,null,null,0,null,null,1,null,0]
[458,null,null,0,null,null,1,null,0]
[459,null,null,0,null,null,1,null,0]
[460,null,null,0,null,null,1,null,0]
[461,null,null,0,null,null,1,null,0]
[462,null,null,0,null,null,1,null,0]
[463,null,null,0,null,null,1,null,0]
[464,null,null,0,null,null,1,null,0]
[465,null,null,0,null,null,1,null,0]
[466,null,null,0,null,null,1,null,0]
[467,null,null,0,null,null,1,null,0]
[468,null,null,0,null,null,1,null,0]
[469,null,null,0,null,null,1,null,0]
[470,null,null,0,null,null,1,null,0]
[471,null,null,0,null,null,1,null,0]
[472,null,null,0,null,null,1,null,0]
[473,null,null,0,null,null,1,null,0]
[474,null,null,0,null,null,1,null,0]
[475,null,null,0,null,null,1,null,0]
[476,null,null,0,null,null,1,null,0]
[477,null,null,0,null,null,1,null,0]
[478,null,null,0,null,null,1,null,0]
[479,null,null,0,null,null,1,null,0]
[480,null,null,0,null,null,1,null,0]
[481,null,null,0,null,null,1,null,0]
[482,null,null,0,null,null,1,null,0]
[483,null,null,0,null,null,1,null,0]
[484,null,null,0,null,null,1,null,0]
[485,null,null,0,null,null,1,null,0]
[486,null,null,0,null,null,1,null,0]
[487,null,null,0,null,null,1,null,0]
[488,null,null,0,null,null,1,null,0]
[489,null,null,0,null,null,1,null,0]
[490,null,null,0,null,null,1,null,0]
[491,null,null,0,null,null,1,null,0]
[492,null,null,0,null,null,1,null,0]
[493,null,null,0,null,null,1,null,0]
[494,null,null,0,null,null,1,null,0]
[495,null,null,0,null,null,1,null,0]
[496,null,null,0,null,null,1,null,0]
[497,null,null,0,null,null,1,null,0]
[498,null,null,0,null,null,1,null,0]
[499,null,null,0,null,null,1,null,0]
[500,null,null,0,null,null,1,null,0]
[501,null,null,{"$f":"DATEDIF(C513,F513,\"Y\")","v":0},null,null,1,null,0]
[502,null,null,0,null,null,1,null,0]
[503,null,null,0,null,null,1,null,0]
[504,null,null,0,null,null,1,null,0]
[505,null,null,0,null,null,1,null,0]
[506,null,null,0,null,null,1,null,0]
[507,null,null,0,null,null,1,null,0]
[508,null,null,0,null,null,1,null,0]
[509,null,null,0,null,null,1,null,0]
[510,null,null,0,null,null,1,null,0]
[511,null,null,0,null,null,1,null,0]
[512,null,null,0,null,null,1,null,0]
[513,null,null,0,null,null,{"$f":"(YEAR(F525)-YEAR(E525))*12+MONTH(F525)-MONTH(E525)+1","v":1},null,0]
[514,null,null,0,null,null,1,null,{"$f":"IF(AND(E526<=DATEVALUE(MID($C$7,1,10)),F526>=DATEVALUE(MID($C$7,14,10))), (YEAR(DATEVALUE(MID($C$7,14,10)))-YEAR(DATEVALUE(MID($C$7,1,10))))*12+(MONTH(DATEVALUE(MID($C$7,14,10)))-MONTH(DATEVALUE(MID($C$7,1,10))))+1,IF(AND(E526<=DATEVALUE(MID($C$7,1,10)),F526<DATEVALUE(MID($C$7,14,10)),F526>=DATEVALUE(MID($C$7,1,10))),(YEAR(F526)-YEAR(DATEVALUE(MID($C$7,1,10))))*12+(MONTH(F526)-MONTH(DATEVALUE(MID($C$7,1,10))))+1,IF(AND(E526>DATEVALUE(MID($C$7,1,10)),F526>=DATEVALUE(MID($C$7,14,10)),E526<=DATEVALUE(MID($C$7,14,10))),(YEAR(DATEVALUE(MID($C$7,14,10)))-YEAR(E526))*12+(MONTH(DATEVALUE(MID($C$7,14,10)))-MONTH(E526))+1,IF(AND(E526>DATEVALUE(MID($C$7,1,10)),F526<DATEVALUE(MID($C$7,14,10))),(YEAR(F526)-YEAR(E526))*12+(MONTH(F526)-MONTH(E526))+1,0))))","v":0}]
[515,null,null,0,null,null,1,null,0]
[516,null,null,0,null,null,1,null,0]
[517,null,null,0,null,null,1,null,0]
[518,null,null,0,null,null,1,null,0]
[519,null,null,0,null,null,1,null,0]
[520,null,null,0,null,null,1,null,0]
[521,null,null,0,null,null,1,null,0]
[522,null,null,0,null,null,1,null,0]
[523,null,null,0,null,null,1,null,0]
[524,null,null,0,null,null,1,null,0]
[525,null,null,0,null,null,1,null,0]
[526,null,null,0,null,null,1,null,0]
[527,null,null,0,null,null,1,null,0]
[528,null,null,0,null,null,1,null,0]
[529,null,null,0,null,null,1,null,0]
[530,null,null,0,null,null,1,null,0]
[531,null,null,0,null,null,1,null,0]
[532,null,null,0,null,null,1,null,0]
[533,null,null,0,null,null,1,null,0]
[534,null,null,0,null,null,1,null,0]
[535,null,null,0,null,null,1,null,0]
[536,null,null,0,null,null,1,null,0]
[537,null,null,0,null,null,1,null,0]
[538,null,null,0,null,null,1,null,0]
[539,null,null,0,null,null,1,null,0]
[540,null,null,0,null,null,1,null,0]
[541,null,null,0,null,null,1,null,0]
[542,null,null,0,null,null,1,null,0]
[543,null,null,0,null,null,1,null,0]
[544,null,null,0,null,null,1,null,0]
[545,null,null,0,null,null,1,null,0]
[546,null,null,0,null,null,1,null,0]
[547,null,null,0,null,null,1,null,0]
[548,null,null,0,null,null,1,null,0]
[549,null,null,0,null,null,1,null,0]
[550,null,null,0,null,null,1,null,0]
[551,null,null,0,null,null,1,null,0]
[552,null,null,0,null,null,1,null,0]
[553,null,null,0,null,null,1,null,0]
[554,null,null,0,null,null,1,null,0]
[555,null,null,0,null,null,1,null,0]
[556,null,null,0,null,null,1,null,0]
[557,null,null,0,null,null,1,null,0]
[558,null,null,0,null,null,1,null,0]
[559,null,null,0,null,null,1,null,0]
[560,null,null,0,null,null,1,null,0]
[561,null,null,0,null,null,1,null,0]
[562,null,null,0,null,null,1,null,0]
[563,null,null,0,null,null,1,null,0]
[564,null,null,0,null,null,1,null,0]
[565,null,null,{"$f":"DATEDIF(C577,F577,\"Y\")","v":0},null,null,1,null,0]
[566,null,null,0,null,null,1,null,0]
[567,null,null,0,null,null,1,null,0]
[568,null,null,0,null,null,1,null,0]
[569,null,null,0,null,null,1,null,0]
[570,null,null,0,null,null,1,null,0]
[571,null,null,0,null,null,1,null,0]
[572,null,null,0,null,null,1,null,0]
[573,null,null,0,null,null,1,null,0]
[574,null,null,0,null,null,1,null,0]
[575,null,null,0,null,null,1,null,0]
[576,null,null,0,null,null,1,null,0]
[577,null,null,0,null,null,{"$f":"(YEAR(F589)-YEAR(E589))*12+MONTH(F589)-MONTH(E589)+1","v":1},null,0]
[578,null,null,0,null,null,1,null,{"$f":"IF(AND(E590<=DATEVALUE(MID($C$7,1,10)),F590>=DATEVALUE(MID($C$7,14,10))), (YEAR(DATEVALUE(MID($C$7,14,10)))-YEAR(DATEVALUE(MID($C$7,1,10))))*12+(MONTH(DATEVALUE(MID($C$7,14,10)))-MONTH(DATEVALUE(MID($C$7,1,10))))+1,IF(AND(E590<=DATEVALUE(MID($C$7,1,10)),F590<DATEVALUE(MID($C$7,14,10)),F590>=DATEVALUE(MID($C$7,1,10))),(YEAR(F590)-YEAR(DATEVALUE(MID($C$7,1,10))))*12+(MONTH(F590)-MONTH(DATEVALUE(MID($C$7,1,10))))+1,IF(AND(E590>DATEVALUE(MID($C$7,1,10)),F590>=DATEVALUE(MID($C$7,14,10)),E590<=DATEVALUE(MID($C$7,14,10))),(YEAR(DATEVALUE(MID($C$7,14,10)))-YEAR(E590))*12+(MONTH(DATEVALUE(MID($C$7,14,10)))-MONTH(E590))+1,IF(AND(E590>DATEVALUE(MID($C$7,1,10)),F590<DATEVALUE(MID($C$7,14,10))),(YEAR(F590)-YEAR(E590))*12+(MONTH(F590)-MONTH(E590))+1,0))))","v":0}]
[579,null,null,0,null,null,1,null,0]
[580,null,null,0,null,null,1,null,0]
[581,null,null,0,null,null,1,null,0]
[582,null,null,0,null,null,1,null,0]
[583,null,null,0,null,null,1,null,0]
[584,null,null,0,null,null,1,null,0]
[585,null,null,0,null,null,1,null,0]
[586,null,null,0,null,null,1,null,0]
[587,null,null,0,null,null,1,null,0]
[588,null,null,0,null,null,1,null,0]
[589,null,null,0,null,null,1,null,0]
[590,null,null,0,null,null,1,null,0]
[591,null,null,0,null,null,1,null,0]
[592,null,null,0,null,null,1,null,0]
[593,null,null,0,null,null,1,null,0]
[594,null,null,0,null,null,1,null,0]
[595,null,null,0,null,null,1,null,0]
[596,null,null,0,null,null,1,null,0]
[597,null,null,0,null,null,1,null,0]
[598,null,null,0,null,null,1,null,0]
[599,null,null,0,null,null,1,null,0]
[600,null,null,0,null,null,1,null,0]
[601,null,null,0,null,null,1,null,0]
[602,null,null,0,null,null,1,null,0]
[603,null,null,0,null,null,1,null,0]
[604,null,null,0,null,null,1,null,0]
[605,null,null,0,null,null,1,null,0]
[606,null,null,0,null,null,1,null,0]
[607,null,null,0,null,null,1,null,0]
[608,null,null,0,null,null,1,null,0]
[609,null,null,0,null,null,1,null,0]
[610,null,null,0,null,null,1,null,0]
[611,null,null,0,null,null,1,null,0]
[612,null,null,0,null,null,1,null,0]
[613,null,null,0,null,null,1,null,0]
[614,null,null,0,null,null,1,null,0]
[615,null,null,0,null,null,1,null,0]
[616,null,null,0,null,null,1,null,0]
[617,null,null,0,null,null,1,null,0]
[618,null,null,0,null,null,1,null,0]
[619,null,null,0,null,null,1,null,0]
[620,null,null,0,null,null,1,null,0]
[621,null,null,0,null,null,1,null,0]
[622,null,null,0,null,null,1,null,0]
[623,null,null,0,null,null,1,null,0]
[624,null,null,0,null,null,1,null,0]
[625,null,null,0,null,null,1,null,0]
[626,null,null,0,null,null,1,null,0]
[627,null,null,0,null,null,1,null,0]
[628,null,null,0,null,null,1,null,0]
[629,null,null,{"$f":"DATEDIF(C641,F641,\"Y\")","v":0},null,null,1,null,0]
[630,null,null,0,null,null,1,null,0]
[631,null,null,0,null,null,1,null,0]
[632,null,null,0,null,null,1,null,0]
[633,null,null,0,null,null,1,null,0]
[634,null,null,0,null,null,1,null,0]
[635,null,null,0,null,null,1,null,0]
[636,null,null,0,null,null,1,null,0]
[637,null,null,0,null,null,1,null,0]
[638,null,null,0,null,null,1,null,0]
[639,null,null,0,null,null,1,null,0]
[640,null,null,0,null,null,1,null,0]
[641,null,null,0,null,null,{"$f":"(YEAR(F653)-YEAR(E653))*12+MONTH(F653)-MONTH(E653)+1","v":1},null,0]
[642,null,null,0,null,null,1,null,{"$f":"IF(AND(E654<=DATEVALUE(MID($C$7,1,10)),F654>=DATEVALUE(MID($C$7,14,10))), (YEAR(DATEVALUE(MID($C$7,14,10)))-YEAR(DATEVALUE(MID($C$7,1,10))))*12+(MONTH(DATEVALUE(MID($C$7,14,10)))-MONTH(DATEVALUE(MID($C$7,1,10))))+1,IF(AND(E654<=DATEVALUE(MID($C$7,1,10)),F654<DATEVALUE(MID($C$7,14,10)),F654>=DATEVALUE(MID($C$7,1,10))),(YEAR(F654)-YEAR(DATEVALUE(MID($C$7,1,10))))*12+(MONTH(F654)-MONTH(DATEVALUE(MID($C$7,1,10))))+1,IF(AND(E654>DATEVALUE(MID($C$7,1,10)),F654>=DATEVALUE(MID($C$7,14,10)),E654<=DATEVALUE(MID($C$7,14,10))),(YEAR(DATEVALUE(MID($C$7,14,10)))-YEAR(E654))*12+(MONTH(DATEVALUE(MID($C$7,14,10)))-MONTH(E654))+1,IF(AND(E654>DATEVALUE(MID($C$7,1,10)),F654<DATEVALUE(MID($C$7,14,10))),(YEAR(F654)-YEAR(E654))*12+(MONTH(F654)-MONTH(E654))+1,0))))","v":0}]
[643,null,null,0,null,null,1,null,0]
[644,null,null,0,null,null,1,null,0]
[645,null,null,0,null,null,1,null,0]
[646,null,null,0,null,null,1,null,0]
[647,null,null,0,null,null,1,null,0]
[648,null,null,0,null,null,1,null,0]
[649,null,null,0,null,null,1,null,0]
[650,null,null,0,null,null,1,null,0]
[651,null,null,0,null,null,1,null,0]
[652,null,null,0,null,null,1,null,0]
[653,null,null,0,null,null,1,null,0]
[654,null,null,0,null,null,1,null,0]
[655,null,null,0,null,null,1,null,0]
[656,null,null,0,null,null,1,null,0]
[657,null,null,0,null,null,1,null,0]
[658,null,null,0,null,null,1,null,0]
[659,null,null,0,null,null,1,null,0]
[660,null,null,0,null,null,1,null,0]
[661,null,null,0,null,null,1,null,0]
[662,null,null,0,null,null,1,null,0]
[663,null,null,0,null,null,1,null,0]
[664,null,null,0,null,null,1,null,0]
[665,null,null,0,null,null,1,null,0]
[666,null,null,0,null,null,1,null,0]
[667,null,null,0,null,null,1,null,0]
[668,null,null,0,null,null,1,null,0]
[669,null,null,0,null,null,1,null,0]
[670,null,null,0,null,null,1,null,0]
[671,null,null,0,null,null,1,null,0]
[672,null,null,0,null,null,1,null,0]
[673,null,null,0,null,null,1,null,0]
[674,null,null,0,null,null,1,null,0]
[675,null,null,0,null,null,1,null,0]
[676,null,null,0,null,null,1,null,0]
[677,null,null,0,null,null,1,null,0]
[678,null,null,0,null,null,1,null,0]
[679,null,null,0,null,null,1,null,0]
[680,null,null,0,null,null,1,null,0]
[681,null,null,0,null,null,1,null,0]
[682,null,null,0,null,null,1,null,0]
[683,null,null,0,null,null,1,null,0]
[684,null,null,0,null,null,1,null,0]
[685,null,null,0,null,null,1,null,0]
[686,null,null,0,null,null,1,null,0]
[687,null,null,0,null,null,1,null,0]
[688,null,null,0,null,null,1,null,0]
[689,null,null,0,null,null,1,null,0]
[690,null,null,0,null,null,1,null,0]
[691,null,null,0,null,null,1,null,0]
[692,null,null,0,null,null,1,null,0]
[693,null,null,{"$f":"DATEDIF(C705,F705,\"Y\")","v":0},null,null,1,null,0]
[694,null,null,0,null,null,1,null,0]
[695,null,null,0,null,null,1,null,0]
[696,null,null,0,null,null,1,null,0]
[697,null,null,0,null,null,1,null,0]
[698,null,null,0,null,null,1,null,0]
[699,null,null,0,null,null,1,null,0]
[700,null,null,0,null,null,1,null,0]
[701,null,null,0,null,null,1,null,0]
[702,null,null,0,null,null,1,null,0]
[703,null,null,0,null,null,1,null,0]
[704,null,null,0,null,null,1,null,0]
[705,null,null,0,null,null,{"$f":"(YEAR(F717)-YEAR(E717))*12+MONTH(F717)-MONTH(E717)+1","v":1},null,0]
[706,null,null,0,null,null,1,null,{"$f":"IF(AND(E718<=DATEVALUE(MID($C$7,1,10)),F718>=DATEVALUE(MID($C$7,14,10))), (YEAR(DATEVALUE(MID($C$7,14,10)))-YEAR(DATEVALUE(MID($C$7,1,10))))*12+(MONTH(DATEVALUE(MID($C$7,14,10)))-MONTH(DATEVALUE(MID($C$7,1,10))))+1,IF(AND(E718<=DATEVALUE(MID($C$7,1,10)),F718<DATEVALUE(MID($C$7,14,10)),F718>=DATEVALUE(MID($C$7,1,10))),(YEAR(F718)-YEAR(DATEVALUE(MID($C$7,1,10))))*12+(MONTH(F718)-MONTH(DATEVALUE(MID($C$7,1,10))))+1,IF(AND(E718>DATEVALUE(MID($C$7,1,10)),F718>=DATEVALUE(MID($C$7,14,10)),E718<=DATEVALUE(MID($C$7,14,10))),(YEAR(DATEVALUE(MID($C$7,14,10)))-YEAR(E718))*12+(MONTH(DATEVALUE(MID($C$7,14,10)))-MONTH(E718))+1,IF(AND(E718>DATEVALUE(MID($C$7,1,10)),F718<DATEVALUE(MID($C$7,14,10))),(YEAR(F718)-YEAR(E718))*12+(MONTH(F718)-MONTH(E718))+1,0))))","v":0}]
[707,null,null,0,null,null,1,null,0]
[708,null,null,0,null,null,1,null,0]
[709,null,null,0,null,null,1,null,0]
[710,null,null,0,null,null,1,null,0]
[711,null,null,0,null,null,1,null,0]
[712,null,null,0,null,null,1,null,0]
[713,null,null,0,null,null,1,null,0]
[714,null,null,0,null,null,1,null,0]
[715,null,null,0,null,null,1,null,0]
[716,null,null,0,null,null,1,null,0]
[717,null,null,0,null,null,1,null,0]
[718,null,null,0,null,null,1,null,0]
[719,null,null,0,null,null,1,null,0]
[720,null,null,0,null,null,1,null,0]
[721,null,null,0,null,null,1,null,0]
[722,null,null,0,null,null,1,null,0]
[723,null,null,0,null,null,1,null,0]
[724,null,null,0,null,null,1,null,0]
[725,null,null,0,null,null,1,null,0]
[726,null,null,0,null,null,1,null,0]
[727,null,null,0,null,null,1,null,0]
[728,null,null,0,null,null,1,null,0]
[729,null,null,0,null,null,1,null,0]
[730,null,null,0,null,null,1,null,0]
[731,null,null,0,null,null,1,null,0]
[732,null,null,0,null,null,1,null,0]
[733,null,null,0,null,null,1,null,0]
[734,null,null,0,null,null,1,null,0]
[735,null,null,0,null,null,1,null,0]
[736,null,null,0,null,null,1,null,0]
[737,null,null,0,null,null,1,null,0]
[738,null,null,0,null,null,1,null,0]
[739,null,null,0,null,null,1,null,0]
[740,null,null,0,null,null,1,null,0]
[741,null,null,0,null,null,1,null,0]
[742,null,null,0,null,null,1,null,0]
[743,null,null,0,null,null,1,null,0]
[744,null,null,0,null,null,1,null,0]
[745,null,null,0,null,null,1,null,0]
[746,null,null,0,null,null,1,null,0]
[747,null,null,0,null,null,1,null,0]
[748,null,null,0,null,null,1,null,0]
[749,null,null,0,null,null,1,null,0]
[750,null,null,0,null,null,1,null,0]
[751,null,null,0,null,null,1,null,0]
[752,null,null,0,null,null,1,null,0]
[753,null,null,0,null,null,1,null,0]
[754,null,null,0,null,null,1,null,0]
[755,null,null,0,null,null,1,null,0]
[756,null,null,0,null,null,1,null,0]
[757,null,null,{"$f":"DATEDIF(C769,F769,\"Y\")","v":0},null,null,1,null,0]
[758,null,null,0,null,null,1,null,0]
[759,null,null,0,null,null,1,null,0]
[760,null,null,0,null,null,1,null,0]
[761,null,null,0,null,null,1,null,0]
[762,null,null,0,null,null,1,null,0]
[763,null,null,0,null,null,1,null,0]
[764,null,null,0,null,null,1,null,0]
[765,null,null,0,null,null,1,null,0]
[766,null,null,0,null,null,1,null,0]
[767,null,null,0,null,null,1,null,0]
[768,null,null,0,null,null,1,null,0]
[769,null,null,0,null,null,{"$f":"(YEAR(F781)-YEAR(E781))*12+MONTH(F781)-MONTH(E781)+1","v":1},null,0]
[770,null,null,0,null,null,1,null,{"$f":"IF(AND(E782<=DATEVALUE(MID($C$7,1,10)),F782>=DATEVALUE(MID($C$7,14,10))), (YEAR(DATEVALUE(MID($C$7,14,10)))-YEAR(DATEVALUE(MID($C$7,1,10))))*12+(MONTH(DATEVALUE(MID($C$7,14,10)))-MONTH(DATEVALUE(MID($C$7,1,10))))+1,IF(AND(E782<=DATEVALUE(MID($C$7,1,10)),F782<DATEVALUE(MID($C$7,14,10)),F782>=DATEVALUE(MID($C$7,1,10))),(YEAR(F782)-YEAR(DATEVALUE(MID($C$7,1,10))))*12+(MONTH(F782)-MONTH(DATEVALUE(MID($C$7,1,10))))+1,IF(AND(E782>DATEVALUE(MID($C$7,1,10)),F782>=DATEVALUE(MID($C$7,14,10)),E782<=DATEVALUE(MID($C$7,14,10))),(YEAR(DATEVALUE(MID($C$7,14,10)))-YEAR(E782))*12+(MONTH(DATEVALUE(MID($C$7,14,10)))-MONTH(E782))+1,IF(AND(E782>DATEVALUE(MID($C$7,1,10)),F782<DATEVALUE(MID($C$7,14,10))),(YEAR(F782)-YEAR(E782))*12+(MONTH(F782)-MONTH(E782))+1,0))))","v":0}]
[771,null,null,0,null,null,1,null,0]
[772,null,null,0,null,null,1,null,0]
[773,null,null,0,null,null,1,null,0]
[774,null,null,0,null,null,1,null,0]
[775,null,null,0,null,null,1,null,0]
[776,null,null,0,null,null,1,null,0]
[777,null,null,0,null,null,1,null,0]
[778,null,null,0,null,null,1,null,0]
[779,null,null,0,null,null,1,null,0]
[780,null,null,0,null,null,1,null,0]
[781,null,null,0,null,null,1,null,0]
[782,null,null,0,null,null,1,null,0]
[783,null,null,0,null,null,1,null,0]
[784,null,null,0,null,null,1,null,0]
[785,null,null,0,null,null,1,null,0]
[786,null,null,0,null,null,1,null,0]
[787,null,null,0,null,null,1,null,0]
[788,null,null,0,null,null,1,null,0]
[789,null,null,0,null,null,1,null,0]
[790,null,null,0,null,null,1,null,0]
[791,null,null,0,null,null,1,null,0]
[792,null,null,0,null,null,1,null,0]
[793,null,null,0,null,null,1,null,0]
[794,null,null,0,null,null,1,null,0]
[795,null,null,0,null,null,1,null,0]
[796,null,null,0,null,null,1,null,0]
[797,null,null,0,null,null,1,null,0]
[798,null,null,0,null,null,1,null,0]
[799,null,null,0,null,null,1,null,0]
[800,null,null,0,null,null,1,null,0]
[801,null,null,0,null,null,1,null,0]
[802,null,null,0,null,null,1,null,0]
[803,null,null,0,null,null,1,null,0]
[804,null,null,0,null,null,1,null,0]
[805,null,null,0,null,null,1,null,0]
[806,null,null,0,null,null,1,null,0]
[807,null,null,0,null,null,1,null,0]
[808,null,null,0,null,null,1,null,0]
[809,null,null,0,null,null,1,null,0]
[810,null,null,0,null,null,1,null,0]
[811,null,null,0,null,null,1,null,0]
[812,null,null,0,null,null,1,null,0]
[813,null,null,0,null,null,1,null,0]
[814,null,null,0,null,null,1,null,0]
[815,null,null,0,null,null,1,null,0]
[816,null,null,0,null,null,1,null,0]
[817,null,null,0,null,null,1,null,0]
[818,null,null,0,null,null,1,null,0]
[819,null,null,0,null,null,1,null,0]
[820,null,null,0,null,null,1,null,0]
[821,null,null,{"$f":"DATEDIF(C833,F833,\"Y\")","v":0},null,null,1,null,0]
[822,null,null,0,null,null,1,null,0]
[823,null,null,0,null,null,1,null,0]
[824,null,null,0,null,null,1,null,0]
[825,null,null,0,null,null,1,null,0]
[826,null,null,0,null,null,1,null,0]
[827,null,null,0,null,null,1,null,0]
[828,null,null,0,null,null,1,null,0]
[829,null,null,0,null,null,1,null,0]
[830,null,null,0,null,null,1,null,0]
[831,null,null,0,null,null,1,null,0]
[832,null,null,0,null,null,1,null,0]
[833,null,null,0,null,null,{"$f":"(YEAR(F845)-YEAR(E845))*12+MONTH(F845)-MONTH(E845)+1","v":1},null,0]
[834,null,null,0,null,null,1,null,{"$f":"IF(AND(E846<=DATEVALUE(MID($C$7,1,10)),F846>=DATEVALUE(MID($C$7,14,10))), (YEAR(DATEVALUE(MID($C$7,14,10)))-YEAR(DATEVALUE(MID($C$7,1,10))))*12+(MONTH(DATEVALUE(MID($C$7,14,10)))-MONTH(DATEVALUE(MID($C$7,1,10))))+1,IF(AND(E846<=DATEVALUE(MID($C$7,1,10)),F846<DATEVALUE(MID($C$7,14,10)),F846>=DATEVALUE(MID($C$7,1,10))),(YEAR(F846)-YEAR(DATEVALUE(MID($C$7,1,10))))*12+(MONTH(F846)-MONTH(DATEVALUE(MID($C$7,1,10))))+1,IF(AND(E846>DATEVALUE(MID($C$7,1,10)),F846>=DATEVALUE(MID($C$7,14,10)),E846<=DATEVALUE(MID($C$7,14,10))),(YEAR(DATEVALUE(MID($C$7,14,10)))-YEAR(E846))*12+(MONTH(DATEVALUE(MID($C$7,14,10)))-MONTH(E846))+1,IF(AND(E846>DATEVALUE(MID($C$7,1,10)),F846<DATEVALUE(MID($C$7,14,10))),(YEAR(F846)-YEAR(E846))*12+(MONTH(F846)-MONTH(E846))+1,0))))","v":0}]
[835,null,null,0,null,null,1,null,0]
[836,null,null,0,null,null,1,null,0]
[837,null,null,0,null,null,1,null,0]
[838,null,null,0,null,null,1,null,0]
[839,null,null,0,null,null,1,null,0]
[840,null,null,0,null,null,1,null,0]
[841,null,null,0,null,null,1,null,0]
[842,null,null,0,null,null,1,null,0]
[843,null,null,0,null,null,1,null,0]
[844,null,null,0,null,null,1,null,0]
[845,null,null,0,null,null,1,null,0]
[846,null,null,0,null,null,1,null,0]
[847,null,null,0,null,null,1,null,0]
[848,null,null,0,null,null,1,null,0]
[849,null,null,0,null,null,1,null,0]
[850,null,null,0,null,null,1,null,0]
[851,null,null,0,null,null,1,null,0]
[852,null,null,0,null,null,1,null,0]
[853,null,null,0,null,null,1,null,0]
[854,null,null,0,null,null,1,null,0]
[855,null,null,0,null,null,1,null,0]
[856,null,null,0,null,null,1,null,0]
[857,null,null,0,null,null,1,null,0]
[858,null,null,0,null,null,1,null,0]
[859,null,null,0,null,null,1,null,0]
[860,null,null,0,null,null,1,null,0]
[861,null,null,0,null,null,1,null,0]
[862,null,null,0,null,null,1,null,0]
[863,null,null,0,null,null,1,null,0]
[864,null,null,0,null,null,1,null,0]
[865,null,null,0,null,null,1,null,0]
[866,null,null,0,null,null,1,null,0]
[867,null,null,0,null,null,1,null,0]
[868,null,null,0,null,null,1,null,0]
[869,null,null,0,null,null,1,null,0]
[870,null,null,0,null,null,1,null,0]
[871,null,null,0,null,null,1,null,0]
[872,null,null,0,null,null,1,null,0]
[873,null,null,0,null,null,1,null,0]
[874,null,null,0,null,null,1,null,0]
[875,null,null,0,null,null,1,null,0]
[876,null,null,0,null,null,1,null,0]
[877,null,null,0,null,null,1,null,0]
[878,null,null,0,null,null,1,null,0]
[879,null,null,0,null,null,1,null,0]
[880,null,null,0,null,null,1,null,0]
[881,null,null,0,null,null,1,null,0]
[882,null,null,0,null,null,1,null,0]
[883,null,null,0,null,null,1,null,0]
[884,null,null,0,null,null,1,null,0]
[885,null,null,{"$f":"DATEDIF(C897,F897,\"Y\")","v":0},null,null,1,null,0]
[886,null,null,0,null,null,1,null,0]
[887,null,null,0,null,null,1,null,0]
[888,null,null,0,null,null,1,null,0]
[889,null,null,0,null,null,1,null,0]
[890,null,null,0,null,null,1,null,0]
[891,null,null,0,null,null,1,null,0]
[892,null,null,0,null,null,1,null,0]
[893,null,null,0,null,null,1,null,0]
[894,null,null,0,null,null,1,null,0]
[895,null,null,0,null,null,1,null,0]
[896,null,null,0,null,null,1,null,0]
[897,null,null,0,null,null,{"$f":"(YEAR(F909)-YEAR(E909))*12+MONTH(F909)-MONTH(E909)+1","v":1},null,0]
[898,null,null,0,null,null,1,null,{"$f":"IF(AND(E910<=DATEVALUE(MID($C$7,1,10)),F910>=DATEVALUE(MID($C$7,14,10))), (YEAR(DATEVALUE(MID($C$7,14,10)))-YEAR(DATEVALUE(MID($C$7,1,10))))*12+(MONTH(DATEVALUE(MID($C$7,14,10)))-MONTH(DATEVALUE(MID($C$7,1,10))))+1,IF(AND(E910<=DATEVALUE(MID($C$7,1,10)),F910<DATEVALUE(MID($C$7,14,10)),F910>=DATEVALUE(MID($C$7,1,10))),(YEAR(F910)-YEAR(DATEVALUE(MID($C$7,1,10))))*12+(MONTH(F910)-MONTH(DATEVALUE(MID($C$7,1,10))))+1,IF(AND(E910>DATEVALUE(MID($C$7,1,10)),F910>=DATEVALUE(MID($C$7,14,10)),E910<=DATEVALUE(MID($C$7,14,10))),(YEAR(DATEVALUE(MID($C$7,14,10)))-YEAR(E910))*12+(MONTH(DATEVALUE(MID($C$7,14,10)))-MONTH(E910))+1,IF(AND(E910>DATEVALUE(MID($C$7,1,10)),F910<DATEVALUE(MID($C$7,14,10))),(YEAR(F910)-YEAR(E910))*12+(MONTH(F910)-MONTH(E910))+1,0))))","v":0}]
[899,null,null,0,null,null,1,null,0]
[900,null,null,0,null,null,1,null,0]
[901,null,null,0,null,null,1,null,0]
[902,null,null,0,null,null,1,null,0]
[903,null,null,0,null,null,1,null,0]
[904,null,null,0,null,null,1,null,0]
[905,null,null,0,null,null,1,null,0]
[906,null,null,0,null,null,1,null,0]
[907,null,null,0,null,null,1,null,0]
[908,null,null,0,null,null,1,null,0]
[909,null,null,0,null,null,1,null,0]
[910,null,null,0,null,null,1,null,0]
[911,null,null,0,null,null,1,null,0]
[912,null,null,0,null,null,1,null,0]
[913,null,null,0,null,null,1,null,0]
[914,null,null,0,null,null,1,null,0]
[915,null,null,0,null,null,1,null,0]
[916,null,null,0,null,null,1,null,0]
[917,null,null,0,null,null,1,null,0]
[918,null,null,0,null,null,1,null,0]
[919,null,null,0,null,null,1,null,0]
[920,null,null,0,null,null,1,null,0]
[921,null,null,0,null,null,1,null,0]
[922,null,null,0,null,null,1,null,0]
[923,null,null,0,null,null,1,null,0]
[924,null,null,0,null,null,1,null,0]
[925,null,null,0,null,null,1,null,0]
[926,null,null,0,null,null,1,null,0]
[927,null,null,0,null,null,1,null,0]
[928,null,null,0,null,null,1,null,0]
[929,null,null,0,null,null,1,null,0]
[930,null,null,0,null,null,1,null,0]
[931,null,null,0,null,null,1,null,0]
[932,null,null,0,null,null,1,null,0]
[933,null,null,0,null,null,1,null,0]
[934,null,null,0,null,null,1,null,0]
[935,null,null,0,null,null,1,null,0]
[936,null,null,0,null,null,1,null,0]
[937,null,null,0,null,null,1,null,0]
[938,null,null,0,null,null,1,null,0]
[939,null,null,0,null,null,1,null,0]
[940,null,null,0,null,null,1,null,0]
[941,null,null,0,null,null,1,null,0]
[942,null,null,0,null,null,1,null,0]
[943,null,null,0,null,null,1,null,0]
[944,null,null,0,null,null,1,null,0]
[945,null,null,0,null,null,1,null,0]
[946,null,null,0,null,null,1,null,0]
[947,null,null,0,null,null,1,null,0]
[948,null,null,0,null,null,1,null,0]
[949,null,null,{"$f":"DATEDIF(C961,F961,\"Y\")","v":0},null,null,1,null,0]
[950,null,null,0,null,null,1,null,0]
[951,null,null,0,null,null,1,null,0]
[952,null,null,0,null,null,1,null,0]
[953,null,null,0,null,null,1,null,0]
[954,null,null,0,null,null,1,null,0]
[955,null,null,0,null,null,1,null,0]
[956,null,null,0,null,null,1,null,0]
[957,null,null,0,null,null,1,null,0]
[958,null,null,0,null,null,1,null,0]
[959,null,null,0,null,null,1,null,0]
[960,null,null,0,null,null,1,null,0]
[961,null,null,0,null,null,{"$f":"(YEAR(F973)-YEAR(E973))*12+MONTH(F973)-MONTH(E973)+1","v":1},null,0]
[962,null,null,0,null,null,1,null,{"$f":"IF(AND(E974<=DATEVALUE(MID($C$7,1,10)),F974>=DATEVALUE(MID($C$7,14,10))), (YEAR(DATEVALUE(MID($C$7,14,10)))-YEAR(DATEVALUE(MID($C$7,1,10))))*12+(MONTH(DATEVALUE(MID($C$7,14,10)))-MONTH(DATEVALUE(MID($C$7,1,10))))+1,IF(AND(E974<=DATEVALUE(MID($C$7,1,10)),F974<DATEVALUE(MID($C$7,14,10)),F974>=DATEVALUE(MID($C$7,1,10))),(YEAR(F974)-YEAR(DATEVALUE(MID($C$7,1,10))))*12+(MONTH(F974)-MONTH(DATEVALUE(MID($C$7,1,10))))+1,IF(AND(E974>DATEVALUE(MID($C$7,1,10)),F974>=DATEVALUE(MID($C$7,14,10)),E974<=DATEVALUE(MID($C$7,14,10))),(YEAR(DATEVALUE(MID($C$7,14,10)))-YEAR(E974))*12+(MONTH(DATEVALUE(MID($C$7,14,10)))-MONTH(E974))+1,IF(AND(E974>DATEVALUE(MID($C$7,1,10)),F974<DATEVALUE(MID($C$7,14,10))),(YEAR(F974)-YEAR(E974))*12+(MONTH(F974)-MONTH(E974))+1,0))))","v":0}]
[963,null,null,0,null,null,1,null,0]
[964,null,null,0,null,null,1,null,0]
[965,null,null,0,null,null,1,null,0]
[966,null,null,0,null,null,1,null,0]
[967,null,null,0,null,null,1,null,0]
[968,null,null,0,null,null,1,null,0]
[969,null,null,0,null,null,1,null,0]
[970,null,null,0,null,null,1,null,0]
[971,null,null,0,null,null,1,null,0]
[972,null,null,0,null,null,1,null,0]
[973,null,null,0,null,null,1,null,0]
[974,null,null,0,null,null,1,null,0]
[975,null,null,0,null,null,1,null,0]
[976,null,null,0,null,null,1,null,0]
[977,null,null,0,null,null,1,null,0]
[978,null,null,0,null,null,1,null,0]
[979,null,null,0,null,null,1,null,0]
[980,null,null,0,null,null,1,null,0]
[981,null,null,0,null,null,1,null,0]
[982,null,null,0,null,null,1,null,0]
[983,null,null,0,null,null,1,null,0]
[984,null,null,0,null,null,1,null,0]
[985,null,null,0,null,null,1,null,0]
[986,null,null,0,null,null,1,null,0]
[987,null,null,0,null,null,1,null,0]
[988,null,null,0,null,null,1,null,0]
[989,null,null,0,null,null,1,null,0]
[990,null,null,0,null,null,1,null,0]
[991,null,null,0,null,null,1,null,0]
[992,null,null,0,null,null,1,null,0]
[993,null,null,0,null,null,1,null,0]
[994,null,null,0,null,null,1,null,0]
[995,null,null,0,null,null,1,null,0]
[996,null,null,0,null,null,1,null,0]
[997,null,null,0,null,null,1,null,0]
[998,null,null,0,null,null,1,null,0]
[999,null,null,0,null,null,1,null,0]
[1000,null,null,0,null,null,1,null,0]
[1001,null,null,0,null,null,1,null,0]
[1002,null,null,0,null,null,1,null,0]
[1003,null,null,0,null,null,1,null,0]
[1004,null,null,0,null,null,1,null,0]
[1005,null,null,0,null,null,1,null,0]
[1006,null,null,0,null,null,1,null,0]
[1007,null,null,0,null,null,1,null,0]
[1008,null,null,0,null,null,1,null,0]
[1009,null,null,0,null,null,1,null,0]
[1010,null,null,0,null,null,1,null,0]
[1011,null,null,0,null,null,1,null,0]
[1012,null,null,0,null,null,1,null,0]
[1013,null,null,{"$f":"DATEDIF(C1025,F1025,\"Y\")","v":0},null,null,1,null,0]
[1014,null,null,0,null,null,1,null,0]
[1015,null,null,0,null,null,1,null,0]
[1016,null,null,0,null,null,1,null,0]
[1017,null,null,0,null,null,1,null,0]
[1018,null,null,0,null,null,1,null,0]
[1019,null,null,0,null,null,1,null,0]
[1020,null,null,0,null,null,1,null,0]
[1021,null,null,0,null,null,1,null,0]
[1022,null,null,0,null,null,1,null,0]
[1023,null,null,0,null,null,1,null,0]
[1024,null,null,0,null,null,1,null,0]
[1025,null,null,0,null,null,{"$f":"(YEAR(F1037)-YEAR(E1037))*12+MONTH(F1037)-MONTH(E1037)+1","v":1},null,0]
[1026,null,null,0,null,null,1,null,{"$f":"IF(AND(E1038<=DATEVALUE(MID($C$7,1,10)),F1038>=DATEVALUE(MID($C$7,14,10))), (YEAR(DATEVALUE(MID($C$7,14,10)))-YEAR(DATEVALUE(MID($C$7,1,10))))*12+(MONTH(DATEVALUE(MID($C$7,14,10)))-MONTH(DATEVALUE(MID($C$7,1,10))))+1,IF(AND(E1038<=DATEVALUE(MID($C$7,1,10)),F1038<DATEVALUE(MID($C$7,14,10)),F1038>=DATEVALUE(MID($C$7,1,10))),(YEAR(F1038)-YEAR(DATEVALUE(MID($C$7,1,10))))*12+(MONTH(F1038)-MONTH(DATEVALUE(MID($C$7,1,10))))+1,IF(AND(E1038>DATEVALUE(MID($C$7,1,10)),F1038>=DATEVALUE(MID($C$7,14,10)),E1038<=DATEVALUE(MID($C$7,14,10))),(YEAR(DATEVALUE(MID($C$7,14,10)))-YEAR(E1038))*12+(MONTH(DATEVALUE(MID($C$7,14,10)))-MONTH(E1038))+1,IF(AND(E1038>DATEVALUE(MID($C$7,1,10)),F1038<DATEVALUE(MID($C$7,14,10))),(YEAR(F1038)-YEAR(E1038))*12+(MONTH(F1038)-MONTH(E1038))+1,0))))","v":0}]
[1027,null,null,0,null,null,1,null,0]
[1028,null,null,0,null,null,1,null,0]
[1029,null,null,0,null,null,1,null,0]
[1030,null,null,0,null,null,1,null,0]
[1031,null,null,0,null,null,1,null,0]
[1032,null,null,0,null,null,1,null,0]
[1033,null,null,0,null,null,1,null,0]
[1034,null,null,0,null,null,1,null,0]
[1035,null,null,0,null,null,1,null,0]
[1036,null,null,0,null,null,1,null,0]
[1037,null,null,0,null,null,1,null,0]
[1038,null,null,0,null,null,1,null,0]
[1039,null,null,0,null,null,1,null,0]
[1040,null,null,0,null,null,1,null,0]
[1041,null,null,0,null,null,1,null,0]
[1042,null,null,0,null,null,1,null,0]
[1043,null,null,0,null,null,1,null,0]
[1044,null,null,0,null,null,1,null,0]
[1045,null,null,0,null,null,1,null,0]
[1046,null,null,0,null,null,1,null,0]
[1047,null,null,0,null,null,1,null,0]
[1048,null,null,0,null,null,1,null,0]
[1049,null,null,0,null,null,1,null,0]
[1050,null,null,0,null,null,1,null,0]
[1051,null,null,0,null,null,1,null,0]
[1052,null,null,0,null,null,1,null,0]
[1053,null,null,0,null,null,1,null,0]
[1054,null,null,0,null,null,1,null,0]
[1055,null,null,0,null,null,1,null,0]
[1056,null,null,0,null,null,1,null,0]
[1057,null,null,0,null,null,1,null,0]
[1058,null,null,0,null,null,1,null,0]
[1059,null,null,0,null,null,1,null,0]
[1060,null,null,0,null,null,1,null,0]
[1061,null,null,0,null,null,1,null,0]
[1062,null,null,0,null,null,1,null,0]
[1063,null,null,0,null,null,1,null,0]
[1064,null,null,0,null,null,1,null,0]
[1065,null,null,0,null,null,1,null,0]
[1066,null,null,0,null,null,1,null,0]
[1067,null,null,0,null,null,1,null,0]
[1068,null,null,0,null,null,1,null,0]
[1069,null,null,0,null,null,1,null,0]
[1070,null,null,0,null,null,1,null,0]
[1071,null,null,0,null,null,1,null,0]
[1072,null,null,0,null,null,1,null,0]
[1073,null,null,0,null,null,1,null,0]
[1074,null,null,0,null,null,1,null,0]
[1075,null,null,0,null,null,1,null,0]
[1076,null,null,0,null,null,1,null,0]
[1077,null,null,{"$f":"DATEDIF(C1089,F1089,\"Y\")","v":0},null,null,1,null,0]
[1078,null,null,0,null,null,1,null,0]
[1079,null,null,0,null,null,1,null,0]
[1080,null,null,0,null,null,1,null,0]
[1081,null,null,0,null,null,1,null,0]
[1082,null,null,0,null,null,1,null,0]
[1083,null,null,0,null,null,1,null,0]
[1084,null,null,0,null,null,1,null,0]
[1085,null,null,0,null,null,1,null,0]
[1086,null,null,0,null,null,1,null,0]
[1087,null,null,0,null,null,1,null,0]
[1088,null,null,0,null,null,1,null,0]
[1089,null,null,0,null,null,{"$f":"(YEAR(F1101)-YEAR(E1101))*12+MONTH(F1101)-MONTH(E1101)+1","v":1},null,0]
[1090,null,null,0,null,null,1,null,{"$f":"IF(AND(E1102<=DATEVALUE(MID($C$7,1,10)),F1102>=DATEVALUE(MID($C$7,14,10))), (YEAR(DATEVALUE(MID($C$7,14,10)))-YEAR(DATEVALUE(MID($C$7,1,10))))*12+(MONTH(DATEVALUE(MID($C$7,14,10)))-MONTH(DATEVALUE(MID($C$7,1,10))))+1,IF(AND(E1102<=DATEVALUE(MID($C$7,1,10)),F1102<DATEVALUE(MID($C$7,14,10)),F1102>=DATEVALUE(MID($C$7,1,10))),(YEAR(F1102)-YEAR(DATEVALUE(MID($C$7,1,10))))*12+(MONTH(F1102)-MONTH(DATEVALUE(MID($C$7,1,10))))+1,IF(AND(E1102>DATEVALUE(MID($C$7,1,10)),F1102>=DATEVALUE(MID($C$7,14,10)),E1102<=DATEVALUE(MID($C$7,14,10))),(YEAR(DATEVALUE(MID($C$7,14,10)))-YEAR(E1102))*12+(MONTH(DATEVALUE(MID($C$7,14,10)))-MONTH(E1102))+1,IF(AND(E1102>DATEVALUE(MID($C$7,1,10)),F1102<DATEVALUE(MID($C$7,14,10))),(YEAR(F1102)-YEAR(E1102))*12+(MONTH(F1102)-MONTH(E1102))+1,0))))","v":0}]
[1091,null,null,0,null,null,1,null,0]
[1092,null,null,0,null,null,1,null,0]
[1093,null,null,0,null,null,1,null,0]
[1094,null,null,0,null,null,1,null,0]
[1095,null,null,0,null,null,1,null,0]
[1096,null,null,0,null,null,1,null,0]
[1097,null,null,0,null,null,1,null,0]
[1098,null,null,0,null,null,1,null,0]
[1099,null,null,0,null,null,1,null,0]
[1100,null,null,0,null,null,1,null,0]
[1101,null,null,0,null,null,1,null,0]
[1102,null,null,0,null,null,1,null,0]
[1103,null,null,0,null,null,1,null,0]
[1104,null,null,0,null,null,1,null,0]
[1105,null,null,0,null,null,1,null,0]
[1106,null,null,0,null,null,1,null,0]
[1107,null,null,0,null,null,1,null,0]
[1108,null,null,0,null,null,1,null,0]
[1109,null,null,0,null,null,1,null,0]
[1110,null,null,0,null,null,1,null,0]
[1111,null,null,0,null,null,1,null,0]
[1112,null,null,0,null,null,1,null,0]
[1113,null,null,0,null,null,1,null,0]
[1114,null,null,0,null,null,1,null,0]
[1115,null,null,0,null,null,1,null,0]
[1116,null,null,0,null,null,1,null,0]
[1117,null,null,0,null,null,1,null,0]
[1118,null,null,0,null,null,1,null,0]
[1119,null,null,0,null,null,1,null,0]
[1120,null,null,0,null,null,1,null,0]
[1121,null,null,0,null,null,1,null,0]
[1122,null,null,0,null,null,1,null,0]
[1123,null,null,0,null,null,1,null,0]
[1124,null,null,0,null,null,1,null,0]
[1125,null,null,0,null,null,1,null,0]
[1126,null,null,0,null,null,1,null,0]
[1127,null,null,0,null,null,1,null,0]
[1128,null,null,0,null,null,1,null,0]
[1129,null,null,0,null,null,1,null,0]
[1130,null,null,0,null,null,1,null,0]
[1131,null,null,0,null,null,1,null,0]
[1132,null,null,0,null,null,1,null,0]
[1133,null,null,0,null,null,1,null,0]
[1134,null,null,0,null,null,1,null,0]
[1135,null,null,0,null,null,1,null,0]
[1136,null,null,0,null,null,1,null,0]
[1137,null,null,0,null,null,1,null,0]
[1138,null,null,0,null,null,1,null,0]
[1139,null,null,0,null,null,1,null,0]
[1140,null,null,0,null,null,1,null,0]
[1141,null,null,{"$f":"DATEDIF(C1153,F1153,\"Y\")","v":0},null,null,1,null,0]
[1142,null,null,0,null,null,1,null,0]
[1143,null,null,0,null,null,1,null,0]
[1144,null,null,0,null,null,1,null,0]
[1145,null,null,0,null,null,1,null,0]
[1146,null,null,0,null,null,1,null,0]
[1147,null,null,0,null,null,1,null,0]
[1148,null,null,0,null,null,1,null,0]
[1149,null,null,0,null,null,1,null,0]
[1150,null,null,0,null,null,1,null,0]
[1151,null,null,0,null,null,1,null,0]
[1152,null,null,0,null,null,1,null,0]
[1153,null,null,0,null,null,{"$f":"(YEAR(F1165)-YEAR(E1165))*12+MONTH(F1165)-MONTH(E1165)+1","v":1},null,0]
[1154,null,null,0,null,null,1,null,{"$f":"IF(AND(E1166<=DATEVALUE(MID($C$7,1,10)),F1166>=DATEVALUE(MID($C$7,14,10))), (YEAR(DATEVALUE(MID($C$7,14,10)))-YEAR(DATEVALUE(MID($C$7,1,10))))*12+(MONTH(DATEVALUE(MID($C$7,14,10)))-MONTH(DATEVALUE(MID($C$7,1,10))))+1,IF(AND(E1166<=DATEVALUE(MID($C$7,1,10)),F1166<DATEVALUE(MID($C$7,14,10)),F1166>=DATEVALUE(MID($C$7,1,10))),(YEAR(F1166)-YEAR(DATEVALUE(MID($C$7,1,10))))*12+(MONTH(F1166)-MONTH(DATEVALUE(MID($C$7,1,10))))+1,IF(AND(E1166>DATEVALUE(MID($C$7,1,10)),F1166>=DATEVALUE(MID($C$7,14,10)),E1166<=DATEVALUE(MID($C$7,14,10))),(YEAR(DATEVALUE(MID($C$7,14,10)))-YEAR(E1166))*12+(MONTH(DATEVALUE(MID($C$7,14,10)))-MONTH(E1166))+1,IF(AND(E1166>DATEVALUE(MID($C$7,1,10)),F1166<DATEVALUE(MID($C$7,14,10))),(YEAR(F1166)-YEAR(E1166))*12+(MONTH(F1166)-MONTH(E1166))+1,0))))","v":0}]
[1155,null,null,0,null,null,1,null,0]
[1156,null,null,0,null,null,1,null,0]
[1157,null,null,0,null,null,1,null,0]
[1158,null,null,0,null,null,1,null,0]
[1159,null,null,0,null,null,1,null,0]
[1160,null,null,0,null,null,1,null,0]
[1161,null,null,0,null,null,1,null,0]
[1162,null,null,0,null,null,1,null,0]
[1163,null,null,0,null,null,1,null,0]
[1164,null,null,0,null,null,1,null,0]
[1165,null,null,0,null,null,1,null,0]
[1166,null,null,0,null,null,1,null,0]
[1167,null,null,0,null,null,1,null,0]
[1168,null,null,0,null,null,1,null,0]
[1169,null,null,0,null,null,1,null,0]
[1170,null,null,0,null,null,1,null,0]
[1171,null,null,0,null,null,1,null,0]
[1172,null,null,0,null,null,1,null,0]
[1173,null,null,0,null,null,1,null,0]
[1174,null,null,0,null,null,1,null,0]
[1175,null,null,0,null,null,1,null,0]
[1176,null,null,0,null,null,1,null,0]
[1177,null,null,0,null,null,1,null,0]
[1178,null,null,0,null,null,1,null,0]
[1179,null,null,0,null,null,1,null,0]
[1180,null,null,0,null,null,1,null,0]
[1181,null,null,0,null,null,1,null,0]
[1182,null,null,0,null,null,1,null,0]
[1183,null,null,0,null,null,1,null,0]
[1184,null,null,0,null,null,1,null,0]
[1185,null,null,0,null,null,1,null,0]
[1186,null,null,0,null,null,1,null,0]
[1187,null,null,0,null,null,1,null,0]
[1188,null,null,0,null,null,1,null,0]
[1189,null,null,0,null,null,1,null,0]
[1190,null,null,0,null,null,1,null,0]
[1191,null,null,0,null,null,1,null,0]
[1192,null,null,0,null,null,1,null,0]
[1193,null,null,0,null,null,1,null,0]
[1194,null,null,0,null,null,1,null,0]
[1195,null,null,0,null,null,1,null,0]
[1196,null,null,0,null,null,1,null,0]
[1197,null,null,0,null,null,1,null,0]
[1198,null,null,0,null,null,1,null,0]
[1199,null,null,0,null,null,1,null,0]
[1200,null,null,0,null,null,1,null,0]
[1201,null,null,0,null,null,1,null,0]
[1202,null,null,0,null,null,1,null,0]
[1203,null,null,0,null,null,1,null,0]
[1204,null,null,0,null,null,1,null,0]
[1205,null,null,{"$f":"DATEDIF(C1217,F1217,\"Y\")","v":0},null,null,1,null,0]
[1206,null,null,0,null,null,1,null,0]
[1207,null,null,0,null,null,1,null,0]
[1208,null,null,0,null,null,1,null,0]
[1209,null,null,0,null,null,1,null,0]
[1210,null,null,0,null,null,1,null,0]
[1211,null,null,0,null,null,1,null,0]
[1212,null,null,0,null,null,1,null,0]
[1213,null,null,0,null,null,1,null,0]
[1214,null,null,0,null,null,1,null,0]
[1215,null,null,0,null,null,1,null,0]
[1216,null,null,0,null,null,1,null,0]
[1217,null,null,0,null,null,{"$f":"(YEAR(F1229)-YEAR(E1229))*12+MONTH(F1229)-MONTH(E1229)+1","v":1},null,0]
[1218,null,null,0,null,null,1,null,{"$f":"IF(AND(E1230<=DATEVALUE(MID($C$7,1,10)),F1230>=DATEVALUE(MID($C$7,14,10))), (YEAR(DATEVALUE(MID($C$7,14,10)))-YEAR(DATEVALUE(MID($C$7,1,10))))*12+(MONTH(DATEVALUE(MID($C$7,14,10)))-MONTH(DATEVALUE(MID($C$7,1,10))))+1,IF(AND(E1230<=DATEVALUE(MID($C$7,1,10)),F1230<DATEVALUE(MID($C$7,14,10)),F1230>=DATEVALUE(MID($C$7,1,10))),(YEAR(F1230)-YEAR(DATEVALUE(MID($C$7,1,10))))*12+(MONTH(F1230)-MONTH(DATEVALUE(MID($C$7,1,10))))+1,IF(AND(E1230>DATEVALUE(MID($C$7,1,10)),F1230>=DATEVALUE(MID($C$7,14,10)),E1230<=DATEVALUE(MID($C$7,14,10))),(YEAR(DATEVALUE(MID($C$7,14,10)))-YEAR(E1230))*12+(MONTH(DATEVALUE(MID($C$7,14,10)))-MONTH(E1230))+1,IF(AND(E1230>DATEVALUE(MID($C$7,1,10)),F1230<DATEVALUE(MID($C$7,14,10))),(YEAR(F1230)-YEAR(E1230))*12+(MONTH(F1230)-MONTH(E1230))+1,0))))","v":0}]
[1219,null,null,0,null,null,1,null,0]
[1220,null,null,0,null,null,1,null,0]
[1221,null,null,0,null,null,1,null,0]
[1222,null,null,0,null,null,1,null,0]
[1223,null,null,0,null,null,1,null,0]
[1224,null,null,0,null,null,1,null,0]
[1225,null,null,0,null,null,1,null,0]
[1226,null,null,0,null,null,1,null,0]
[1227,null,null,0,null,null,1,null,0]
[1228,null,null,0,null,null,1,null,0]
[1229,null,null,0,null,null,1,null,0]
[1230,null,null,0,null,null,1,null,0]
[1231,null,null,0,null,null,1,null,0]
[1232,null,null,0,null,null,1,null,0]
[1233,null,null,0,null,null,1,null,0]
[1234,null,null,0,null,null,1,null,0]
[1235,null,null,0,null,null,1,null,0]
[1236,null,null,0,null,null,1,null,0]
[1237,null,null,0,null,null,1,null,0]
[1238,null,null,0,null,null,1,null,0]
[1239,null,null,0,null,null,1,null,0]
[1240,null,null,0,null,null,1,null,0]
[1241,null,null,0,null,null,1,null,0]
[1242,null,null,0,null,null,1,null,0]
[1243,null,null,0,null,null,1,null,0]
[1244,null,null,0,null,null,1,null,0]
[1245,null,null,0,null,null,1,null,0]
[1246,null,null,0,null,null,1,null,0]
[1247,null,null,0,null,null,1,null,0]
[1248,null,null,0,null,null,1,null,0]
[1249,null,null,0,null,null,1,null,0]
[1250,null,null,0,null,null,1,null,0]
[1251,null,null,0,null,null,1,null,0]
[1252,null,null,0,null,null,1,null,0]
[1253,null,null,0,null,null,1,null,0]
[1254,null,null,0,null,null,1,null,0]
[1255,null,null,0,null,null,1,null,0]
[1256,null,null,0,null,null,1,null,0]
[1257,null,null,0,null,null,1,null,0]
[1258,null,null,0,null,null,1,null,0]
[1259,null,null,0,null,null,1,null,0]
[1260,null,null,0,null,null,1,null,0]
[1261,null,null,0,null,null,1,null,0]
[1262,null,null,0,null,null,1,null,0]
[1263,null,null,0,null,null,1,null,0]
[1264,null,null,0,null,null,1,null,0]
[1265,null,null,0,null,null,1,null,0]
[1266,null,null,0,null,null,1,null,0]
[1267,null,null,0,null,null,1,null,0]
[1268,null,null,0,null,null,1,null,0]
[1269,null,null,{"$f":"DATEDIF(C1281,F1281,\"Y\")","v":0},null,null,1,null,0]
[1270,null,null,0,null,null,1,null,0]
[1271,null,null,0,null,null,1,null,0]
[1272,null,null,0,null,null,1,null,0]
[1273,null,null,0,null,null,1,null,0]
[1274,null,null,0,null,null,1,null,0]
[1275,null,null,0,null,null,1,null,0]
[1276,null,null,0,null,null,1,null,0]
[1277,null,null,0,null,null,1,null,0]
[1278,null,null,0,null,null,1,null,0]
[1279,null,null,0,null,null,1,null,0]
[1280,null,null,0,null,null,1,null,0]
[1281,null,null,0,null,null,{"$f":"(YEAR(F1293)-YEAR(E1293))*12+MONTH(F1293)-MONTH(E1293)+1","v":1},null,0]
[1282,null,null,0,null,null,1,null,{"$f":"IF(AND(E1294<=DATEVALUE(MID($C$7,1,10)),F1294>=DATEVALUE(MID($C$7,14,10))), (YEAR(DATEVALUE(MID($C$7,14,10)))-YEAR(DATEVALUE(MID($C$7,1,10))))*12+(MONTH(DATEVALUE(MID($C$7,14,10)))-MONTH(DATEVALUE(MID($C$7,1,10))))+1,IF(AND(E1294<=DATEVALUE(MID($C$7,1,10)),F1294<DATEVALUE(MID($C$7,14,10)),F1294>=DATEVALUE(MID($C$7,1,10))),(YEAR(F1294)-YEAR(DATEVALUE(MID($C$7,1,10))))*12+(MONTH(F1294)-MONTH(DATEVALUE(MID($C$7,1,10))))+1,IF(AND(E1294>DATEVALUE(MID($C$7,1,10)),F1294>=DATEVALUE(MID($C$7,14,10)),E1294<=DATEVALUE(MID($C$7,14,10))),(YEAR(DATEVALUE(MID($C$7,14,10)))-YEAR(E1294))*12+(MONTH(DATEVALUE(MID($C$7,14,10)))-MONTH(E1294))+1,IF(AND(E1294>DATEVALUE(MID($C$7,1,10)),F1294<DATEVALUE(MID($C$7,14,10))),(YEAR(F1294)-YEAR(E1294))*12+(MONTH(F1294)-MONTH(E1294))+1,0))))","v":0}]
[1283,null,null,0,null,null,1,null,0]
[1284,null,null,0,null,null,1,null,0]
[1285,null,null,0,null,null,1,null,0]
[1286,null,null,0,null,null,1,null,0]
[1287,null,null,0,null,null,1,null,0]
[1288,null,null,0,null,null,1,null,0]
[1289,null,null,0,null,null,1,null,0]
[1290,null,null,0,null,null,1,null,0]
[1291,null,null,0,null,null,1,null,0]
[1292,null,null,0,null,null,1,null,0]
[1293,null,null,0,null,null,1,null,0]
[1294,null,null,0,null,null,1,null,0]
[1295,null,null,0,null,null,1,null,0]
[1296,null,null,0,null,null,1,null,0]
[1297,null,null,0,null,null,1,null,0]
[1298,null,null,0,null,null,1,null,0]
[1299,null,null,0,null,null,1,null,0]
[1300,null,null,0,null,null,1,null,0]
[1301,null,null,0,null,null,1,null,0]
[1302,null,null,0,null,null,1,null,0]
[1303,null,null,0,null,null,1,null,0]
[1304,null,null,0,null,null,1,null,0]
[1305,null,null,0,null,null,1,null,0]
[1306,null,null,0,null,null,1,null,0]
[1307,null,null,0,null,null,1,null,0]
[1308,null,null,0,null,null,1,null,0]
[1309,null,null,0,null,null,1,null,0]
[1310,null,null,0,null,null,1,null,0]
[1311,null,null,0,null,null,1,null,0]
[1312,null,null,0,null,null,1,null,0]
[1313,null,null,0,null,null,1,null,0]
[1314,null,null,0,null,null,1,null,0]
[1315,null,null,0,null,null,1,null,0]
[1316,null,null,0,null,null,1,null,0]
[1317,null,null,0,null,null,1,null,0]
[1318,null,null,0,null,null,1,null,0]
[1319,null,null,0,null,null,1,null,0]
[1320,null,null,0,null,null,1,null,0]
[1321,null,null,0,null,null,1,null,0]
[1322,null,null,0,null,null,1,null,0]
[1323,null,null,0,null,null,1,null,0]
[1324,null,null,0,null,null,1,null,0]
[1325,null,null,0,null,null,1,null,0]
[1326,null,null,0,null,null,1,null,0]
[1327,null,null,0,null,null,1,null,0]
[1328,null,null,0,null,null,1,null,0]
[1329,null,null,0,null,null,1,null,0]
[1330,null,null,0,null,null,1,null,0]
[1331,null,null,0,null,null,1,null,0]
[1332,null,null,0,null,null,1,null,0]
[1333,null,null,{"$f":"DATEDIF(C1345,F1345,\"Y\")","v":0},null,null,1,null,0]
[1334,null,null,0,null,null,1,null,0]
[1335,null,null,0,null,null,1,null,0]
[1336,null,null,0,null,null,1,null,0]
[1337,null,null,0,null,null,1,null,0]
[1338,null,null,0,null,null,1,null,0]
[1339,null,null,0,null,null,1,null,0]
[1340,null,null,0,null,null,1,null,0]
[1341,null,null,0,null,null,1,null,0]
[1342,null,null,0,null,null,1,null,0]
[1343,null,null,0,null,null,1,null,0]
[1344,null,null,0,null,null,1,null,0]
[1345,null,null,0,null,null,{"$f":"(YEAR(F1357)-YEAR(E1357))*12+MONTH(F1357)-MONTH(E1357)+1","v":1},null,0]
[1346,null,null,0,null,null,1,null,{"$f":"IF(AND(E1358<=DATEVALUE(MID($C$7,1,10)),F1358>=DATEVALUE(MID($C$7,14,10))), (YEAR(DATEVALUE(MID($C$7,14,10)))-YEAR(DATEVALUE(MID($C$7,1,10))))*12+(MONTH(DATEVALUE(MID($C$7,14,10)))-MONTH(DATEVALUE(MID($C$7,1,10))))+1,IF(AND(E1358<=DATEVALUE(MID($C$7,1,10)),F1358<DATEVALUE(MID($C$7,14,10)),F1358>=DATEVALUE(MID($C$7,1,10))),(YEAR(F1358)-YEAR(DATEVALUE(MID($C$7,1,10))))*12+(MONTH(F1358)-MONTH(DATEVALUE(MID($C$7,1,10))))+1,IF(AND(E1358>DATEVALUE(MID($C$7,1,10)),F1358>=DATEVALUE(MID($C$7,14,10)),E1358<=DATEVALUE(MID($C$7,14,10))),(YEAR(DATEVALUE(MID($C$7,14,10)))-YEAR(E1358))*12+(MONTH(DATEVALUE(MID($C$7,14,10)))-MONTH(E1358))+1,IF(AND(E1358>DATEVALUE(MID($C$7,1,10)),F1358<DATEVALUE(MID($C$7,14,10))),(YEAR(F1358)-YEAR(E1358))*12+(MONTH(F1358)-MONTH(E1358))+1,0))))","v":0}]
[1347,null,null,0,null,null,1,null,0]
[1348,null,null,0,null,null,1,null,0]
[1349,null,null,0,null,null,1,null,0]
[1350,null,null,0,null,null,1,null,0]
[1351,null,null,0,null,null,1,null,0]
[1352,null,null,0,null,null,1,null,0]
[1353,null,null,0,null,null,1,null,0]
[1354,null,null,0,null,null,1,null,0]
[1355,null,null,0,null,null,1,null,0]
[1356,null,null,0,null,null,1,null,0]
[1357,null,null,0,null,null,1,null,0]
[1358,null,null,0,null,null,1,null,0]
[1359,null,null,0,null,null,1,null,0]
[1360,null,null,0,null,null,1,null,0]
[1361,null,null,0,null,null,1,null,0]
[1362,null,null,0,null,null,1,null,0]
[1363,null,null,0,null,null,1,null,0]
[1364,null,null,0,null,null,1,null,0]
[1365,null,null,0,null,null,1,null,0]
[1366,null,null,0,null,null,1,null,0]
[1367,null,null,0,null,null,1,null,0]
[1368,null,null,0,null,null,1,null,0]
[1369,null,null,0,null,null,1,null,0]
[1370,null,null,0,null,null,1,null,0]
[1371,null,null,0,null,null,1,null,0]
[1372,null,null,0,null,null,1,null,0]
[1373,null,null,0,null,null,1,null,0]
[1374,null,null,0,null,null,1,null,0]
[1375,null,null,0,null,null,1,null,0]
[1376,null,null,0,null,null,1,null,0]
[1377,null,null,0,null,null,1,null,0]
[1378,null,null,0,null,null,1,null,0]
[1379,null,null,0,null,null,1,null,0]
[1380,null,null,0,null,null,1,null,0]
[1381,null,null,0,null,null,1,null,0]
[1382,null,null,0,null,null,1,null,0]
[1383,null,null,0,null,null,1,null,0]
[1384,null,null,0,null,null,1,null,0]
[1385,null,null,0,null,null,1,null,0]
[1386,null,null,0,null,null,1,null,0]
[1387,null,null,0,null,null,1,null,0]
[1388,null,null,0,null,null,1,null,0]
[1389,null,null,0,null,null,1,null,0]
[1390,null,null,0,null,null,1,null,0]
[1391,null,null,0,null,null,1,null,0]
[1392,null,null,0,null,null,1,null,0]
[1393,null,null,0,null,null,1,null,0]
[1394,null,null,0,null,null,1,null,0]
[1395,null,null,0,null,null,1,null,0]
[1396,null,null,0,null,null,1,null,0]
[1397,null,null,{"$f":"DATEDIF(C1409,F1409,\"Y\")","v":0},null,null,1,null,0]
[1398,null,null,0,null,null,1,null,0]
[1399,null,null,0,null,null,1,null,0]
[1400,null,null,0,null,null,1,null,0]
[1401,null,null,0,null,null,1,null,0]
[1402,null,null,0,null,null,1,null,0]
[1403,null,null,0,null,null,1,null,0]
[1404,null,null,0,null,null,1,null,0]
[1405,null,null,0,null,null,1,null,0]
[1406,null,null,0,null,null,1,null,0]
[1407,null,null,0,null,null,1,null,0]
[1408,null,null,0,null,null,1,null,0]
[1409,null,null,0,null,null,{"$f":"(YEAR(F1421)-YEAR(E1421))*12+MONTH(F1421)-MONTH(E1421)+1","v":1},null,0]
[1410,null,null,0,null,null,1,null,{"$f":"IF(AND(E1422<=DATEVALUE(MID($C$7,1,10)),F1422>=DATEVALUE(MID($C$7,14,10))), (YEAR(DATEVALUE(MID($C$7,14,10)))-YEAR(DATEVALUE(MID($C$7,1,10))))*12+(MONTH(DATEVALUE(MID($C$7,14,10)))-MONTH(DATEVALUE(MID($C$7,1,10))))+1,IF(AND(E1422<=DATEVALUE(MID($C$7,1,10)),F1422<DATEVALUE(MID($C$7,14,10)),F1422>=DATEVALUE(MID($C$7,1,10))),(YEAR(F1422)-YEAR(DATEVALUE(MID($C$7,1,10))))*12+(MONTH(F1422)-MONTH(DATEVALUE(MID($C$7,1,10))))+1,IF(AND(E1422>DATEVALUE(MID($C$7,1,10)),F1422>=DATEVALUE(MID($C$7,14,10)),E1422<=DATEVALUE(MID($C$7,14,10))),(YEAR(DATEVALUE(MID($C$7,14,10)))-YEAR(E1422))*12+(MONTH(DATEVALUE(MID($C$7,14,10)))-MONTH(E1422))+1,IF(AND(E1422>DATEVALUE(MID($C$7,1,10)),F1422<DATEVALUE(MID($C$7,14,10))),(YEAR(F1422)-YEAR(E1422))*12+(MONTH(F1422)-MONTH(E1422))+1,0))))","v":0}]
[1411,null,null,0,null,null,1,null,0]
[1412,null,null,0,null,null,1,null,0]
[1413,null,null,0,null,null,1,null,0]
[1414,null,null,0,null,null,1,null,0]
[1415,null,null,0,null,null,1,null,0]
[1416,null,null,0,null,null,1,null,0]
[1417,null,null,0,null,null,1,null,0]
[1418,null,null,0,null,null,1,null,0]
[1419,null,null,0,null,null,1,null,0]
[1420,null,null,0,null,null,1,null,0]
[1421,null,null,0,null,null,1,null,0]
[1422,null,null,0,null,null,1,null,0]
[1423,null,null,0,null,null,1,null,0]
[1424,null,null,0,null,null,1,null,0]
[1425,null,null,0,null,null,1,null,0]
[1426,null,null,0,null,null,1,null,0]
[1427,null,null,0,null,null,1,null,0]
[1428,null,null,0,null,null,1,null,0]
[1429,null,null,0,null,null,1,null,0]
[1430,null,null,0,null,null,1,null,0]
[1431,null,null,0,null,null,1,null,0]
[1432,null,null,0,null,null,1,null,0]
[1433,null,null,0,null,null,1,null,0]
[1434,null,null,0,null,null,1,null,0]
[1435,null,null,0,null,null,1,null,0]
[1436,null,null,0,null,null,1,null,0]
[1437,null,null,0,null,null,1,null,0]
[1438,null,null,0,null,null,1,null,0]
[1439,null,null,0,null,null,1,null,0]
[1440,null,null,0,null,null,1,null,0]
[1441,null,null,0,null,null,1,null,0]
[1442,null,null,0,null,null,1,null,0]
[1443,null,null,0,null,null,1,null,0]
[1444,null,null,0,null,null,1,null,0]
[1445,null,null,0,null,null,1,null,0]
[1446,null,null,0,null,null,1,null,0]
[1447,null,null,0,null,null,1,null,0]
[1448,null,null,0,null,null,1,null,0]
[1449,null,null,0,null,null,1,null,0]
[1450,null,null,0,null,null,1,null,0]
[1451,null,null,0,null,null,1,null,0]
[1452,null,null,0,null,null,1,null,0]
[1453,null,null,0,null,null,1,null,0]
[1454,null,null,0,null,null,1,null,0]
[1455,null,null,0,null,null,1,null,0]
[1456,null,null,0,null,null,1,null,0]
[1457,null,null,0,null,null,1,null,0]
[1458,null,null,0,null,null,1,null,0]
[1459,null,null,0,null,null,1,null,0]
[1460,null,null,0,null,null,1,null,0]
[1461,null,null,{"$f":"DATEDIF(C1473,F1473,\"Y\")","v":0},null,null,1,null,0]
[1462,null,null,0,null,null,1,null,0]
[1463,null,null,0,null,null,1,null,0]
[1464,null,null,0,null,null,1,null,0]
[1465,null,null,0,null,null,1,null,0]
[1466,null,null,0,null,null,1,null,0]
[1467,null,null,0,null,null,1,null,0]
[1468,null,null,0,null,null,1,null,0]
[1469,null,null,0,null,null,1,null,0]
[1470,null,null,0,null,null,1,null,0]
[1471,null,null,0,null,null,1,null,0]
[1472,null,null,0,null,null,1,null,0]
[1473,null,null,0,null,null,{"$f":"(YEAR(F1485)-YEAR(E1485))*12+MONTH(F1485)-MONTH(E1485)+1","v":1},null,0]
[1474,null,null,0,null,null,1,null,{"$f":"IF(AND(E1486<=DATEVALUE(MID($C$7,1,10)),F1486>=DATEVALUE(MID($C$7,14,10))), (YEAR(DATEVALUE(MID($C$7,14,10)))-YEAR(DATEVALUE(MID($C$7,1,10))))*12+(MONTH(DATEVALUE(MID($C$7,14,10)))-MONTH(DATEVALUE(MID($C$7,1,10))))+1,IF(AND(E1486<=DATEVALUE(MID($C$7,1,10)),F1486<DATEVALUE(MID($C$7,14,10)),F1486>=DATEVALUE(MID($C$7,1,10))),(YEAR(F1486)-YEAR(DATEVALUE(MID($C$7,1,10))))*12+(MONTH(F1486)-MONTH(DATEVALUE(MID($C$7,1,10))))+1,IF(AND(E1486>DATEVALUE(MID($C$7,1,10)),F1486>=DATEVALUE(MID($C$7,14,10)),E1486<=DATEVALUE(MID($C$7,14,10))),(YEAR(DATEVALUE(MID($C$7,14,10)))-YEAR(E1486))*12+(MONTH(DATEVALUE(MID($C$7,14,10)))-MONTH(E1486))+1,IF(AND(E1486>DATEVALUE(MID($C$7,1,10)),F1486<DATEVALUE(MID($C$7,14,10))),(YEAR(F1486)-YEAR(E1486))*12+(MONTH(F1486)-MONTH(E1486))+1,0))))","v":0}]
[1475,null,null,0,null,null,1,null,0]
[1476,null,null,0,null,null,1,null,0]
[1477,null,null,0,null,null,1,null,0]
[1478,null,null,0,null,null,1,null,0]
[1479,null,null,0,null,null,1,null,0]
[1480,null,null,0,null,null,1,null,0]
[1481,null,null,0,null,null,1,null,0]
[1482,null,null,0,null,null,1,null,0]
[1483,null,null,0,null,null,1,null,0]
[1484,null,null,0,null,null,1,null,0]
[1485,null,null,0,null,null,1,null,0]
[1486,null,null,0,null,null,1,null,0]
[1487,null,null,{"$f":"DATEDIF(C1499,F1499,\"Y\")","v":0},null,null,{"$f":"(YEAR(F1499)-YEAR(E1499))*12+MONTH(F1499)-MONTH(E1499)+1","v":1},null,0]
[1488,null,null,0,null,null,1,null,0]
[1489,null,null,0,null,null,1,null,0]
[1490,null,null,0,null,null,1,null,0]
[1491,null,null,0,null,null,1,null,0]
[1492,null,null,0,null,null,1,null,0]
[1493,null,null,0,null,null,1,null,0]
[1494,null,null,0,null,null,1,null,0]
[1495,null,null,0,null,null,1,null,0]
[1496,null,null,0,null,null,1,null,0]
[1497,null,null,0,null,null,1,null,0]
[1498,null,null,0,null,null,1,null,0]
[1499,null,null,0,null,null,1,null,0]
[1500,null,null,0,null,null,1,null,0]
[1501,null,null,0,null,null,1,null,0]
[1502,null,null,0,null,null,1,null,0]
[1503,null,null,0,null,null,1,null,0]
[1504,null,null,0,null,null,1,null,0]
[1505,null,null,0,null,null,1,null,0]
[1506,null,null,0,null,null,1,null,0]
[1507,null,null,0,null,null,1,null,0]
[1508,null,null,{"$f":"DATEDIF(C1520,F1520,\"Y\")","v":0},null,null,{"$f":"(YEAR(F1520)-YEAR(E1520))*12+MONTH(F1520)-MONTH(E1520)+1","v":1},null,{"$f":"IF(AND(E1520<=DATEVALUE(MID($C$7,1,10)),F1520>=DATEVALUE(MID($C$7,14,10))), (YEAR(DATEVALUE(MID($C$7,14,10)))-YEAR(DATEVALUE(MID($C$7,1,10))))*12+(MONTH(DATEVALUE(MID($C$7,14,10)))-MONTH(DATEVALUE(MID($C$7,1,10))))+1,IF(AND(E1520<=DATEVALUE(MID($C$7,1,10)),F1520<DATEVALUE(MID($C$7,14,10)),F1520>=DATEVALUE(MID($C$7,1,10))),(YEAR(F1520)-YEAR(DATEVALUE(MID($C$7,1,10))))*12+(MONTH(F1520)-MONTH(DATEVALUE(MID($C$7,1,10))))+1,IF(AND(E1520>DATEVALUE(MID($C$7,1,10)),F1520>=DATEVALUE(MID($C$7,14,10)),E1520<=DATEVALUE(MID($C$7,14,10))),(YEAR(DATEVALUE(MID($C$7,14,10)))-YEAR(E1520))*12+(MONTH(DATEVALUE(MID($C$7,14,10)))-MONTH(E1520))+1,IF(AND(E1520>DATEVALUE(MID($C$7,1,10)),F1520<DATEVALUE(MID($C$7,14,10))),(YEAR(F1520)-YEAR(E1520))*12+(MONTH(F1520)-MONTH(E1520))+1,0))))","v":0}]
[1509,null,null,0,null,null,1,null,0]
[1510,null,null,0,null,null,1,null,0]
[1511,null,null,0,null,null,1,null,0]
[1512,null,null,0,null,null,1,null,0]
[1513,null,null,0,null,null,1,null,0]
[1514,null,null,0,null,null,1,null,0]
[1515,null,null,0,null,null,1,null,0]
[1516,null,null,0,null,null,1,null,0]
[1517,null,null,0,null,null,1,null,0]
[1518,null,null,0,null,null,1,null,0]
[1519,null,null,0,null,null,1,null,0]
[1520,null,null,0,null,null,1,null,0]
[1521,null,null,0,null,null,1,null,0]
[1522,null,null,0,null,null,1,null,0]
[1523,null,null,0,null,null,1,null,0]
[1524,null,null,0,null,null,1,null,0]
[1525,null,null,0,null,null,1,null,0]
[1526,null,null,0,null,null,1,null,0]
[1527,null,null,0,null,null,1,null,0]
[1528,null,null,0,null,null,1,null,0]
[1529,null,null,0,null,null,1,null,0]
[1530,null,null,0,null,null,1,null,0]
[1531,null,null,0,null,null,1,null,0]
[1532,null,null,0,null,null,1,null,0]
[1533,null,null,0,null,null,1,null,0]
[1534,null,null,0,null,null,1,null,0]
[1535,null,null,0,null,null,1,null,0]
[1536,null,null,0,null,null,1,null,0]
[1537,null,null,0,null,null,1,null,0]
[1538,null,null,0,null,null,1,null,0]
[1539,null,null,0,null,null,1,null,0]
[1540,null,null,0,null,null,1,null,0]
[1541,null,null,0,null,null,1,null,0]
[1542,null,null,0,null,null,1,null,0]
[1543,null,null,0,null,null,1,null,0]
[1544,null,null,0,null,null,1,null,0]
[1545,null,null,0,null,null,1,null,0]
[1546,null,null,0,null,null,1,null,0]
[1547,null,null,0,null,null,1,null,0]
[1548,null,null,0,null,null,1,null,0]
[1549,null,null,0,null,null,1,null,0]
[1550,null,null,0,null,null,1,null,0]
[1551,null,null,0,null,null,1,null,0]
[1552,null,null,0,null,null,1,null,0]
[1553,null,null,0,null,null,1,null,0]
[1554,null,null,0,null,null,1,null,0]
[1555,null,null,0,null,null,1,null,0]
[1556,null,null,0,null,null,1,null,0]
[1557,null,null,0,null,null,1,null,0]
[1558,null,null,0,null,null,1,null,0]
[1559,null,null,0,null,null,1,null,0]
[1560,null,null,0,null,null,1,null,0]
[1561,null,null,0,null,null,1,null,0]
[1562,null,null,0,null,null,1,null,0]
[1563,null,null,0,null,null,1,null,0]
[1564,null,null,0,null,null,1,null,0]
[1565,null,null,0,null,null,1,null,0]
[1566,null,null,0,null,null,1,null,0]
[1567,null,null,0,null,null,1,null,0]
[1568,null,null,0,null,null,1,null,0]
[1569,null,null,0,null,null,1,null,0]
[1570,null,null,0,null,null,1,null,0]
[1571,null,null,0,null,null,1,null,0]
[1572,null,null,{"$f":"DATEDIF(C1584,F1584,\"Y\")","v":0},null,null,{"$f":"(YEAR(F1584)-YEAR(E1584))*12+MONTH(F1584)-MONTH(E1584)+1","v":1},null,{"$f":"IF(AND(E1584<=DATEVALUE(MID($C$7,1,10)),F1584>=DATEVALUE(MID($C$7,14,10))), (YEAR(DATEVALUE(MID($C$7,14,10)))-YEAR(DATEVALUE(MID($C$7,1,10))))*12+(MONTH(DATEVALUE(MID($C$7,14,10)))-MONTH(DATEVALUE(MID($C$7,1,10))))+1,IF(AND(E1584<=DATEVALUE(MID($C$7,1,10)),F1584<DATEVALUE(MID($C$7,14,10)),F1584>=DATEVALUE(MID($C$7,1,10))),(YEAR(F1584)-YEAR(DATEVALUE(MID($C$7,1,10))))*12+(MONTH(F1584)-MONTH(DATEVALUE(MID($C$7,1,10))))+1,IF(AND(E1584>DATEVALUE(MID($C$7,1,10)),F1584>=DATEVALUE(MID($C$7,14,10)),E1584<=DATEVALUE(MID($C$7,14,10))),(YEAR(DATEVALUE(MID($C$7,14,10)))-YEAR(E1584))*12+(MONTH(DATEVALUE(MID($C$7,14,10)))-MONTH(E1584))+1,IF(AND(E1584>DATEVALUE(MID($C$7,1,10)),F1584<DATEVALUE(MID($C$7,14,10))),(YEAR(F1584)-YEAR(E1584))*12+(MONTH(F1584)-MONTH(E1584))+1,0))))","v":0}]
[1573,null,null,0,null,null,1,null,0]
[1574,null,null,0,null,null,1,null,0]
[1575,null,null,0,null,null,1,null,0]
[1576,null,null,0,null,null,1,null,0]
[1577,null,null,0,null,null,1,null,0]
[1578,null,null,0,null,null,1,null,0]
[1579,null,null,0,null,null,1,null,0]
[1580,null,null,0,null,null,1,null,0]
[1581,null,null,0,null,null,1,null,0]
[1582,null,null,0,null,null,1,null,0]
[1583,null,null,0,null,null,1,null,0]
[1584,null,null,0,null,null,1,null,0]
[1585,null,null,0,null,null,1,null,0]
[1586,null,null,0,null,null,1,null,0]
[1587,null,null,0,null,null,1,null,0]
[1588,null,null,0,null,null,1,null,0]
[1589,null,null,0,null,null,1,null,0]
[1590,null,null,0,null,null,1,null,0]
[1591,null,null,0,null,null,1,null,0]
[1592,null,null,0,null,null,1,null,0]
[1593,null,null,0,null,null,1,null,0]
[1594,null,null,0,null,null,1,null,0]
[1595,null,null,0,null,null,1,null,0]
[1596,null,null,0,null,null,1,null,0]
[1597,null,null,0,null,null,1,null,0]
[1598,null,null,0,null,null,1,null,0]
[1599,null,null,0,null,null,1,null,0]
[1600,null,null,0,null,null,1,null,0]
[1601,null,null,0,null,null,1,null,0]
[1602,null,null,0,null,null,1,null,0]
[1603,null,null,0,null,null,1,null,0]
[1604,null,null,0,null,null,1,null,0]
[1605,null,null,0,null,null,1,null,0]
[1606,null,null,0,null,null,1,null,0]
[1607,null,null,0,null,null,1,null,0]
[1608,null,null,0,null,null,1,null,0]
[1609,null,null,0,null,null,1,null,0]
[1610,null,null,0,null,null,1,null,0]
[1611,null,null,0,null,null,1,null,0]
[1612,null,null,0,null,null,1,null,0]
[1613,null,null,0,null,null,1,null,0]
[1614,null,null,0,null,null,1,null,0]
[1615,null,null,0,null,null,1,null,0]
[1616,null,null,0,null,null,1,null,0]
[1617,null,null,0,null,null,1,null,0]
[1618,null,null,0,null,null,1,null,0]
[1619,null,null,0,null,null,1,null,0]
[1620,null,null,0,null,null,1,null,0]
[1621,null,null,0,null,null,1,null,0]
[1622,null,null,0,null,null,1,null,0]
[1623,null,null,0,null,null,1,null,0]
[1624,null,null,0,null,null,1,null,0]
[1625,null,null,0,null,null,1,null,0]
[1626,null,null,0,null,null,1,null,0]
[1627,null,null,0,null,null,1,null,0]
[1628,null,null,0,null,null,1,null,0]
[1629,null,null,0,null,null,1,null,0]
[1630,null,null,0,null,null,1,null,0]
[1631,null,null,0,null,null,1,null,0]
[1632,null,null,0,null,null,1,null,0]
[1633,null,null,0,null,null,1,null,0]
[1634,null,null,0,null,null,1,null,0]
[1635,null,null,0,null,null,1,null,0]
[1636,null,null,{"$f":"DATEDIF(C1648,F1648,\"Y\")","v":0},null,null,{"$f":"(YEAR(F1648)-YEAR(E1648))*12+MONTH(F1648)-MONTH(E1648)+1","v":1},null,{"$f":"IF(AND(E1648<=DATEVALUE(MID($C$7,1,10)),F1648>=DATEVALUE(MID($C$7,14,10))), (YEAR(DATEVALUE(MID($C$7,14,10)))-YEAR(DATEVALUE(MID($C$7,1,10))))*12+(MONTH(DATEVALUE(MID($C$7,14,10)))-MONTH(DATEVALUE(MID($C$7,1,10))))+1,IF(AND(E1648<=DATEVALUE(MID($C$7,1,10)),F1648<DATEVALUE(MID($C$7,14,10)),F1648>=DATEVALUE(MID($C$7,1,10))),(YEAR(F1648)-YEAR(DATEVALUE(MID($C$7,1,10))))*12+(MONTH(F1648)-MONTH(DATEVALUE(MID($C$7,1,10))))+1,IF(AND(E1648>DATEVALUE(MID($C$7,1,10)),F1648>=DATEVALUE(MID($C$7,14,10)),E1648<=DATEVALUE(MID($C$7,14,10))),(YEAR(DATEVALUE(MID($C$7,14,10)))-YEAR(E1648))*12+(MONTH(DATEVALUE(MID($C$7,14,10)))-MONTH(E1648))+1,IF(AND(E1648>DATEVALUE(MID($C$7,1,10)),F1648<DATEVALUE(MID($C$7,14,10))),(YEAR(F1648)-YEAR(E1648))*12+(MONTH(F1648)-MONTH(E1648))+1,0))))","v":0}]
[1637,null,null,0,null,null,1,null,0]
[1638,null,null,0,null,null,1,null,0]
[1639,null,null,0,null,null,1,null,0]
[1640,null,null,0,null,null,1,null,0]
[1641,null,null,0,null,null,1,null,0]
[1642,null,null,0,null,null,1,null,0]
[1643,null,null,0,null,null,1,null,0]
[1644,null,null,0,null,null,1,null,0]
[1645,null,null,0,null,null,1,null,0]
[1646,null,null,0,null,null,1,null,0]
[1647,null,null,0,null,null,1,null,0]
[1648,null,null,0,null,null,1,null,0]
[1649,null,null,0,null,null,1,null,0]
[1650,null,null,0,null,null,1,null,0]
[1651,null,null,0,null,null,1,null,0]
[1652,null,null,0,null,null,1,null,0]
[1653,null,null,0,null,null,1,null,0]
[1654,null,null,0,null,null,1,null,0]
[1655,null,null,0,null,null,1,null,0]
[1656,null,null,0,null,null,1,null,0]
[1657,null,null,0,null,null,1,null,0]
[1658,null,null,0,null,null,1,null,0]
[1659,null,null,0,null,null,1,null,0]
[1660,null,null,0,null,null,1,null,0]
[1661,null,null,0,null,null,1,null,0]
[1662,null,null,0,null,null,1,null,0]
[1663,null,null,0,null,null,1,null,0]
[1664,null,null,0,null,null,1,null,0]
[1665,null,null,0,null,null,1,null,0]
[1666,null,null,0,null,null,1,null,0]
[1667,null,null,0,null,null,1,null,0]
[1668,null,null,0,null,null,1,null,0]
[1669,null,null,0,null,null,1,null,0]
[1670,null,null,0,null,null,1,null,0]
[1671,null,null,0,null,null,1,null,0]
[1672,null,null,0,null,null,1,null,0]
[1673,null,null,0,null,null,1,null,0]
[1674,null,null,0,null,null,1,null,0]
[1675,null,null,0,null,null,1,null,0]
[1676,null,null,0,null,null,1,null,0]
[1677,null,null,0,null,null,1,null,0]
[1678,null,null,0,null,null,1,null,0]
[1679,null,null,0,null,null,1,null,0]
[1680,null,null,0,null,null,1,null,0]
[1681,null,null,0,null,null,1,null,0]
[1682,null,null,0,null,null,1,null,0]
[1683,null,null,0,null,null,1,null,0]
[1684,null,null,0,null,null,1,null,0]
[1685,null,null,0,null,null,1,null,0]
[1686,null,null,0,null,null,1,null,0]
[1687,null,null,0,null,null,1,null,0]
[1688,null,null,0,null,null,1,null,0]
[1689,null,null,0,null,null,1,null,0]
[1690,null,null,0,null,null,1,null,0]
[1691,null,null,0,null,null,1,null,0]
[1692,null,null,0,null,null,1,null,0]
[1693,null,null,0,null,null,1,null,0]
[1694,null,null,0,null,null,1,null,0]
[1695,null,null,0,null,null,1,null,0]
[1696,null,null,0,null,null,1,null,0]
[1697,null,null,0,null,null,1,null,0]
[1698,null,null,0,null,null,1,null,0]
[1699,null,null,0,null,null,1,null,0]
[1700,null,null,{"$f":"DATEDIF(C1712,F1712,\"Y\")","v":0},null,null,{"$f":"(YEAR(F1712)-YEAR(E1712))*12+MONTH(F1712)-MONTH(E1712)+1","v":1},null,{"$f":"IF(AND(E1712<=DATEVALUE(MID($C$7,1,10)),F1712>=DATEVALUE(MID($C$7,14,10))), (YEAR(DATEVALUE(MID($C$7,14,10)))-YEAR(DATEVALUE(MID($C$7,1,10))))*12+(MONTH(DATEVALUE(MID($C$7,14,10)))-MONTH(DATEVALUE(MID($C$7,1,10))))+1,IF(AND(E1712<=DATEVALUE(MID($C$7,1,10)),F1712<DATEVALUE(MID($C$7,14,10)),F1712>=DATEVALUE(MID($C$7,1,10))),(YEAR(F1712)-YEAR(DATEVALUE(MID($C$7,1,10))))*12+(MONTH(F1712)-MONTH(DATEVALUE(MID($C$7,1,10))))+1,IF(AND(E1712>DATEVALUE(MID($C$7,1,10)),F1712>=DATEVALUE(MID($C$7,14,10)),E1712<=DATEVALUE(MID($C$7,14,10))),(YEAR(DATEVALUE(MID($C$7,14,10)))-YEAR(E1712))*12+(MONTH(DATEVALUE(MID($C$7,14,10)))-MONTH(E1712))+1,IF(AND(E1712>DATEVALUE(MID($C$7,1,10)),F1712<DATEVALUE(MID($C$7,14,10))),(YEAR(F1712)-YEAR(E1712))*12+(MONTH(F1712)-MONTH(E1712))+1,0))))","v":0}]
[1701,null,null,0,null,null,1,null,0]
[1702,null,null,0,null,null,1,null,0]
[1703,null,null,0,null,null,1,null,0]
[1704,null,null,0,null,null,1,null,0]
[1705,null,null,0,null,null,1,null,0]
[1706,null,null,0,null,null,1,null,0]
[1707,null,null,0,null,null,1,null,0]
[1708,null,null,0,null,null,1,null,0]
[1709,null,null,0,null,null,1,null,0]
[1710,null,null,0,null,null,1,null,0]
[1711,null,null,0,null,null,1,null,0]
[1712,null,null,0,null,null,1,null,0]
[1713,null,null,0,null,null,1,null,0]
[1714,null,null,0,null,null,1,null,0]
[1715,null,null,0,null,null,1,null,0]
[1716,null,null,0,null,null,1,null,0]
[1717,null,null,0,null,null,1,null,0]
[1718,null,null,0,null,null,1,null,0]
[1719,null,null,0,null,null,1,null,0]
[1720,null,null,0,null,null,1,null,0]
[1721,null,null,0,null,null,1,null,0]
[1722,null,null,0,null,null,1,null,0]
[1723,null,null,0,null,null,1,null,0]
[1724,null,null,0,null,null,1,null,0]
[1725,null,null,0,null,null,1,null,0]
[1726,null,null,0,null,null,1,null,0]
[1727,null,null,0,null,null,1,null,0]
[1728,null,null,0,null,null,1,null,0]
[1729,null,null,0,null,null,1,null,0]
[1730,null,null,0,null,null,1,null,0]
[1731,null,null,0,null,null,1,null,0]
[1732,null,null,0,null,null,1,null,0]
[1733,null,null,0,null,null,1,null,0]
[1734,null,null,0,null,null,1,null,0]
[1735,null,null,0,null,null,1,null,0]
[1736,null,null,0,null,null,1,null,0]
[1737,null,null,0,null,null,1,null,0]
[1738,null,null,0,null,null,1,null,0]
[1739,null,null,0,null,null,1,null,0]
[1740,null,null,0,null,null,1,null,0]
[1741,null,null,0,null,null,1,null,0]
[1742,null,null,0,null,null,1,null,0]
[1743,null,null,0,null,null,1,null,0]
[1744,null,null,0,null,null,1,null,0]
[1745,null,null,0,null,null,1,null,0]
[1746,null,null,0,null,null,1,null,0]
[1747,null,null,0,null,null,1,null,0]
[1748,null,null,0,null,null,1,null,0]
[1749,null,null,0,null,null,1,null,0]
[1750,null,null,0,null,null,1,null,0]
[1751,null,null,0,null,null,1,null,0]
[1752,null,null,0,null,null,1,null,0]
[1753,null,null,0,null,null,1,null,0]
[1754,null,null,0,null,null,1,null,0]
[1755,null,null,0,null,null,1,null,0]
[1756,null,null,0,null,null,1,null,0]
[1757,null,null,0,null,null,1,null,0]
[1758,null,null,0,null,null,1,null,0]
[1759,null,null,0,null,null,1,null,0]
[1760,null,null,0,null,null,1,null,0]
[1761,null,null,0,null,null,1,null,0]
[1762,null,null,0,null,null,1,null,0]
[1763,null,null,0,null,null,1,null,0]
[1764,null,null,{"$f":"DATEDIF(C1776,F1776,\"Y\")","v":0},null,null,{"$f":"(YEAR(F1776)-YEAR(E1776))*12+MONTH(F1776)-MONTH(E1776)+1","v":1},null,{"$f":"IF(AND(E1776<=DATEVALUE(MID($C$7,1,10)),F1776>=DATEVALUE(MID($C$7,14,10))), (YEAR(DATEVALUE(MID($C$7,14,10)))-YEAR(DATEVALUE(MID($C$7,1,10))))*12+(MONTH(DATEVALUE(MID($C$7,14,10)))-MONTH(DATEVALUE(MID($C$7,1,10))))+1,IF(AND(E1776<=DATEVALUE(MID($C$7,1,10)),F1776<DATEVALUE(MID($C$7,14,10)),F1776>=DATEVALUE(MID($C$7,1,10))),(YEAR(F1776)-YEAR(DATEVALUE(MID($C$7,1,10))))*12+(MONTH(F1776)-MONTH(DATEVALUE(MID($C$7,1,10))))+1,IF(AND(E1776>DATEVALUE(MID($C$7,1,10)),F1776>=DATEVALUE(MID($C$7,14,10)),E1776<=DATEVALUE(MID($C$7,14,10))),(YEAR(DATEVALUE(MID($C$7,14,10)))-YEAR(E1776))*12+(MONTH(DATEVALUE(MID($C$7,14,10)))-MONTH(E1776))+1,IF(AND(E1776>DATEVALUE(MID($C$7,1,10)),F1776<DATEVALUE(MID($C$7,14,10))),(YEAR(F1776)-YEAR(E1776))*12+(MONTH(F1776)-MONTH(E1776))+1,0))))","v":0}]
[1765,null,null,0,null,null,1,null,0]
[1766,null,null,0,null,null,1,null,0]
[1767,null,null,0,null,null,1,null,0]
[1768,null,null,0,null,null,1,null,0]
[1769,null,null,0,null,null,1,null,0]
[1770,null,null,0,null,null,1,null,0]
[1771,null,null,0,null,null,1,null,0]
[1772,null,null,0,null,null,1,null,0]
[1773,null,null,0,null,null,1,null,0]
[1774,null,null,0,null,null,1,null,0]
[1775,null,null,0,null,null,1,null,0]
[1776,null,null,0,null,null,1,null,0]
[1777,null,null,0,null,null,1,null,0]
[1778,null,null,0,null,null,1,null,0]
[1779,null,null,0,null,null,1,null,0]
[1780,null,null,0,null,null,1,null,0]
[1781,null,null,0,null,null,1,null,0]
[1782,null,null,0,null,null,1,null,0]
[1783,null,null,0,null,null,1,null,0]
[1784,null,null,0,null,null,1,null,0]
[1785,null,null,0,null,null,1,null,0]
[1786,null,null,0,null,null,1,null,0]
[1787,null,null,0,null,null,1,null,0]
[1788,null,null,0,null,null,1,null,0]
[1789,null,null,0,null,null,1,null,0]
[1790,null,null,0,null,null,1,null,0]
[1791,null,null,0,null,null,1,null,0]
[1792,null,null,0,null,null,1,null,0]
[1793,null,null,0,null,null,1,null,0]
[1794,null,null,0,null,null,1,null,0]
[1795,null,null,0,null,null,1,null,0]
[1796,null,null,0,null,null,1,null,0]
[1797,null,null,0,null,null,1,null,0]
[1798,null,null,0,null,null,1,null,0]
[1799,null,null,0,null,null,1,null,0]
[1800,null,null,0,null,null,1,null,0]
[1801,null,null,0,null,null,1,null,0]
[1802,null,null,0,null,null,1,null,0]
[1803,null,null,0,null,null,1,null,0]
[1804,null,null,0,null,null,1,null,0]
[1805,null,null,0,null,null,1,null,0]
[1806,null,null,0,null,null,1,null,0]
[1807,null,null,0,null,null,1,null,0]
[1808,null,null,0,null,null,1,null,0]
[1809,null,null,0,null,null,1,null,0]
[1810,null,null,0,null,null,1,null,0]
[1811,null,null,0,null,null,1,null,0]
[1812,null,null,0,null,null,1,null,0]
[1813,null,null,0,null,null,1,null,0]
[1814,null,null,0,null,null,1,null,0]
[1815,null,null,0,null,null,1,null,0]
[1816,null,null,0,null,null,1,null,0]
[1817,null,null,0,null,null,1,null,0]
[1818,null,null,0,null,null,1,null,0]
[1819,null,null,0,null,null,1,null,0]
[1820,null,null,0,null,null,1,null,0]
[1821,null,null,0,null,null,1,null,0]
[1822,null,null,0,null,null,1,null,0]
[1823,null,null,0,null,null,1,null,0]
[1824,null,null,0,null,null,1,null,0]
[1825,null,null,0,null,null,1,null,0]
[1826,null,null,0,null,null,1,null,0]
[1827,null,null,0,null,null,1,null,0]
[1828,null,null,{"$f":"DATEDIF(C1840,F1840,\"Y\")","v":0},null,null,{"$f":"(YEAR(F1840)-YEAR(E1840))*12+MONTH(F1840)-MONTH(E1840)+1","v":1},null,{"$f":"IF(AND(E1840<=DATEVALUE(MID($C$7,1,10)),F1840>=DATEVALUE(MID($C$7,14,10))), (YEAR(DATEVALUE(MID($C$7,14,10)))-YEAR(DATEVALUE(MID($C$7,1,10))))*12+(MONTH(DATEVALUE(MID($C$7,14,10)))-MONTH(DATEVALUE(MID($C$7,1,10))))+1,IF(AND(E1840<=DATEVALUE(MID($C$7,1,10)),F1840<DATEVALUE(MID($C$7,14,10)),F1840>=DATEVALUE(MID($C$7,1,10))),(YEAR(F1840)-YEAR(DATEVALUE(MID($C$7,1,10))))*12+(MONTH(F1840)-MONTH(DATEVALUE(MID($C$7,1,10))))+1,IF(AND(E1840>DATEVALUE(MID($C$7,1,10)),F1840>=DATEVALUE(MID($C$7,14,10)),E1840<=DATEVALUE(MID($C$7,14,10))),(YEAR(DATEVALUE(MID($C$7,14,10)))-YEAR(E1840))*12+(MONTH(DATEVALUE(MID($C$7,14,10)))-MONTH(E1840))+1,IF(AND(E1840>DATEVALUE(MID($C$7,1,10)),F1840<DATEVALUE(MID($C$7,14,10))),(YEAR(F1840)-YEAR(E1840))*12+(MONTH(F1840)-MONTH(E1840))+1,0))))","v":0}]
[1829,null,null,0,null,null,1,null,0]
[1830,null,null,0,null,null,1,null,0]
[1831,null,null,0,null,null,1,null,0]
[1832,null,null,0,null,null,1,null,0]
[1833,null,null,0,null,null,1,null,0]
[1834,null,null,0,null,null,1,null,0]
[1835,null,null,0,null,null,1,null,0]
[1836,null,null,0,null,null,1,null,0]
[1837,null,null,0,null,null,1,null,0]
[1838,null,null,0,null,null,1,null,0]
[1839,null,null,0,null,null,1,null,0]
[1840,null,null,0,null,null,1,null,0]
[1841,null,null,0,null,null,1,null,0]
[1842,null,null,0,null,null,1,null,0]
[1843,null,null,0,null,null,1,null,0]
[1844,null,null,0,null,null,1,null,0]
[1845,null,null,0,null,null,1,null,0]
[1846,null,null,0,null,null,1,null,0]
[1847,null,null,0,null,null,1,null,0]
[1848,null,null,0,null,null,1,null,0]
[1849,null,null,0,null,null,1,null,0]
[1850,null,null,0,null,null,1,null,0]
[1851,null,null,0,null,null,1,null,0]
[1852,null,null,0,null,null,1,null,0]
[1853,null,null,0,null,null,1,null,0]
[1854,null,null,0,null,null,1,null,0]
[1855,null,null,0,null,null,1,null,0]
[1856,null,null,0,null,null,1,null,0]
[1857,null,null,0,null,null,1,null,0]
[1858,null,null,0,null,null,1,null,0]
[1859,null,null,0,null,null,1,null,0]
[1860,null,null,0,null,null,1,null,0]
[1861,null,null,0,null,null,1,null,0]
[1862,null,null,0,null,null,1,null,0]
[1863,null,null,0,null,null,1,null,0]
[1864,null,null,0,null,null,1,null,0]
[1865,null,null,0,null,null,1,null,0]
[1866,null,null,0,null,null,1,null,0]
[1867,null,null,0,null,null,1,null,0]
[1868,null,null,0,null,null,1,null,0]
[1869,null,null,0,null,null,1,null,0]
[1870,null,null,0,null,null,1,null,0]
[1871,null,null,0,null,null,1,null,0]
[1872,null,null,0,null,null,1,null,0]
[1873,null,null,0,null,null,1,null,0]
[1874,null,null,0,null,null,1,null,0]
[1875,null,null,0,null,null,1,null,0]
[1876,null,null,0,null,null,1,null,0]
[1877,null,null,0,null,null,1,null,0]
[1878,null,null,0,null,null,1,null,0]
[1879,null,null,0,null,null,1,null,0]
[1880,null,null,0,null,null,1,null,0]
[1881,null,null,0,null,null,1,null,0]
[1882,null,null,0,null,null,1,null,0]
[1883,null,null,0,null,null,1,null,0]
[1884,null,null,0,null,null,1,null,0]
[1885,null,null,0,null,null,1,null,0]
[1886,null,null,0,null,null,1,null,0]
[1887,null,null,0,null,null,1,null,0]
[1888,null,null,0,null,null,1,null,0]
[1889,null,null,0,null,null,1,null,0]
[1890,null,null,0,null,null,1,null,0]
[1891,null,null,0,null,null,1,null,0]
[1892,null,null,{"$f":"DATEDIF(C1904,F1904,\"Y\")","v":0},null,null,{"$f":"(YEAR(F1904)-YEAR(E1904))*12+MONTH(F1904)-MONTH(E1904)+1","v":1},null,{"$f":"IF(AND(E1904<=DATEVALUE(MID($C$7,1,10)),F1904>=DATEVALUE(MID($C$7,14,10))), (YEAR(DATEVALUE(MID($C$7,14,10)))-YEAR(DATEVALUE(MID($C$7,1,10))))*12+(MONTH(DATEVALUE(MID($C$7,14,10)))-MONTH(DATEVALUE(MID($C$7,1,10))))+1,IF(AND(E1904<=DATEVALUE(MID($C$7,1,10)),F1904<DATEVALUE(MID($C$7,14,10)),F1904>=DATEVALUE(MID($C$7,1,10))),(YEAR(F1904)-YEAR(DATEVALUE(MID($C$7,1,10))))*12+(MONTH(F1904)-MONTH(DATEVALUE(MID($C$7,1,10))))+1,IF(AND(E1904>DATEVALUE(MID($C$7,1,10)),F1904>=DATEVALUE(MID($C$7,14,10)),E1904<=DATEVALUE(MID($C$7,14,10))),(YEAR(DATEVALUE(MID($C$7,14,10)))-YEAR(E1904))*12+(MONTH(DATEVALUE(MID($C$7,14,10)))-MONTH(E1904))+1,IF(AND(E1904>DATEVALUE(MID($C$7,1,10)),F1904<DATEVALUE(MID($C$7,14,10))),(YEAR(F1904)-YEAR(E1904))*12+(MONTH(F1904)-MONTH(E1904))+1,0))))","v":0}]
[1893,null,null,0,null,null,1,null,0]
[1894,null,null,0,null,null,1,null,0]
[1895,null,null,0,null,null,1,null,0]
[1896,null,null,0,null,null,1,null,0]
[1897,null,null,0,null,null,1,null,0]
[1898,null,null,0,null,null,1,null,0]
[1899,null,null,0,null,null,1,null,0]
[1900,null,null,0,null,null,1,null,0]
[1901,null,null,0,null,null,1,null,0]
[1902,null,null,0,null,null,1,null,0]
[1903,null,null,0,null,null,1,null,0]
[1904,null,null,0,null,null,1,null,0]
[1905,null,null,0,null,null,1,null,0]
[1906,null,null,0,null,null,1,null,0]
[1907,null,null,0,null,null,1,null,0]
[1908,null,null,0,null,null,1,null,0]
[1909,null,null,0,null,null,1,null,0]
[1910,null,null,0,null,null,1,null,0]
[1911,null,null,0,null,null,1,null,0]
[1912,null,null,0,null,null,1,null,0]
[1913,null,null,0,null,null,1,null,0]
[1914,null,null,0,null,null,1,null,0]
[1915,null,null,0,null,null,1,null,0]
[1916,null,null,0,null,null,1,null,0]
[1917,null,null,0,null,null,1,null,0]
[1918,null,null,0,null,null,1,null,0]
[1919,null,null,0,null,null,1,null,0]
[1920,null,null,0,null,null,1,null,0]
[1921,null,null,0,null,null,1,null,0]
[1922,null,null,0,null,null,1,null,0]
[1923,null,null,0,null,null,1,null,0]
[1924,null,null,0,null,null,1,null,0]
[1925,null,null,0,null,null,1,null,0]
[1926,null,null,0,null,null,1,null,0]
[1927,null,null,0,null,null,1,null,0]
[1928,null,null,0,null,null,1,null,0]
[1929,null,null,0,null,null,1,null,0]
[1930,null,null,0,null,null,1,null,0]
[1931,null,null,0,null,null,1,null,0]
[1932,null,null,0,null,null,1,null,0]
[1933,null,null,0,null,null,1,null,0]
[1934,null,null,0,null,null,1,null,0]
[1935,null,null,0,null,null,1,null,0]
[1936,null,null,0,null,null,1,null,0]
[1937,null,null,0,null,null,1,null,0]
[1938,null,null,0,null,null,1,null,0]
[1939,null,null,0,null,null,1,null,0]
[1940,null,null,0,null,null,1,null,0]
[1941,null,null,0,null,null,1,null,0]
[1942,null,null,0,null,null,1,null,0]
[1943,null,null,0,null,null,1,null,0]
[1944,null,null,0,null,null,1,null,0]
[1945,null,null,0,null,null,1,null,0]
[1946,null,null,0,null,null,1,null,0]
[1947,null,null,0,null,null,1,null,0]
[1948,null,null,0,null,null,1,null,0]
[1949,null,null,0,null,null,1,null,0]
[1950,null,null,0,null,null,1,null,0]
[1951,null,null,0,null,null,1,null,0]
[1952,null,null,0,null,null,1,null,0]
[1953,null,null,0,null,null,1,null,0]
[1954,null,null,0,null,null,1,null,0]
[1955,null,null,0,null,null,1,null,0]
[1956,null,null,{"$f":"DATEDIF(C1968,F1968,\"Y\")","v":0},null,null,{"$f":"(YEAR(F1968)-YEAR(E1968))*12+MONTH(F1968)-MONTH(E1968)+1","v":1},null,{"$f":"IF(AND(E1968<=DATEVALUE(MID($C$7,1,10)),F1968>=DATEVALUE(MID($C$7,14,10))), (YEAR(DATEVALUE(MID($C$7,14,10)))-YEAR(DATEVALUE(MID($C$7,1,10))))*12+(MONTH(DATEVALUE(MID($C$7,14,10)))-MONTH(DATEVALUE(MID($C$7,1,10))))+1,IF(AND(E1968<=DATEVALUE(MID($C$7,1,10)),F1968<DATEVALUE(MID($C$7,14,10)),F1968>=DATEVALUE(MID($C$7,1,10))),(YEAR(F1968)-YEAR(DATEVALUE(MID($C$7,1,10))))*12+(MONTH(F1968)-MONTH(DATEVALUE(MID($C$7,1,10))))+1,IF(AND(E1968>DATEVALUE(MID($C$7,1,10)),F1968>=DATEVALUE(MID($C$7,14,10)),E1968<=DATEVALUE(MID($C$7,14,10))),(YEAR(DATEVALUE(MID($C$7,14,10)))-YEAR(E1968))*12+(MONTH(DATEVALUE(MID($C$7,14,10)))-MONTH(E1968))+1,IF(AND(E1968>DATEVALUE(MID($C$7,1,10)),F1968<DATEVALUE(MID($C$7,14,10))),(YEAR(F1968)-YEAR(E1968))*12+(MONTH(F1968)-MONTH(E1968))+1,0))))","v":0}]
[1957,null,null,0,null,null,1,null,0]
[1958,null,null,0,null,null,1,null,0]
[1959,null,null,0,null,null,1,null,0]
[1960,null,null,0,null,null,1,null,0]
[1961,null,null,0,null,null,1,null,0]
[1962,null,null,0,null,null,1,null,0]
[1963,null,null,0,null,null,1,null,0]
[1964,null,null,0,null,null,1,null,0]
[1965,null,null,0,null,null,1,null,0]
[1966,null,null,0,null,null,1,null,0]
[1967,null,null,0,null,null,1,null,0]
[1968,null,null,0,null,null,1,null,0]
[1969,null,null,0,null,null,1,null,0]
[1970,null,null,0,null,null,1,null,0]
[1971,null,null,0,null,null,1,null,0]
[1972,null,null,0,null,null,1,null,0]
[1973,null,null,0,null,null,1,null,0]
[1974,null,null,0,null,null,1,null,0]
[1975,null,null,0,null,null,1,null,0]
[1976,null,null,0,null,null,1,null,0]
[1977,null,null,0,null,null,1,null,0]
[1978,null,null,0,null,null,1,null,0]
[1979,null,null,0,null,null,1,null,0]
[1980,null,null,0,null,null,1,null,0]
[1981,null,null,0,null,null,1,null,0]
[1982,null,null,0,null,null,1,null,0]
[1983,null,null,0,null,null,1,null,0]
[1984,null,null,0,null,null,1,null,0]
[1985,null,null,0,null,null,1,null,0]
[1986,null,null,0,null,null,1,null,0]
[1987,null,null,0,null,null,1,null,0]
[1988,null,null,0,null,null,1,null,0]
[1989,null,null,0,null,null,1,null,0]
[1990,null,null,0,null,null,1,null,0]
[1991,null,null,0,null,null,1,null,0]
[1992,null,null,0,null,null,1,null,0]
[1993,null,null,0,null,null,1,null,0]
[1994,null,null,0,null,null,1,null,0]
[1995,null,null,0,null,null,1,null,0]
[1996,null,null,0,null,null,1,null,0]
[1997,null,null,0,null,null,1,null,0]
[1998,null,null,0,null,null,1,null,0]
[1999,null,null,0,null,null,1,null,0]
[2000,null,null,0,null,null,1,null,0]
[2001,null,null,0,null,null,1,null,0]
[2002,null,null,0,null,null,1,null,0]
[2003,null,null,0,null,null,{"$f":"(YEAR(F2015)-YEAR(E2015))*12+MONTH(F2015)-MONTH(E2015)+1","v":1},null,0]

{"sheet":"N TN 2","index":23,"n_rows":712,"n_cols":11,"rows_kept":712,"cut":false,"hidden":true,"merged":[[0,0,0,7],[1,0,1,8],[5,2,5,5],[7,2,7,5],[10,10,11,10],[10,0,11,0],[10,7,11,7],[10,8,11,8],[10,9,11,9],[10,1,11,1],[10,5,10,6],[10,2,11,2],[10,3,11,3],[10,4,11,4]]}
["Förderrichtlinie Jugendfreiwilligendienste",{"$nulls":9},"Formblatt N TN 2"]
["Teilnehmendenliste für die Förderung des Internationalen Jugendfreiwilligendienstes nach Nr. II.4.b. RL-JFD"]
[]
[]
[]
[null,"Trägerbezeichnung"]
[null,"Träger-Nummer: "]
[null,"Förderzeitraum: ","01.09.2021 - 31.08.2022"]
[]
[]
["Lfd.\n Nr.","Name, Vorname","Geburtsdatum \n(TT.MM.JJJJ)","Zeiträume für Einstiegsseminar(e)\n(TT.MM. - TT.MM.JJJJ)","Zeitraum für Abschlussseminar\n(TT.MM. - TT.MM.JJJJ)","Entsendezeitraum (TT.MM.JJJJ)",null,"förderfähige \nTeilnehmenden-monate","Einsatzland","Einsatzplatz-Nr.","Bemerkungen"]
[{"$nulls":5},"vom","bis"]
[1]
[2]
[3]
[4]
[5]
[6]
[7]
[8]
[9]
[10]
[11]
[12]
[13]
[14]
[15]
[16]
[17]
[18]
[19]
[20]
[21]
[22]
[23]
[24]
[25]
[26]
[27]
[28]
[29]
[30]
[31]
[32]
[33]
[34]
[35]
[36]
[37]
[38]
[39]
[40]
[41]
[42]
[43]
[44]
[45]
[46]
[47]
[48]
[49]
[50]
[51]
[52]
[53]
[54]
[55]
[56]
[57]
[58]
[59]
[60]
[61]
[62]
[63]
[64]
[65]
[66]
[67]
[68]
[69]
[70]
[71]
[72]
[73]
[74]
[75]
[76]
[77]
[78]
[79]
[80]
[81]
[82]
[83]
[84]
[85]
[86]
[87]
[88]
[89]
[90]
[91]
[92]
[93]
[94]
[95]
[96]
[97]
[98]
[99]
[100]
[101]
[102]
[103]
[104]
[105]
[106]
[107]
[108]
[109]
[110]
[111]
[112]
[113]
[114]
[115]
[116]
[117]
[118]
[119]
[120]
[121]
[122]
[123]
[124]
[125]
[126]
[127]
[128]
[129]
[130]
[131]
[132]
[133]
[134]
[135]
[136]
[137]
[138]
[139]
[140]
[141]
[142]
[143]
[144]
[145]
[146]
[147]
[148]
[149]
[150]
[151]
[152]
[153]
[154]
[155]
[156]
[157]
[158]
[159]
[160]
[161]
[162]
[163]
[164]
[165]
[166]
[167]
[168]
[169]
[170]
[171]
[172]
[173]
[174]
[175]
[176]
[177]
[178]
[179]
[180]
[181]
[182]
[183]
[184]
[185]
[186]
[187]
[188]
[189]
[190]
[191]
[192]
[193]
[194]
[195]
[196]
[197]
[198]
[199]
[200]
[201]
[202]
[203]
[204]
[205]
[206]
[207]
[208]
[209]
[210]
[211]
[212]
[213]
[214]
[215]
[216]
[217]
[218]
[219]
[220]
[221]
[222]
[223]
[224]
[225]
[226]
[227]
[228]
[229]
[230]
[231]
[232]
[233]
[234]
[235]
[236]
[237]
[238]
[239]
[240]
[241]
[242]
[243]
[244]
[245]
[246]
[247]
[248]
[249]
[250]
[251]
[252]
[253]
[254]
[255]
[256]
[257]
[258]
[259]
[260]
[261]
[262]
[263]
[264]
[265]
[266]
[267]
[268]
[269]
[270]
[271]
[272]
[273]
[274]
[275]
[276]
[277]
[278]
[279]
[280]
[281]
[282]
[283]
[284]
[285]
[286]
[287]
[288]
[289]
[290]
[291]
[292]
[293]
[294]
[295]
[296]
[297]
[298]
[299]
[300]
[301]
[302]
[303]
[304]
[305]
[306]
[307]
[308]
[309]
[310]
[311]
[312]
[313]
[314]
[315]
[316]
[317]
[318]
[319]
[320]
[321]
[322]
[323]
[324]
[325]
[326]
[327]
[328]
[329]
[330]
[331]
[332]
[333]
[334]
[335]
[336]
[337]
[338]
[339]
[340]
[341]
[342]
[343]
[344]
[345]
[346]
[347]
[348]
[349]
[350]
[351]
[352]
[353]
[354]
[355]
[356]
[357]
[358]
[359]
[360]
[361]
[362]
[363]
[364]
[365]
[366]
[367]
[368]
[369]
[370]
[371]
[372]
[373]
[374]
[375]
[376]
[377]
[378]
[379]
[380]
[381]
[382]
[383]
[384]
[385]
[386]
[387]
[388]
[389]
[390]
[391]
[392]
[393]
[394]
[395]
[396]
[397]
[398]
[399]
[400]
[401]
[402]
[403]
[404]
[405]
[406]
[407]
[408]
[409]
[410]
[411]
[412]
[413]
[414]
[415]
[416]
[417]
[418]
[419]
[420]
[421]
[422]
[423]
[424]
[425]
[426]
[427]
[428]
[429]
[430]
[431]
[432]
[433]
[434]
[435]
[436]
[437]
[438]
[439]
[440]
[441]
[442]
[443]
[444]
[445]
[446]
[447]
[448]
[449]
[450]
[451]
[452]
[453]
[454]
[455]
[456]
[457]
[458]
[459]
[460]
[461]
[462]
[463]
[464]
[465]
[466]
[467]
[468]
[469]
[470]
[471]
[472]
[473]
[474]
[475]
[476]
[477]
[478]
[479]
[480]
[481]
[482]
[483]
[484]
[485]
[486]
[487]
[488]
[489]
[490]
[491]
[492]
[493]
[494]
[495]
[496]
[497]
[498]
[499]
[500]
[501]
[502]
[503]
[504]
[505]
[506]
[507]
[508]
[509]
[510]
[511]
[512]
[513]
[514]
[515]
[516]
[517]
[518]
[519]
[520]
[521]
[522]
[523]
[524]
[525]
[526]
[527]
[528]
[529]
[530]
[531]
[532]
[533]
[534]
[535]
[536]
[537]
[538]
[539]
[540]
[541]
[542]
[543]
[544]
[545]
[546]
[547]
[548]
[549]
[550]
[551]
[552]
[553]
[554]
[555]
[556]
[557]
[558]
[559]
[560]
[561]
[562]
[563]
[564]
[565]
[566]
[567]
[568]
[569]
[570]
[571]
[572]
[573]
[574]
[575]
[576]
[577]
[578]
[579]
[580]
[581]
[582]
[583]
[584]
[585]
[586]
[587]
[588]
[589]
[590]
[591]
[592]
[593]
[594]
[595]
[596]
[597]
[598]
[599]
[600]
[601]
[602]
[603]
[604]
[605]
[606]
[607]
[608]
[609]
[610]
[611]
[612]
[613]
[614]
[615]
[616]
[617]
[618]
[619]
[620]
[621]
[622]
[623]
[624]
[625]
[626]
[627]
[628]
[629]
[630]
[631]
[632]
[633]
[634]
[635]
[636]
[637]
[638]
[639]
[640]
[641]
[642]
[643]
[644]
[645]
[646]
[647]
[648]
[649]
[650]
[651]
[652]
[653]
[654]
[655]
[656]
[657]
[658]
[659]
[660]
[661]
[662]
[663]
[664]
[665]
[666]
[667]
[668]
[669]
[670]
[671]
[672]
[673]
[674]
[675]
[676]
[677]
[678]
[679]
[680]
[681]
[682]
[683]
[684]
[685]
[686]
[687]
[688]
[689]
[690]
[691]
[692]
[693]
[694]
[695]
[696]
[697]
[698]
[699]
[700]

{"sheet":"RM","index":24,"n_rows":75,"n_cols":15,"rows_kept":75,"cut":false,"hidden":false,"merged":[[55,2,55,7],[51,7,51,9],[45,11,45,13],[51,11,51,13],[53,11,53,13],[49,7,49,9],[49,11,49,13],[47,11,47,13],[47,7,47,9],[71,0,71,3],[71,7,71,13],[57,6,57,8],[57,11,57,13],[62,1,62,3],[62,5,62,9],[62,11,62,13],[65,1,65,9],[39,7,39,9],[37,11,37,13],[39,11,39,13],[35,7,35,9],[35,11,35,13],[37,7,37,9],[43,11,43,13],[45,7,45,9],[41,11,41,13],[41,7,41,9],[43,7,43,9],[7,1,7,6],[21,1,21,4],[13,7,13,13],[13,1,16,5],[33,7,33,9],[33,11,33,13],[17,7,17,13],[21,12,21,14],[21,6,21,8]]}
["Förderrichtlinien Jugendfreiwilligendienste ",{"$nulls":13},"Formblatt RM"]
[]
[]
[null,null,1," Rechtsbehelfsverzicht",null,null,null,2,"Nutzungsrechtseinräumung",null,null,null,3,"Mittelabruf"]
[]
[]
[null,"Bundesamt für Familie und zivilgesellschaftliche Aufgaben"]
[null,"Ref. 207 - Zuwendungen im Bereich Jugendfreiwilligendienste"]
[null,"50964 Köln"]
[]
[]
[]
["Antragsteller (Name und Anschrift)",{"$nulls":6},"Bezeichnung der Maßnahme"]
[{"$nulls":7},"Regelförderung Freiwilliges Ökologisches Jahr"]
[]
[{"$nulls":7},"Bei Modellvorhaben oder Einzelmaßnahme bitte"]
[{"$nulls":7},"Projektbezeichnung angeben:"]
[]
[]
[]
["Bewilligt wurden unter dem Aktenzeichen",{"$nulls":5},"mit Bescheid(en) vom",{"$nulls":5},"insgesamt €"]
[]
[]
[]
[1,"  Rechtsbehelfsverzicht"]
[null,"  Es wird auf die Einlegung eines Rechtsbehelfs verzichtet."]
[]
[2,"Urheberrechtliches Nutzungsrecht"]
[null,"Hiermit wird dem Bundesministerium für Familie, Senioren, Frauen und Jugend (Zuwendungsgeber) das einfache "]
[null,"und räumlich, zeitlich und inhaltlich unbeschränkte Nutzungsrecht an den durch das Zuwendungsverhältnis begründeten,"]
[null,"urheberrechtlich geschützten Arbeitsergebnissen eingeräumt."]
[]
[3]
[null,"  Mittelabruf",null,"Bisher wurden ausgezahlt ",null,null,"am",{"$nulls":4},0]
[]
[{"$nulls":6},"am",{"$nulls":4},0]
[]
[{"$nulls":6},"am",{"$nulls":4},0]
[]
[{"$nulls":6},"am",{"$nulls":4},0]
[]
[{"$nulls":6},"am",{"$nulls":4},0]
[]
[{"$nulls":6},"am",{"$nulls":4},0]
[]
[{"$nulls":6},"am",{"$nulls":4},0]
[]
[{"$nulls":6},"am",{"$nulls":4},0]
[]
[{"$nulls":6},"am",{"$nulls":4},0]
[]
[{"$nulls":6},"am",{"$nulls":4},0]
[]
[{"$nulls":5},"Gesamt",{"$nulls":5},{"$f":"SUM(L34,L36,L38,L40,L42,L44,L46,L48,L50,L52,)","v":0}]
[]
[null,null,"Für fällige Zahlungen (in den nächsten sechs Wochen)"]
[null,null,null," werden sofort",null," werden"]
[null,null,null," benötigt",null," am",null,null,null,"benötigt","Ü",0]
[]
["Bankverbindung"]
["Wir bitten um Überweisung auf"]
[null,"Geldinstitut",null,null,null,"IBAN",{"$nulls":5},"BIC"]
[]
[]
[null,"Kontoinhaber, falls abweichend vom Zuwendungsempfänger"]
[]
[]
[]
[{"$nulls":7},"Nr. 1.4 ANBest-P bzw. Nr. 1.3 ANBest-Gk wurde beachtet."]
[]
[]
[]
["Ort, Datum",{"$nulls":6},"Unterschrift(en) der nach Satzung / dem Gesellschaftervertrag"]
[{"$nulls":7},"vertretungsberechtigten Person(en)"]
[{"$nulls":7},"Namen in Druckbuchstaben"]

{"sheet":"Tabelle3","index":25,"n_rows":12,"n_cols":1,"rows_kept":12,"cut":false,"hidden":true,"merged":[]}
["01.08.2017 - 31.07.2018"]
["01.09.2017 - 31.08.2018"]
["01.08.2017 - 31.12.2017"]
["01.09.2017 - 31.12.2017"]
["01.01.2018 - 31.07.2018"]
["01.01.2018 - 31.08.2018"]
["01.08.2018 - 31.07.2019"]
["01.09.2018 - 31.08.2019"]
["01.08.2018 - 31.12.2018"]
["01.09.2018 - 31.12.2018"]
["01.01.2019 - 31.07.2019"]
["01.01.2019 - 31.08.2019"]

{"sheet":"Hinweise","index":26,"n_rows":8,"n_cols":3,"rows_kept":8,"cut":false,"hidden":false,"merged":[[1,0,1,2],[2,0,2,2]]}
["Stand","Änderungen","durchgeführt von"]
[]
["Die Formblätter A7/A8-N8/A P IJFD/N7 werden nicht aktualisiert, da der IJFD einen eigenen Formblattsatz pflegt. Daher wurden diese Formblätter ausgeblendet."]
["2019-07-01","Anpassung Formblatt NTNT (TNM-Summierung) & Versionsänderung","Andreas Schilling"]
["2020-02-11","A2 / Zelle B69 : \"erfolgte\" durch \"erfolgt\" ersetzt;\nN1F / B38: Formel aktualisiert","Andreas Schilling"]
["2021-01-20","Aktualisierung auf den Förderjahrgang 2021/2022","Andreas Schilling"]
["2021-02-02","Anpassung der Formulare A4/N4 auf Festbetrags-Förderung","Andreas Schilling"]
["2021-02-05","> Umbenennung Dateiname mit Bezug auf RL-JFD2021\n> Bereinigung von Rechtschreibfehlern\n\n","Andreas Schilling"]